{"text_format":"3","workbook":"xlsx","n_sheets":15,"sheets":["Kako koristiti ovaj predložak","Lista učenika","Avgust","Septembar","Oktobar","Novembar","Decembar","Januar","Februar","Mart","April","Maj","Jun","Jul","Izveštaj o prisust. učenika"],"not_rendered":{"defined_names":16},"read":"whole","date_system":"1900"}

{"sheet":"Kako koristiti ovaj predložak","index":0,"n_rows":25,"n_cols":5,"rows_kept":25,"merged":[[3,2,3,12],[4,4,4,12],[5,4,5,12],[6,4,6,12],[7,4,7,12],[8,4,8,7],[11,2,11,12],[12,4,12,12],[13,4,13,12],[14,4,14,12],[17,2,17,12],[18,4,18,12],[19,4,19,12],[20,4,20,12],[21,4,21,12],[24,2,24,12]]}
["KAKO KORISTITI OVAJ PREDLOŽAK"]
[]
[null,"ODAKLE DA POČNEM?"]
[null,null,"Postoji nekoliko koraka koje morate preduzeti da biste mogli da počnete praćenje prisustva učenika:"]
[{"$nulls":3},"1.","Dodajte učenike: Na list Lista učenika unesite informacije o svakom učeniku, na primer imena staratelja i kontakt podatke. ID učenika je važna stavka zato što pruža jedinstveni identifikator za svakog učenika i koristi se kroz celu radnu svesku za razne padajuće liste „ID učenika“ radi olakšavanja unosa podataka. Informacije unete na listu učenika se koriste i na drugim listovima, na primer izveštaju o prisustvovanju učenika i mesečnim evidencijama prisustvovanja."]
[{"$nulls":3},"2.","Promenite školsku kalendarsku godinu: Na listu Avgust za prisustvovanje, kliknite na potenciometar na gornjoj desnoj ivici zaglavlja da biste ažurirali školski godišnji kalendar. Ova promena će ažurirati zaglavlje u svim mesečnim evidencijama prisustvovanja u celoj ovoj radnoj svesci. (Zapazićete da se dugme potenciometra ne štampa.)"]
[{"$nulls":3},"3.","(Opcionalno) Izmenite boje u celoj radnoj svesci: Prvo idite na poslednji list, Izveštaj o prisustvovanju učenika i na kartici Pregled, u grupi Promene kliknite na Ukloni zaštitu lista. Zatim na kartici Raspored na stranici, u grupi Teme kliknite na Boje i iz galerije boja izaberite neki drugi skup boja. Pošto ste napravili promene boje i bilo koje druge promene teme, vratite se na list Izveštaj o prisustvovanju učenika i na kartici Pregled, u grupi Promene kliknite na  Zaštiti list, a zatim kliknite na dugme U redu."]
[{"$nulls":4},"Savet: Kreirajte prilagođen skup boja teme za podudaranje sa bojama škole! Da biste to uradili, na kartici Raspored na stranici, u grupi Teme kliknite na Boje, a zatim blizu dna galerija boja izaberite stavku Kreiraj nove boje teme. Više informacija o kreiranju prilagođenog skupa boja potražite u sledećoj temi pomoći: "]
[{"$nulls":4},"Prilagodite temu dokumenta."]
[]
[null,"DODAO SAM SVOJE UČENIKE, ŠTA TREBA SLEDEĆE DA URADIM?"]
[null,null,"Pošto ste na list „Lista učenika“ uneli učenike, možete početi sa praćenjem njihovog prisustvovanja za određenu školsku godinu pomoću ovih koraka:"]
[{"$nulls":3},"1.","Da biste učenika dodali u evidenciju prisustvovanja, kliknite na ćeliju ispod kolone ID učenika i sa liste izaberite ID. Ime učenika će se automatski prikazati pošto izaberete neki ID. "]
[{"$nulls":4},"Savet: Sačuvajte korake za unos stavki podataka! Pošto su učenici dodati za jedan mesec, izaberite unete ID-ove učenika, kopirajte ih i nalepite u kolonu ID učenika za preostale mesece. "]
[{"$nulls":3},"2.","Zatim unesite evidenciju prisustvovanja za svaki dan u mesecu pomoću tipova prisustvovanja obezbeđenih u hroma kiju. Prisustvovanje učenika se automatski izračunava po tipu prisustvovanja za svakog učenika u koloni „Ukupno“. Ukupna odsustvovanja se automatski izračunavaju na dnu tabele u redu „Ukupno“."]
[]
[null,"KAKO DA DODAM VIŠE UČENIKA U MESEČNU EVIDENCIJU PRISUSTVOVANJA?"]
[null,null,"Listovi evidencije mesečnog prisustvovanja i lista učenika su Excel tabele. Da biste dodali nove redove u bilo koju Excel tabelu, uradite nešto od sledećeg:"]
[{"$nulls":3},"● ","Ako tabela nema red „Ukupno“, počnite da kucate ispod tabele i ona će se automatski razviti kada pritisnete taster Enter ili Tab."]
[{"$nulls":3},"● ","Postavite pokazivač ćelije na poslednju ćeliju iznad reda „Ukupno“, na primer ćeliju „Dani odsustvovanja“ za poslednjeg učenika, a zatim pritisnite taster Tab."]
[{"$nulls":3},"● ","Kliknite desnim tasterom miša na tabelu i u iskačućem meniju postavite pokazivač na stavku Umetni, a zatim izaberite Redovi tabele iznad ili Redovi tabele ispod. "]
[{"$nulls":3},"● ","U donjem desnom uglu tabele postavite miš na regulator veličine tabele i prevucite nadole da biste povećali broj dostupnih redova tabele."]
[]
[null,"MOGU LI DA PRIKAŽEM PRISUSTVOVANJE UČENIKA ZA CELU ŠKOLSKU GODINU?"]
[null,null,"Poslednji list u ovoj radnoj svesci – „Izveštaj o prisustvovanju učenika“ prati godišnje prisustvovanje učenika po datumu. Da biste videli izveštaj za određenog učenika, kliknite na ćeliju ispod ID učenika, a zatim sa padajuće liste izaberite ID. Informacije koje ste prethodno uneli na list „Lista učenika“ biće automatski prikazane za izabranog učenika. Imajte u vidu da kada prvi put koristite izveštaj o prisustvovanju učenika, morate uneti školu, razred, nastavnika i učionicu. Ove informacije se neće promeniti ako izaberete drugog učenika. "]

{"sheet":"Lista učenika","index":1,"n_rows":8,"n_cols":19,"rows_kept":8}
["LISTA UČENIKA"]
[]
[null,"ID učenika","Ime učenika","Prezime učenika","Pol","Datum rođenja","Roditelj ili staratelj 1","Roditelj/odnos sa starateljem 1","Broj na poslu roditelja/staratelja 1","Kućni broj roditelja/staratelja 1","Roditelj/staratelj 2","Roditelj/odnos sa starateljem 2","Broj na poslu roditelja/staratelja 2","Kućni broj roditelja/staratelja 2","Kontakt za hitne slučajeve","Odnos sa kontaktom za hitne slučajeve","Broj na poslu kontakta za hitne slučajeve","Broj kod kuće kontakta za hitne slučajeve","Puno ime studenta"]
[null,"S001","David","Aleksić","M","1997-03-28","Milica","Aleksić",1235550134,2345550134,"Milica Aleksić","Otac",1235550134,2345550134,"Rajan Kočović","Deda",7895550189,7895550134,{"$f":"Listaučenika[[#This Row],[Ime učenika]]&\" \"&Listaučenika[[#This Row],[Prezime učenika]]","v":"David Aleksić"}]
[null,"S002","Učenik",2,{"$nulls":14},{"$f":"Listaučenika[[#This Row],[Ime učenika]]&\" \"&Listaučenika[[#This Row],[Prezime učenika]]","v":"Učenik 2"}]
[null,"S003","Učenik",3,{"$nulls":14},{"$f":"Listaučenika[[#This Row],[Ime učenika]]&\" \"&Listaučenika[[#This Row],[Prezime učenika]]","v":"Učenik 3"}]
[null,"S004","Učenik",4,{"$nulls":14},{"$f":"Listaučenika[[#This Row],[Ime učenika]]&\" \"&Listaučenika[[#This Row],[Prezime učenika]]","v":"Učenik 4"}]
[null,"S005","Učenik",5,{"$nulls":14},{"$f":"Listaučenika[[#This Row],[Ime učenika]]&\" \"&Listaučenika[[#This Row],[Prezime učenika]]","v":"Učenik 5"}]

{"sheet":"Avgust","index":2,"n_rows":12,"n_cols":39,"rows_kept":12,"merged":[[4,34,4,38]]}
["EVIDENCIJA O PRISUSTVOVANJU UČENIKA",{"$nulls":36},"Početak školske godine:",2012]
[]
[null,null,"HROMA KI ","Z","Zakasnio",null,null,"O","Opravdan",null,null,"Ne","Neopravdan",null,null,"P","Prisutan",null,null,"N","Nema škole"]
[]
[null,{"$f":"DATE(Kalendarskagodina,8,1)","v":"2012-08-01"},null,{"$f":"TEXT(WEEKDAY(DATE(Kalendarskagodina,8,1),1),\"aaa\")","v":"sre"},{"$f":"TEXT(WEEKDAY(DATE(Kalendarskagodina,8,2),1),\"aaa\")","v":"čet"},{"$f":"TEXT(WEEKDAY(DATE(Kalendarskagodina,8,3),1),\"aaa\")","v":"pet"},{"$f":"TEXT(WEEKDAY(DATE(Kalendarskagodina,8,4),1),\"aaa\")","v":"sub"},{"$f":"TEXT(WEEKDAY(DATE(Kalendarskagodina,8,5),1),\"aaa\")","v":"ned"},{"$f":"TEXT(WEEKDAY(DATE(Kalendarskagodina,8,6),1),\"aaa\")","v":"pon"},{"$f":"TEXT(WEEKDAY(DATE(Kalendarskagodina,8,7),1),\"aaa\")","v":"uto"},{"$f":"TEXT(WEEKDAY(DATE(Kalendarskagodina,8,8),1),\"aaa\")","v":"sre"},{"$f":"TEXT(WEEKDAY(DATE(Kalendarskagodina,8,9),1),\"aaa\")","v":"čet"},{"$f":"TEXT(WEEKDAY(DATE(Kalendarskagodina,8,10),1),\"aaa\")","v":"pet"},{"$f":"TEXT(WEEKDAY(DATE(Kalendarskagodina,8,11),1),\"aaa\")","v":"sub"},{"$f":"TEXT(WEEKDAY(DATE(Kalendarskagodina,8,12),1),\"aaa\")","v":"ned"},{"$f":"TEXT(WEEKDAY(DATE(Kalendarskagodina,8,13),1),\"aaa\")","v":"pon"},{"$f":"TEXT(WEEKDAY(DATE(Kalendarskagodina,8,14),1),\"aaa\")","v":"uto"},{"$f":"TEXT(WEEKDAY(DATE(Kalendarskagodina,8,15),1),\"aaa\")","v":"sre"},{"$f":"TEXT(WEEKDAY(DATE(Kalendarskagodina,8,16),1),\"aaa\")","v":"čet"},{"$f":"TEXT(WEEKDAY(DATE(Kalendarskagodina,8,17),1),\"aaa\")","v":"pet"},{"$f":"TEXT(WEEKDAY(DATE(Kalendarskagodina,8,18),1),\"aaa\")","v":"sub"},{"$f":"TEXT(WEEKDAY(DATE(Kalendarskagodina,8,19),1),\"aaa\")","v":"ned"},{"$f":"TEXT(WEEKDAY(DATE(Kalendarskagodina,8,20),1),\"aaa\")","v":"pon"},{"$f":"TEXT(WEEKDAY(DATE(Kalendarskagodina,8,21),1),\"aaa\")","v":"uto"},{"$f":"TEXT(WEEKDAY(DATE(Kalendarskagodina,8,22),1),\"aaa\")","v":"sre"},{"$f":"TEXT(WEEKDAY(DATE(Kalendarskagodina,8,23),1),\"aaa\")","v":"čet"},{"$f":"TEXT(WEEKDAY(DATE(Kalendarskagodina,8,24),1),\"aaa\")","v":"pet"},{"$f":"TEXT(WEEKDAY(DATE(Kalendarskagodina,8,25),1),\"aaa\")","v":"sub"},{"$f":"TEXT(WEEKDAY(DATE(Kalendarskagodina,8,26),1),\"aaa\")","v":"ned"},{"$f":"TEXT(WEEKDAY(DATE(Kalendarskagodina,8,27),1),\"aaa\")","v":"pon"},{"$f":"TEXT(WEEKDAY(DATE(Kalendarskagodina,8,28),1),\"aaa\")","v":"uto"},{"$f":"TEXT(WEEKDAY(DATE(Kalendarskagodina,8,29),1),\"aaa\")","v":"sre"},{"$f":"TEXT(WEEKDAY(DATE(Kalendarskagodina,8,30),1),\"aaa\")","v":"čet"},{"$f":"TEXT(WEEKDAY(DATE(Kalendarskagodina,8,31),1),\"aaa\")","v":"pet"},"Ukupne vrednosti"]
[null,"ID učenika","Ime i prezime učenika","1","2","3","4","5","6","7","8","9","10","11","12","13","14","15","16","17","18","19","20","21","22","23","24","25","26","27","28","29","30","31","Z","O","Ne","P","Dani odsustvovanja"]
[null,"S001",{"$f":"IFERROR(VLOOKUP(Prisustvovanjeuavgustu[[#This Row],[ID učenika]],Listaučenika[],18,FALSE),\"\")","v":"David Aleksić"},"P","P","Z","Z","P","N","N","P","P","O","P","P","N","N","P","P","P","P","P","N","N","P","P","P","P","P","N","N","P","P","P",{"$f":"COUNTIF(Prisustvovanjeuavgustu[[#This Row],[1]:[31]],Šifra1)","v":2},{"$f":"COUNTIF(Prisustvovanjeuavgustu[[#This Row],[1]:[31]],Šifra2)","v":1},{"$f":"COUNTIF(Prisustvovanjeuavgustu[[#This Row],[1]:[31]],Šifra3)","v":0},{"$f":"COUNTIF(Prisustvovanjeuavgustu[[#This Row],[1]:[31]],Šifra4)","v":20},{"$f":"SUM(Prisustvovanjeuavgustu[[#This Row],[O]:[Ne]])","v":1}]
[null,"S002",{"$f":"IFERROR(VLOOKUP(Prisustvovanjeuavgustu[[#This Row],[ID učenika]],Listaučenika[],18,FALSE),\"\")","v":"Učenik 2"},"P","Ne","P","P","P","N","N","P","O","O","O","O","N","N","P","P","P","P","P","N","N","P","P","P","Z","Z","N","N","P","P","P",{"$f":"COUNTIF(Prisustvovanjeuavgustu[[#This Row],[1]:[31]],Šifra1)","v":2},{"$f":"COUNTIF(Prisustvovanjeuavgustu[[#This Row],[1]:[31]],Šifra2)","v":4},{"$f":"COUNTIF(Prisustvovanjeuavgustu[[#This Row],[1]:[31]],Šifra3)","v":1},{"$f":"COUNTIF(Prisustvovanjeuavgustu[[#This Row],[1]:[31]],Šifra4)","v":16},{"$f":"SUM(Prisustvovanjeuavgustu[[#This Row],[O]:[Ne]])","v":5}]
[null,"S003",{"$f":"IFERROR(VLOOKUP(Prisustvovanjeuavgustu[[#This Row],[ID učenika]],Listaučenika[],18,FALSE),\"\")","v":"Učenik 3"},"P","O","P","P","P","N","N","P","P","Ne","P","P","N","N","P","P","P","P","P","N","N","P","P","O","O","P","N","N","P","P","P",{"$f":"COUNTIF(Prisustvovanjeuavgustu[[#This Row],[1]:[31]],Šifra1)","v":0},{"$f":"COUNTIF(Prisustvovanjeuavgustu[[#This Row],[1]:[31]],Šifra2)","v":3},{"$f":"COUNTIF(Prisustvovanjeuavgustu[[#This Row],[1]:[31]],Šifra3)","v":1},{"$f":"COUNTIF(Prisustvovanjeuavgustu[[#This Row],[1]:[31]],Šifra4)","v":19},{"$f":"SUM(Prisustvovanjeuavgustu[[#This Row],[O]:[Ne]])","v":4}]
[null,"S004",{"$f":"IFERROR(VLOOKUP(Prisustvovanjeuavgustu[[#This Row],[ID učenika]],Listaučenika[],18,FALSE),\"\")","v":"Učenik 4"},"P","P","P","P","P","N","N","P","P","P","P","P","N","N","P","P","P","P","P","N","N","P","Ne","P","P","O","N","N","P","O","P",{"$f":"COUNTIF(Prisustvovanjeuavgustu[[#This Row],[1]:[31]],Šifra1)","v":0},{"$f":"COUNTIF(Prisustvovanjeuavgustu[[#This Row],[1]:[31]],Šifra2)","v":2},{"$f":"COUNTIF(Prisustvovanjeuavgustu[[#This Row],[1]:[31]],Šifra3)","v":1},{"$f":"COUNTIF(Prisustvovanjeuavgustu[[#This Row],[1]:[31]],Šifra4)","v":20},{"$f":"SUM(Prisustvovanjeuavgustu[[#This Row],[O]:[Ne]])","v":3}]
[null,"S005",{"$f":"IFERROR(VLOOKUP(Prisustvovanjeuavgustu[[#This Row],[ID učenika]],Listaučenika[],18,FALSE),\"\")","v":"Učenik 5"},"P","P","P","P","P","N","N","P","P","P","P","P","N","N","P","P","P","P","P","N","N","P","P","P","P","P","N","N","P","P","P",{"$f":"COUNTIF(Prisustvovanjeuavgustu[[#This Row],[1]:[31]],Šifra1)","v":0},{"$f":"COUNTIF(Prisustvovanjeuavgustu[[#This Row],[1]:[31]],Šifra2)","v":0},{"$f":"COUNTIF(Prisustvovanjeuavgustu[[#This Row],[1]:[31]],Šifra3)","v":0},{"$f":"COUNTIF(Prisustvovanjeuavgustu[[#This Row],[1]:[31]],Šifra4)","v":23},{"$f":"SUM(Prisustvovanjeuavgustu[[#This Row],[O]:[Ne]])","v":0}]
[null,null,"Ukupno dana odsustvovanja",{"$f":"COUNTIF(Prisustvovanjeuavgustu[1],\"Ne\")+COUNTIF(Prisustvovanjeuavgustu[1],\"O\")","v":0},{"$f":"COUNTIF(Prisustvovanjeuavgustu[2],\"Ne\")+COUNTIF(Prisustvovanjeuavgustu[2],\"O\")","v":2},{"$f":"COUNTIF(Prisustvovanjeuavgustu[3],\"Ne\")+COUNTIF(Prisustvovanjeuavgustu[3],\"O\")","v":0},{"$f":"COUNTIF(Prisustvovanjeuavgustu[4],\"Ne\")+COUNTIF(Prisustvovanjeuavgustu[4],\"O\")","v":0},{"$f":"COUNTIF(Prisustvovanjeuavgustu[5],\"Ne\")+COUNTIF(Prisustvovanjeuavgustu[5],\"O\")","v":0},{"$f":"COUNTIF(Prisustvovanjeuavgustu[6],\"Ne\")+COUNTIF(Prisustvovanjeuavgustu[6],\"O\")","v":0},{"$f":"COUNTIF(Prisustvovanjeuavgustu[7],\"Ne\")+COUNTIF(Prisustvovanjeuavgustu[7],\"O\")","v":0},{"$f":"COUNTIF(Prisustvovanjeuavgustu[8],\"Ne\")+COUNTIF(Prisustvovanjeuavgustu[8],\"O\")","v":0},{"$f":"COUNTIF(Prisustvovanjeuavgustu[9],\"Ne\")+COUNTIF(Prisustvovanjeuavgustu[9],\"O\")","v":1},{"$f":"COUNTIF(Prisustvovanjeuavgustu[10],\"Ne\")+COUNTIF(Prisustvovanjeuavgustu[10],\"O\")","v":3},{"$f":"COUNTIF(Prisustvovanjeuavgustu[11],\"Ne\")+COUNTIF(Prisustvovanjeuavgustu[11],\"O\")","v":1},{"$f":"COUNTIF(Prisustvovanjeuavgustu[12],\"Ne\")+COUNTIF(Prisustvovanjeuavgustu[12],\"O\")","v":1},{"$f":"COUNTIF(Prisustvovanjeuavgustu[13],\"Ne\")+COUNTIF(Prisustvovanjeuavgustu[13],\"O\")","v":0},{"$f":"COUNTIF(Prisustvovanjeuavgustu[14],\"Ne\")+COUNTIF(Prisustvovanjeuavgustu[14],\"O\")","v":0},{"$f":"COUNTIF(Prisustvovanjeuavgustu[15],\"Ne\")+COUNTIF(Prisustvovanjeuavgustu[15],\"O\")","v":0},{"$f":"COUNTIF(Prisustvovanjeuavgustu[16],\"Ne\")+COUNTIF(Prisustvovanjeuavgustu[16],\"O\")","v":0},{"$f":"COUNTIF(Prisustvovanjeuavgustu[17],\"Ne\")+COUNTIF(Prisustvovanjeuavgustu[17],\"O\")","v":0},{"$f":"COUNTIF(Prisustvovanjeuavgustu[18],\"Ne\")+COUNTIF(Prisustvovanjeuavgustu[18],\"O\")","v":0},{"$f":"COUNTIF(Prisustvovanjeuavgustu[19],\"Ne\")+COUNTIF(Prisustvovanjeuavgustu[19],\"O\")","v":0},{"$f":"COUNTIF(Prisustvovanjeuavgustu[20],\"Ne\")+COUNTIF(Prisustvovanjeuavgustu[20],\"O\")","v":0},{"$f":"COUNTIF(Prisustvovanjeuavgustu[21],\"Ne\")+COUNTIF(Prisustvovanjeuavgustu[21],\"O\")","v":0},{"$f":"COUNTIF(Prisustvovanjeuavgustu[22],\"Ne\")+COUNTIF(Prisustvovanjeuavgustu[22],\"O\")","v":0},{"$f":"COUNTIF(Prisustvovanjeuavgustu[23],\"Ne\")+COUNTIF(Prisustvovanjeuavgustu[23],\"O\")","v":1},{"$f":"COUNTIF(Prisustvovanjeuavgustu[24],\"Ne\")+COUNTIF(Prisustvovanjeuavgustu[24],\"O\")","v":1},{"$f":"COUNTIF(Prisustvovanjeuavgustu[25],\"Ne\")+COUNTIF(Prisustvovanjeuavgustu[25],\"O\")","v":1},{"$f":"COUNTIF(Prisustvovanjeuavgustu[26],\"Ne\")+COUNTIF(Prisustvovanjeuavgustu[26],\"O\")","v":1},{"$f":"COUNTIF(Prisustvovanjeuavgustu[27],\"Ne\")+COUNTIF(Prisustvovanjeuavgustu[27],\"O\")","v":0},{"$f":"COUNTIF(Prisustvovanjeuavgustu[28],\"Ne\")+COUNTIF(Prisustvovanjeuavgustu[28],\"O\")","v":0},{"$f":"COUNTIF(Prisustvovanjeuavgustu[29],\"Ne\")+COUNTIF(Prisustvovanjeuavgustu[29],\"O\")","v":0},{"$f":"COUNTIF(Prisustvovanjeuavgustu[30],\"Ne\")+COUNTIF(Prisustvovanjeuavgustu[30],\"O\")","v":1},{"$f":"COUNTIF(Prisustvovanjeuavgustu[31],\"Ne\")+COUNTIF(Prisustvovanjeuavgustu[31],\"O\")","v":0},{"$f":"SUBTOTAL(109,Prisustvovanjeuavgustu[Z])","v":4},{"$f":"SUBTOTAL(109,Prisustvovanjeuavgustu[O])","v":10},{"$f":"SUBTOTAL(109,Prisustvovanjeuavgustu[Ne])","v":3},{"$f":"SUBTOTAL(109,Prisustvovanjeuavgustu[P])","v":98},{"$f":"SUBTOTAL(109,Prisustvovanjeuavgustu[Dani odsustvovanja])","v":13}]

{"sheet":"Septembar","index":3,"n_rows":12,"n_cols":39,"rows_kept":12,"merged":[[4,34,4,38]]}
["EVIDENCIJA O PRISUSTVOVANJU UČENIKA",{"$nulls":36},"Početak školske godine:",{"$f":"Kalendarskagodina","v":2012}]
[]
[null,null,{"$f":"Teksthromakija","v":"HROMA KI "},{"$f":"Šifra1","v":"Z"},{"$f":"Tekstšifre1","v":"Zakasnio"},null,null,{"$f":"Šifra2","v":"O"},{"$f":"Tekstšifre2","v":"Opravdan"},null,null,{"$f":"Šifra3","v":"Ne"},{"$f":"Tekstšifre3","v":"Neopravdan"},null,null,{"$f":"Šifra4","v":"P"},{"$f":"Tekstšifre4","v":"Prisutan"},null,null,{"$f":"Šifra5","v":"N"},{"$f":"Tekstšifre5","v":"Nema škole"}]
[]
[null,{"$f":"DATE(Kalendarskagodina,9,1)","v":"2012-09-01"},null,{"$f":"TEXT(WEEKDAY(DATE(Kalendarskagodina,9,1),1),\"aaa\")","v":"sub"},{"$f":"TEXT(WEEKDAY(DATE(Kalendarskagodina,9,2),1),\"aaa\")","v":"ned"},{"$f":"TEXT(WEEKDAY(DATE(Kalendarskagodina,9,3),1),\"aaa\")","v":"pon"},{"$f":"TEXT(WEEKDAY(DATE(Kalendarskagodina,9,4),1),\"aaa\")","v":"uto"},{"$f":"TEXT(WEEKDAY(DATE(Kalendarskagodina,9,5),1),\"aaa\")","v":"sre"},{"$f":"TEXT(WEEKDAY(DATE(Kalendarskagodina,9,6),1),\"aaa\")","v":"čet"},{"$f":"TEXT(WEEKDAY(DATE(Kalendarskagodina,9,7),1),\"aaa\")","v":"pet"},{"$f":"TEXT(WEEKDAY(DATE(Kalendarskagodina,9,8),1),\"aaa\")","v":"sub"},{"$f":"TEXT(WEEKDAY(DATE(Kalendarskagodina,9,9),1),\"aaa\")","v":"ned"},{"$f":"TEXT(WEEKDAY(DATE(Kalendarskagodina,9,10),1),\"aaa\")","v":"pon"},{"$f":"TEXT(WEEKDAY(DATE(Kalendarskagodina,9,11),1),\"aaa\")","v":"uto"},{"$f":"TEXT(WEEKDAY(DATE(Kalendarskagodina,9,12),1),\"aaa\")","v":"sre"},{"$f":"TEXT(WEEKDAY(DATE(Kalendarskagodina,9,13),1),\"aaa\")","v":"čet"},{"$f":"TEXT(WEEKDAY(DATE(Kalendarskagodina,9,14),1),\"aaa\")","v":"pet"},{"$f":"TEXT(WEEKDAY(DATE(Kalendarskagodina,9,15),1),\"aaa\")","v":"sub"},{"$f":"TEXT(WEEKDAY(DATE(Kalendarskagodina,9,16),1),\"aaa\")","v":"ned"},{"$f":"TEXT(WEEKDAY(DATE(Kalendarskagodina,9,17),1),\"aaa\")","v":"pon"},{"$f":"TEXT(WEEKDAY(DATE(Kalendarskagodina,9,18),1),\"aaa\")","v":"uto"},{"$f":"TEXT(WEEKDAY(DATE(Kalendarskagodina,9,19),1),\"aaa\")","v":"sre"},{"$f":"TEXT(WEEKDAY(DATE(Kalendarskagodina,9,20),1),\"aaa\")","v":"čet"},{"$f":"TEXT(WEEKDAY(DATE(Kalendarskagodina,9,21),1),\"aaa\")","v":"pet"},{"$f":"TEXT(WEEKDAY(DATE(Kalendarskagodina,9,22),1),\"aaa\")","v":"sub"},{"$f":"TEXT(WEEKDAY(DATE(Kalendarskagodina,9,23),1),\"aaa\")","v":"ned"},{"$f":"TEXT(WEEKDAY(DATE(Kalendarskagodina,9,24),1),\"aaa\")","v":"pon"},{"$f":"TEXT(WEEKDAY(DATE(Kalendarskagodina,9,25),1),\"aaa\")","v":"uto"},{"$f":"TEXT(WEEKDAY(DATE(Kalendarskagodina,9,26),1),\"aaa\")","v":"sre"},{"$f":"TEXT(WEEKDAY(DATE(Kalendarskagodina,9,27),1),\"aaa\")","v":"čet"},{"$f":"TEXT(WEEKDAY(DATE(Kalendarskagodina,9,28),1),\"aaa\")","v":"pet"},{"$f":"TEXT(WEEKDAY(DATE(Kalendarskagodina,9,29),1),\"aaa\")","v":"sub"},{"$f":"TEXT(WEEKDAY(DATE(Kalendarskagodina,9,30),1),\"aaa\")","v":"ned"},null,"Ukupne vrednosti"]
[null,"ID učenika","Ime i prezime učenika","1","2","3","4","5","6","7","8","9","10","11","12","13","14","15","16","17","18","19","20","21","22","23","24","25","26","27","28","29","30"," ","Z","O","Ne","P","Dani odsustvovanja"]
[null,null,{"$f":"IFERROR(VLOOKUP(Prisustvovanjeuseptembru[[#This Row],[ID učenika]],Listaučenika[],18,FALSE),\"\")","v":""},{"$nulls":31},{"$f":"COUNTIF(Prisustvovanjeuseptembru[[#This Row],[1]:[ ]],Šifra1)","v":0},{"$f":"COUNTIF(Prisustvovanjeuseptembru[[#This Row],[1]:[ ]],Šifra2)","v":0},{"$f":"COUNTIF(Prisustvovanjeuseptembru[[#This Row],[1]:[ ]],Šifra3)","v":0},{"$f":"COUNTIF(Prisustvovanjeuseptembru[[#This Row],[1]:[ ]],Šifra4)","v":0},{"$f":"SUM(Prisustvovanjeuseptembru[[#This Row],[O]:[Ne]])","v":0}]
[null,null,{"$f":"IFERROR(VLOOKUP(Prisustvovanjeuseptembru[[#This Row],[ID učenika]],Listaučenika[],18,FALSE),\"\")","v":""},{"$nulls":31},{"$f":"COUNTIF(Prisustvovanjeuseptembru[[#This Row],[1]:[ ]],Šifra1)","v":0},{"$f":"COUNTIF(Prisustvovanjeuseptembru[[#This Row],[1]:[ ]],Šifra2)","v":0},{"$f":"COUNTIF(Prisustvovanjeuseptembru[[#This Row],[1]:[ ]],Šifra3)","v":0},{"$f":"COUNTIF(Prisustvovanjeuseptembru[[#This Row],[1]:[ ]],Šifra4)","v":0},{"$f":"SUM(Prisustvovanjeuseptembru[[#This Row],[O]:[Ne]])","v":0}]
[null,null,{"$f":"IFERROR(VLOOKUP(Prisustvovanjeuseptembru[[#This Row],[ID učenika]],Listaučenika[],18,FALSE),\"\")","v":""},{"$nulls":31},{"$f":"COUNTIF(Prisustvovanjeuseptembru[[#This Row],[1]:[ ]],Šifra1)","v":0},{"$f":"COUNTIF(Prisustvovanjeuseptembru[[#This Row],[1]:[ ]],Šifra2)","v":0},{"$f":"COUNTIF(Prisustvovanjeuseptembru[[#This Row],[1]:[ ]],Šifra3)","v":0},{"$f":"COUNTIF(Prisustvovanjeuseptembru[[#This Row],[1]:[ ]],Šifra4)","v":0},{"$f":"SUM(Prisustvovanjeuseptembru[[#This Row],[O]:[Ne]])","v":0}]
[null,null,{"$f":"IFERROR(VLOOKUP(Prisustvovanjeuseptembru[[#This Row],[ID učenika]],Listaučenika[],18,FALSE),\"\")","v":""},{"$nulls":31},{"$f":"COUNTIF(Prisustvovanjeuseptembru[[#This Row],[1]:[ ]],Šifra1)","v":0},{"$f":"COUNTIF(Prisustvovanjeuseptembru[[#This Row],[1]:[ ]],Šifra2)","v":0},{"$f":"COUNTIF(Prisustvovanjeuseptembru[[#This Row],[1]:[ ]],Šifra3)","v":0},{"$f":"COUNTIF(Prisustvovanjeuseptembru[[#This Row],[1]:[ ]],Šifra4)","v":0},{"$f":"SUM(Prisustvovanjeuseptembru[[#This Row],[O]:[Ne]])","v":0}]
[null,null,{"$f":"IFERROR(VLOOKUP(Prisustvovanjeuseptembru[[#This Row],[ID učenika]],Listaučenika[],18,FALSE),\"\")","v":""},{"$nulls":31},{"$f":"COUNTIF(Prisustvovanjeuseptembru[[#This Row],[1]:[ ]],Šifra1)","v":0},{"$f":"COUNTIF(Prisustvovanjeuseptembru[[#This Row],[1]:[ ]],Šifra2)","v":0},{"$f":"COUNTIF(Prisustvovanjeuseptembru[[#This Row],[1]:[ ]],Šifra3)","v":0},{"$f":"COUNTIF(Prisustvovanjeuseptembru[[#This Row],[1]:[ ]],Šifra4)","v":0},{"$f":"SUM(Prisustvovanjeuseptembru[[#This Row],[O]:[Ne]])","v":0}]
[null,null,"Ukupno dana odsustvovanja",{"$f":"COUNTIF(Prisustvovanjeuseptembru[1],\"Ne\")+COUNTIF(Prisustvovanjeuseptembru[1],\"O\")","v":0},{"$f":"COUNTIF(Prisustvovanjeuseptembru[2],\"Ne\")+COUNTIF(Prisustvovanjeuseptembru[2],\"O\")","v":0},{"$f":"COUNTIF(Prisustvovanjeuseptembru[3],\"Ne\")+COUNTIF(Prisustvovanjeuseptembru[3],\"O\")","v":0},{"$f":"COUNTIF(Prisustvovanjeuseptembru[4],\"Ne\")+COUNTIF(Prisustvovanjeuseptembru[4],\"O\")","v":0},{"$f":"COUNTIF(Prisustvovanjeuseptembru[5],\"Ne\")+COUNTIF(Prisustvovanjeuseptembru[5],\"O\")","v":0},{"$f":"COUNTIF(Prisustvovanjeuseptembru[6],\"Ne\")+COUNTIF(Prisustvovanjeuseptembru[6],\"O\")","v":0},{"$f":"COUNTIF(Prisustvovanjeuseptembru[7],\"Ne\")+COUNTIF(Prisustvovanjeuseptembru[7],\"O\")","v":0},{"$f":"COUNTIF(Prisustvovanjeuseptembru[8],\"Ne\")+COUNTIF(Prisustvovanjeuseptembru[8],\"O\")","v":0},{"$f":"COUNTIF(Prisustvovanjeuseptembru[9],\"Ne\")+COUNTIF(Prisustvovanjeuseptembru[9],\"O\")","v":0},{"$f":"COUNTIF(Prisustvovanjeuseptembru[10],\"Ne\")+COUNTIF(Prisustvovanjeuseptembru[10],\"O\")","v":0},{"$f":"COUNTIF(Prisustvovanjeuseptembru[11],\"Ne\")+COUNTIF(Prisustvovanjeuseptembru[11],\"O\")","v":0},{"$f":"COUNTIF(Prisustvovanjeuseptembru[12],\"Ne\")+COUNTIF(Prisustvovanjeuseptembru[12],\"O\")","v":0},{"$f":"COUNTIF(Prisustvovanjeuseptembru[13],\"Ne\")+COUNTIF(Prisustvovanjeuseptembru[13],\"O\")","v":0},{"$f":"COUNTIF(Prisustvovanjeuseptembru[14],\"Ne\")+COUNTIF(Prisustvovanjeuseptembru[14],\"O\")","v":0},{"$f":"COUNTIF(Prisustvovanjeuseptembru[15],\"Ne\")+COUNTIF(Prisustvovanjeuseptembru[15],\"O\")","v":0},{"$f":"COUNTIF(Prisustvovanjeuseptembru[16],\"Ne\")+COUNTIF(Prisustvovanjeuseptembru[16],\"O\")","v":0},{"$f":"COUNTIF(Prisustvovanjeuseptembru[17],\"Ne\")+COUNTIF(Prisustvovanjeuseptembru[17],\"O\")","v":0},{"$f":"COUNTIF(Prisustvovanjeuseptembru[18],\"Ne\")+COUNTIF(Prisustvovanjeuseptembru[18],\"O\")","v":0},{"$f":"COUNTIF(Prisustvovanjeuseptembru[19],\"Ne\")+COUNTIF(Prisustvovanjeuseptembru[19],\"O\")","v":0},{"$f":"COUNTIF(Prisustvovanjeuseptembru[20],\"Ne\")+COUNTIF(Prisustvovanjeuseptembru[20],\"O\")","v":0},{"$f":"COUNTIF(Prisustvovanjeuseptembru[21],\"Ne\")+COUNTIF(Prisustvovanjeuseptembru[21],\"O\")","v":0},{"$f":"COUNTIF(Prisustvovanjeuseptembru[22],\"Ne\")+COUNTIF(Prisustvovanjeuseptembru[22],\"O\")","v":0},{"$f":"COUNTIF(Prisustvovanjeuseptembru[23],\"Ne\")+COUNTIF(Prisustvovanjeuseptembru[23],\"O\")","v":0},{"$f":"COUNTIF(Prisustvovanjeuseptembru[24],\"Ne\")+COUNTIF(Prisustvovanjeuseptembru[24],\"O\")","v":0},{"$f":"COUNTIF(Prisustvovanjeuseptembru[25],\"Ne\")+COUNTIF(Prisustvovanjeuseptembru[25],\"O\")","v":0},{"$f":"COUNTIF(Prisustvovanjeuseptembru[26],\"Ne\")+COUNTIF(Prisustvovanjeuseptembru[26],\"O\")","v":0},{"$f":"COUNTIF(Prisustvovanjeuseptembru[27],\"Ne\")+COUNTIF(Prisustvovanjeuseptembru[27],\"O\")","v":0},{"$f":"COUNTIF(Prisustvovanjeuseptembru[28],\"Ne\")+COUNTIF(Prisustvovanjeuseptembru[28],\"O\")","v":0},{"$f":"COUNTIF(Prisustvovanjeuseptembru[29],\"Ne\")+COUNTIF(Prisustvovanjeuseptembru[29],\"O\")","v":0},{"$f":"COUNTIF(Prisustvovanjeuseptembru[30],\"Ne\")+COUNTIF(Prisustvovanjeuseptembru[30],\"O\")","v":0},{"$f":"COUNTIF(Prisustvovanjeuseptembru[[ ]],\"Ne\")+COUNTIF(Prisustvovanjeuseptembru[[ ]],\"O\")","v":0},{"$f":"SUBTOTAL(109,Prisustvovanjeuseptembru[Z])","v":0},{"$f":"SUBTOTAL(109,Prisustvovanjeuseptembru[O])","v":0},{"$f":"SUBTOTAL(109,Prisustvovanjeuseptembru[Ne])","v":0},{"$f":"SUBTOTAL(109,Prisustvovanjeuseptembru[P])","v":0},{"$f":"SUBTOTAL(109,Prisustvovanjeuseptembru[Dani odsustvovanja])","v":0}]

{"sheet":"Oktobar","index":4,"n_rows":12,"n_cols":39,"rows_kept":12,"merged":[[4,34,4,38]]}
["EVIDENCIJA O PRISUSTVOVANJU UČENIKA",{"$nulls":36},"Početak školske godine:",{"$f":"Kalendarskagodina","v":2012}]
[]
[null,null,{"$f":"Teksthromakija","v":"HROMA KI "},{"$f":"Šifra1","v":"Z"},{"$f":"Tekstšifre1","v":"Zakasnio"},null,null,{"$f":"Šifra2","v":"O"},{"$f":"Tekstšifre2","v":"Opravdan"},null,null,{"$f":"Šifra3","v":"Ne"},{"$f":"Tekstšifre3","v":"Neopravdan"},null,null,{"$f":"Šifra4","v":"P"},{"$f":"Tekstšifre4","v":"Prisutan"},null,null,{"$f":"Šifra5","v":"N"},{"$f":"Tekstšifre5","v":"Nema škole"}]
[]
[null,{"$f":"DATE(Kalendarskagodina,10,1)","v":"2012-10-01"},null,{"$f":"TEXT(WEEKDAY(DATE(Kalendarskagodina,10,1),1),\"aaa\")","v":"pon"},{"$f":"TEXT(WEEKDAY(DATE(Kalendarskagodina,10,2),1),\"aaa\")","v":"uto"},{"$f":"TEXT(WEEKDAY(DATE(Kalendarskagodina,10,3),1),\"aaa\")","v":"sre"},{"$f":"TEXT(WEEKDAY(DATE(Kalendarskagodina,10,4),1),\"aaa\")","v":"čet"},{"$f":"TEXT(WEEKDAY(DATE(Kalendarskagodina,10,5),1),\"aaa\")","v":"pet"},{"$f":"TEXT(WEEKDAY(DATE(Kalendarskagodina,10,6),1),\"aaa\")","v":"sub"},{"$f":"TEXT(WEEKDAY(DATE(Kalendarskagodina,10,7),1),\"aaa\")","v":"ned"},{"$f":"TEXT(WEEKDAY(DATE(Kalendarskagodina,10,8),1),\"aaa\")","v":"pon"},{"$f":"TEXT(WEEKDAY(DATE(Kalendarskagodina,10,9),1),\"aaa\")","v":"uto"},{"$f":"TEXT(WEEKDAY(DATE(Kalendarskagodina,10,10),1),\"aaa\")","v":"sre"},{"$f":"TEXT(WEEKDAY(DATE(Kalendarskagodina,10,11),1),\"aaa\")","v":"čet"},{"$f":"TEXT(WEEKDAY(DATE(Kalendarskagodina,10,12),1),\"aaa\")","v":"pet"},{"$f":"TEXT(WEEKDAY(DATE(Kalendarskagodina,10,13),1),\"aaa\")","v":"sub"},{"$f":"TEXT(WEEKDAY(DATE(Kalendarskagodina,10,14),1),\"aaa\")","v":"ned"},{"$f":"TEXT(WEEKDAY(DATE(Kalendarskagodina,10,15),1),\"aaa\")","v":"pon"},{"$f":"TEXT(WEEKDAY(DATE(Kalendarskagodina,10,16),1),\"aaa\")","v":"uto"},{"$f":"TEXT(WEEKDAY(DATE(Kalendarskagodina,10,17),1),\"aaa\")","v":"sre"},{"$f":"TEXT(WEEKDAY(DATE(Kalendarskagodina,10,18),1),\"aaa\")","v":"čet"},{"$f":"TEXT(WEEKDAY(DATE(Kalendarskagodina,10,19),1),\"aaa\")","v":"pet"},{"$f":"TEXT(WEEKDAY(DATE(Kalendarskagodina,10,20),1),\"aaa\")","v":"sub"},{"$f":"TEXT(WEEKDAY(DATE(Kalendarskagodina,10,21),1),\"aaa\")","v":"ned"},{"$f":"TEXT(WEEKDAY(DATE(Kalendarskagodina,10,22),1),\"aaa\")","v":"pon"},{"$f":"TEXT(WEEKDAY(DATE(Kalendarskagodina,10,23),1),\"aaa\")","v":"uto"},{"$f":"TEXT(WEEKDAY(DATE(Kalendarskagodina,10,24),1),\"aaa\")","v":"sre"},{"$f":"TEXT(WEEKDAY(DATE(Kalendarskagodina,10,25),1),\"aaa\")","v":"čet"},{"$f":"TEXT(WEEKDAY(DATE(Kalendarskagodina,10,26),1),\"aaa\")","v":"pet"},{"$f":"TEXT(WEEKDAY(DATE(Kalendarskagodina,10,27),1),\"aaa\")","v":"sub"},{"$f":"TEXT(WEEKDAY(DATE(Kalendarskagodina,10,28),1),\"aaa\")","v":"ned"},{"$f":"TEXT(WEEKDAY(DATE(Kalendarskagodina,10,29),1),\"aaa\")","v":"pon"},{"$f":"TEXT(WEEKDAY(DATE(Kalendarskagodina,10,30),1),\"aaa\")","v":"uto"},{"$f":"TEXT(WEEKDAY(DATE(Kalendarskagodina,10,31),1),\"aaa\")","v":"sre"},"Ukupne vrednosti"]
[null,"ID učenika","Ime i prezime učenika","1","2","3","4","5","6","7","8","9","10","11","12","13","14","15","16","17","18","19","20","21","22","23","24","25","26","27","28","29","30","31","Z","O","Ne","P","Dani odsustvovanja"]
[null,null,{"$f":"IFERROR(VLOOKUP(Prisustvovanjeuoktobru[[#This Row],[ID učenika]],Listaučenika[],18,FALSE),\"\")","v":""},{"$nulls":31},{"$f":"COUNTIF(Prisustvovanjeuoktobru[[#This Row],[1]:[31]],Šifra1)","v":0},{"$f":"COUNTIF(Prisustvovanjeuoktobru[[#This Row],[1]:[31]],Šifra2)","v":0},{"$f":"COUNTIF(Prisustvovanjeuoktobru[[#This Row],[1]:[31]],Šifra3)","v":0},{"$f":"COUNTIF(Prisustvovanjeuoktobru[[#This Row],[1]:[31]],Šifra4)","v":0},{"$f":"SUM(Prisustvovanjeuseptembru[[#This Row],[O]:[Ne]])","v":0}]
[null,null,{"$f":"IFERROR(VLOOKUP(Prisustvovanjeuoktobru[[#This Row],[ID učenika]],Listaučenika[],18,FALSE),\"\")","v":""},{"$nulls":31},{"$f":"COUNTIF(Prisustvovanjeuoktobru[[#This Row],[1]:[31]],Šifra1)","v":0},{"$f":"COUNTIF(Prisustvovanjeuoktobru[[#This Row],[1]:[31]],Šifra2)","v":0},{"$f":"COUNTIF(Prisustvovanjeuoktobru[[#This Row],[1]:[31]],Šifra3)","v":0},{"$f":"COUNTIF(Prisustvovanjeuoktobru[[#This Row],[1]:[31]],Šifra4)","v":0},{"$f":"SUM(Prisustvovanjeuseptembru[[#This Row],[O]:[Ne]])","v":0}]
[null,null,{"$f":"IFERROR(VLOOKUP(Prisustvovanjeuoktobru[[#This Row],[ID učenika]],Listaučenika[],18,FALSE),\"\")","v":""},{"$nulls":31},{"$f":"COUNTIF(Prisustvovanjeuoktobru[[#This Row],[1]:[31]],Šifra1)","v":0},{"$f":"COUNTIF(Prisustvovanjeuoktobru[[#This Row],[1]:[31]],Šifra2)","v":0},{"$f":"COUNTIF(Prisustvovanjeuoktobru[[#This Row],[1]:[31]],Šifra3)","v":0},{"$f":"COUNTIF(Prisustvovanjeuoktobru[[#This Row],[1]:[31]],Šifra4)","v":0},{"$f":"SUM(Prisustvovanjeuseptembru[[#This Row],[O]:[Ne]])","v":0}]
[null,null,{"$f":"IFERROR(VLOOKUP(Prisustvovanjeuoktobru[[#This Row],[ID učenika]],Listaučenika[],18,FALSE),\"\")","v":""},{"$nulls":31},{"$f":"COUNTIF(Prisustvovanjeuoktobru[[#This Row],[1]:[31]],Šifra1)","v":0},{"$f":"COUNTIF(Prisustvovanjeuoktobru[[#This Row],[1]:[31]],Šifra2)","v":0},{"$f":"COUNTIF(Prisustvovanjeuoktobru[[#This Row],[1]:[31]],Šifra3)","v":0},{"$f":"COUNTIF(Prisustvovanjeuoktobru[[#This Row],[1]:[31]],Šifra4)","v":0},{"$f":"SUM(Prisustvovanjeuseptembru[[#This Row],[O]:[Ne]])","v":0}]
[null,null,{"$f":"IFERROR(VLOOKUP(Prisustvovanjeuoktobru[[#This Row],[ID učenika]],Listaučenika[],18,FALSE),\"\")","v":""},{"$nulls":31},{"$f":"COUNTIF(Prisustvovanjeuoktobru[[#This Row],[1]:[31]],Šifra1)","v":0},{"$f":"COUNTIF(Prisustvovanjeuoktobru[[#This Row],[1]:[31]],Šifra2)","v":0},{"$f":"COUNTIF(Prisustvovanjeuoktobru[[#This Row],[1]:[31]],Šifra3)","v":0},{"$f":"COUNTIF(Prisustvovanjeuoktobru[[#This Row],[1]:[31]],Šifra4)","v":0},{"$f":"SUM(Prisustvovanjeuseptembru[[#This Row],[O]:[Ne]])","v":0}]
[null,null,"Ukupno dana odsustvovanja",{"$f":"COUNTIF(Prisustvovanjeuoktobru[1],\"Ne\")+COUNTIF(Prisustvovanjeuoktobru[1],\"O\")","v":0},{"$f":"COUNTIF(Prisustvovanjeuoktobru[2],\"Ne\")+COUNTIF(Prisustvovanjeuoktobru[2],\"O\")","v":0},{"$f":"COUNTIF(Prisustvovanjeuoktobru[3],\"Ne\")+COUNTIF(Prisustvovanjeuoktobru[3],\"O\")","v":0},{"$f":"COUNTIF(Prisustvovanjeuoktobru[4],\"Ne\")+COUNTIF(Prisustvovanjeuoktobru[4],\"O\")","v":0},{"$f":"COUNTIF(Prisustvovanjeuoktobru[5],\"Ne\")+COUNTIF(Prisustvovanjeuoktobru[5],\"O\")","v":0},{"$f":"COUNTIF(Prisustvovanjeuoktobru[6],\"Ne\")+COUNTIF(Prisustvovanjeuoktobru[6],\"O\")","v":0},{"$f":"COUNTIF(Prisustvovanjeuoktobru[7],\"Ne\")+COUNTIF(Prisustvovanjeuoktobru[7],\"O\")","v":0},{"$f":"COUNTIF(Prisustvovanjeuoktobru[8],\"Ne\")+COUNTIF(Prisustvovanjeuoktobru[8],\"O\")","v":0},{"$f":"COUNTIF(Prisustvovanjeuoktobru[9],\"Ne\")+COUNTIF(Prisustvovanjeuoktobru[9],\"O\")","v":0},{"$f":"COUNTIF(Prisustvovanjeuoktobru[10],\"Ne\")+COUNTIF(Prisustvovanjeuoktobru[10],\"O\")","v":0},{"$f":"COUNTIF(Prisustvovanjeuoktobru[11],\"Ne\")+COUNTIF(Prisustvovanjeuoktobru[11],\"O\")","v":0},{"$f":"COUNTIF(Prisustvovanjeuoktobru[12],\"Ne\")+COUNTIF(Prisustvovanjeuoktobru[12],\"O\")","v":0},{"$f":"COUNTIF(Prisustvovanjeuoktobru[13],\"Ne\")+COUNTIF(Prisustvovanjeuoktobru[13],\"O\")","v":0},{"$f":"COUNTIF(Prisustvovanjeuoktobru[14],\"Ne\")+COUNTIF(Prisustvovanjeuoktobru[14],\"O\")","v":0},{"$f":"COUNTIF(Prisustvovanjeuoktobru[15],\"Ne\")+COUNTIF(Prisustvovanjeuoktobru[15],\"O\")","v":0},{"$f":"COUNTIF(Prisustvovanjeuoktobru[16],\"Ne\")+COUNTIF(Prisustvovanjeuoktobru[16],\"O\")","v":0},{"$f":"COUNTIF(Prisustvovanjeuoktobru[17],\"Ne\")+COUNTIF(Prisustvovanjeuoktobru[17],\"O\")","v":0},{"$f":"COUNTIF(Prisustvovanjeuoktobru[18],\"Ne\")+COUNTIF(Prisustvovanjeuoktobru[18],\"O\")","v":0},{"$f":"COUNTIF(Prisustvovanjeuoktobru[19],\"Ne\")+COUNTIF(Prisustvovanjeuoktobru[19],\"O\")","v":0},{"$f":"COUNTIF(Prisustvovanjeuoktobru[20],\"Ne\")+COUNTIF(Prisustvovanjeuoktobru[20],\"O\")","v":0},{"$f":"COUNTIF(Prisustvovanjeuoktobru[21],\"Ne\")+COUNTIF(Prisustvovanjeuoktobru[21],\"O\")","v":0},{"$f":"COUNTIF(Prisustvovanjeuoktobru[22],\"Ne\")+COUNTIF(Prisustvovanjeuoktobru[22],\"O\")","v":0},{"$f":"COUNTIF(Prisustvovanjeuoktobru[23],\"Ne\")+COUNTIF(Prisustvovanjeuoktobru[23],\"O\")","v":0},{"$f":"COUNTIF(Prisustvovanjeuoktobru[24],\"Ne\")+COUNTIF(Prisustvovanjeuoktobru[24],\"O\")","v":0},{"$f":"COUNTIF(Prisustvovanjeuoktobru[25],\"Ne\")+COUNTIF(Prisustvovanjeuoktobru[25],\"O\")","v":0},{"$f":"COUNTIF(Prisustvovanjeuoktobru[26],\"Ne\")+COUNTIF(Prisustvovanjeuoktobru[26],\"O\")","v":0},{"$f":"COUNTIF(Prisustvovanjeuoktobru[27],\"Ne\")+COUNTIF(Prisustvovanjeuoktobru[27],\"O\")","v":0},{"$f":"COUNTIF(Prisustvovanjeuoktobru[28],\"Ne\")+COUNTIF(Prisustvovanjeuoktobru[28],\"O\")","v":0},{"$f":"COUNTIF(Prisustvovanjeuoktobru[29],\"Ne\")+COUNTIF(Prisustvovanjeuoktobru[29],\"O\")","v":0},{"$f":"COUNTIF(Prisustvovanjeuoktobru[30],\"Ne\")+COUNTIF(Prisustvovanjeuoktobru[30],\"O\")","v":0},{"$f":"COUNTIF(Prisustvovanjeuoktobru[31],\"Ne\")+COUNTIF(Prisustvovanjeuoktobru[31],\"O\")","v":0},{"$f":"SUBTOTAL(109,Prisustvovanjeuoktobru[Z])","v":0},{"$f":"SUBTOTAL(109,Prisustvovanjeuoktobru[O])","v":0},{"$f":"SUBTOTAL(109,Prisustvovanjeuoktobru[Ne])","v":0},{"$f":"SUBTOTAL(109,Prisustvovanjeuoktobru[P])","v":0},{"$f":"SUBTOTAL(109,Prisustvovanjeuoktobru[Dani odsustvovanja])","v":0}]

{"sheet":"Novembar","index":5,"n_rows":12,"n_cols":39,"rows_kept":12,"merged":[[4,34,4,38]]}
["EVIDENCIJA O PRISUSTVOVANJU UČENIKA",{"$nulls":36},"Početak školske godine:",{"$f":"Kalendarskagodina","v":2012}]
[]
[null,null,{"$f":"Teksthromakija","v":"HROMA KI "},{"$f":"Šifra1","v":"Z"},{"$f":"Tekstšifre1","v":"Zakasnio"},null,null,{"$f":"Šifra2","v":"O"},{"$f":"Tekstšifre2","v":"Opravdan"},null,null,{"$f":"Šifra3","v":"Ne"},{"$f":"Tekstšifre3","v":"Neopravdan"},null,null,{"$f":"Šifra4","v":"P"},{"$f":"Tekstšifre4","v":"Prisutan"},null,null,{"$f":"Šifra5","v":"N"},{"$f":"Tekstšifre5","v":"Nema škole"}]
[]
[null,{"$f":"DATE(Kalendarskagodina,11,1)","v":"2012-11-01"},null,{"$f":"TEXT(WEEKDAY(DATE(Kalendarskagodina,11,1),1),\"aaa\")","v":"čet"},{"$f":"TEXT(WEEKDAY(DATE(Kalendarskagodina,11,2),1),\"aaa\")","v":"pet"},{"$f":"TEXT(WEEKDAY(DATE(Kalendarskagodina,11,3),1),\"aaa\")","v":"sub"},{"$f":"TEXT(WEEKDAY(DATE(Kalendarskagodina,11,4),1),\"aaa\")","v":"ned"},{"$f":"TEXT(WEEKDAY(DATE(Kalendarskagodina,11,5),1),\"aaa\")","v":"pon"},{"$f":"TEXT(WEEKDAY(DATE(Kalendarskagodina,11,6),1),\"aaa\")","v":"uto"},{"$f":"TEXT(WEEKDAY(DATE(Kalendarskagodina,11,7),1),\"aaa\")","v":"sre"},{"$f":"TEXT(WEEKDAY(DATE(Kalendarskagodina,11,8),1),\"aaa\")","v":"čet"},{"$f":"TEXT(WEEKDAY(DATE(Kalendarskagodina,11,9),1),\"aaa\")","v":"pet"},{"$f":"TEXT(WEEKDAY(DATE(Kalendarskagodina,11,10),1),\"aaa\")","v":"sub"},{"$f":"TEXT(WEEKDAY(DATE(Kalendarskagodina,11,11),1),\"aaa\")","v":"ned"},{"$f":"TEXT(WEEKDAY(DATE(Kalendarskagodina,11,12),1),\"aaa\")","v":"pon"},{"$f":"TEXT(WEEKDAY(DATE(Kalendarskagodina,11,13),1),\"aaa\")","v":"uto"},{"$f":"TEXT(WEEKDAY(DATE(Kalendarskagodina,11,14),1),\"aaa\")","v":"sre"},{"$f":"TEXT(WEEKDAY(DATE(Kalendarskagodina,11,15),1),\"aaa\")","v":"čet"},{"$f":"TEXT(WEEKDAY(DATE(Kalendarskagodina,11,16),1),\"aaa\")","v":"pet"},{"$f":"TEXT(WEEKDAY(DATE(Kalendarskagodina,11,17),1),\"aaa\")","v":"sub"},{"$f":"TEXT(WEEKDAY(DATE(Kalendarskagodina,11,18),1),\"aaa\")","v":"ned"},{"$f":"TEXT(WEEKDAY(DATE(Kalendarskagodina,11,19),1),\"aaa\")","v":"pon"},{"$f":"TEXT(WEEKDAY(DATE(Kalendarskagodina,11,20),1),\"aaa\")","v":"uto"},{"$f":"TEXT(WEEKDAY(DATE(Kalendarskagodina,11,21),1),\"aaa\")","v":"sre"},{"$f":"TEXT(WEEKDAY(DATE(Kalendarskagodina,11,22),1),\"aaa\")","v":"čet"},{"$f":"TEXT(WEEKDAY(DATE(Kalendarskagodina,11,23),1),\"aaa\")","v":"pet"},{"$f":"TEXT(WEEKDAY(DATE(Kalendarskagodina,11,24),1),\"aaa\")","v":"sub"},{"$f":"TEXT(WEEKDAY(DATE(Kalendarskagodina,11,25),1),\"aaa\")","v":"ned"},{"$f":"TEXT(WEEKDAY(DATE(Kalendarskagodina,11,26),1),\"aaa\")","v":"pon"},{"$f":"TEXT(WEEKDAY(DATE(Kalendarskagodina,11,27),1),\"aaa\")","v":"uto"},{"$f":"TEXT(WEEKDAY(DATE(Kalendarskagodina,11,28),1),\"aaa\")","v":"sre"},{"$f":"TEXT(WEEKDAY(DATE(Kalendarskagodina,11,29),1),\"aaa\")","v":"čet"},{"$f":"TEXT(WEEKDAY(DATE(Kalendarskagodina,11,30),1),\"aaa\")","v":"pet"},null,"Ukupne vrednosti"]
[null,"ID učenika","Ime i prezime učenika","1","2","3","4","5","6","7","8","9","10","11","12","13","14","15","16","17","18","19","20","21","22","23","24","25","26","27","28","29","30"," ","Z","O","Ne","P","Dani odsustvovanja"]
[null,null,{"$f":"IFERROR(VLOOKUP(Prisustvovanjeunovembru[[#This Row],[ID učenika]],Listaučenika[],18,FALSE),\"\")","v":""},{"$nulls":31},{"$f":"COUNTIF(Prisustvovanjeunovembru[[#This Row],[1]:[ ]],Šifra1)","v":0},{"$f":"COUNTIF(Prisustvovanjeunovembru[[#This Row],[1]:[ ]],Šifra2)","v":0},{"$f":"COUNTIF(Prisustvovanjeunovembru[[#This Row],[1]:[ ]],Šifra3)","v":0},{"$f":"COUNTIF(Prisustvovanjeunovembru[[#This Row],[1]:[ ]],Šifra4)","v":0},{"$f":"SUM(Prisustvovanjeuseptembru[[#This Row],[O]:[Ne]])","v":0}]
[null,null,{"$f":"IFERROR(VLOOKUP(Prisustvovanjeunovembru[[#This Row],[ID učenika]],Listaučenika[],18,FALSE),\"\")","v":""},{"$nulls":31},{"$f":"COUNTIF(Prisustvovanjeunovembru[[#This Row],[1]:[ ]],Šifra1)","v":0},{"$f":"COUNTIF(Prisustvovanjeunovembru[[#This Row],[1]:[ ]],Šifra2)","v":0},{"$f":"COUNTIF(Prisustvovanjeunovembru[[#This Row],[1]:[ ]],Šifra3)","v":0},{"$f":"COUNTIF(Prisustvovanjeunovembru[[#This Row],[1]:[ ]],Šifra4)","v":0},{"$f":"SUM(Prisustvovanjeuseptembru[[#This Row],[O]:[Ne]])","v":0}]
[null,null,{"$f":"IFERROR(VLOOKUP(Prisustvovanjeunovembru[[#This Row],[ID učenika]],Listaučenika[],18,FALSE),\"\")","v":""},{"$nulls":31},{"$f":"COUNTIF(Prisustvovanjeunovembru[[#This Row],[1]:[ ]],Šifra1)","v":0},{"$f":"COUNTIF(Prisustvovanjeunovembru[[#This Row],[1]:[ ]],Šifra2)","v":0},{"$f":"COUNTIF(Prisustvovanjeunovembru[[#This Row],[1]:[ ]],Šifra3)","v":0},{"$f":"COUNTIF(Prisustvovanjeunovembru[[#This Row],[1]:[ ]],Šifra4)","v":0},{"$f":"SUM(Prisustvovanjeuseptembru[[#This Row],[O]:[Ne]])","v":0}]
[null,null,{"$f":"IFERROR(VLOOKUP(Prisustvovanjeunovembru[[#This Row],[ID učenika]],Listaučenika[],18,FALSE),\"\")","v":""},{"$nulls":31},{"$f":"COUNTIF(Prisustvovanjeunovembru[[#This Row],[1]:[ ]],Šifra1)","v":0},{"$f":"COUNTIF(Prisustvovanjeunovembru[[#This Row],[1]:[ ]],Šifra2)","v":0},{"$f":"COUNTIF(Prisustvovanjeunovembru[[#This Row],[1]:[ ]],Šifra3)","v":0},{"$f":"COUNTIF(Prisustvovanjeunovembru[[#This Row],[1]:[ ]],Šifra4)","v":0},{"$f":"SUM(Prisustvovanjeuseptembru[[#This Row],[O]:[Ne]])","v":0}]
[null,null,{"$f":"IFERROR(VLOOKUP(Prisustvovanjeunovembru[[#This Row],[ID učenika]],Listaučenika[],18,FALSE),\"\")","v":""},{"$nulls":31},{"$f":"COUNTIF(Prisustvovanjeunovembru[[#This Row],[1]:[ ]],Šifra1)","v":0},{"$f":"COUNTIF(Prisustvovanjeunovembru[[#This Row],[1]:[ ]],Šifra2)","v":0},{"$f":"COUNTIF(Prisustvovanjeunovembru[[#This Row],[1]:[ ]],Šifra3)","v":0},{"$f":"COUNTIF(Prisustvovanjeunovembru[[#This Row],[1]:[ ]],Šifra4)","v":0},{"$f":"SUM(Prisustvovanjeuseptembru[[#This Row],[O]:[Ne]])","v":0}]
[null,null,"Ukupno dana odsustvovanja",{"$f":"COUNTIF(Prisustvovanjeunovembru[1],\"Ne\")+COUNTIF(Prisustvovanjeunovembru[1],\"O\")","v":0},{"$f":"COUNTIF(Prisustvovanjeunovembru[2],\"Ne\")+COUNTIF(Prisustvovanjeunovembru[2],\"O\")","v":0},{"$f":"COUNTIF(Prisustvovanjeunovembru[3],\"Ne\")+COUNTIF(Prisustvovanjeunovembru[3],\"O\")","v":0},{"$f":"COUNTIF(Prisustvovanjeunovembru[4],\"Ne\")+COUNTIF(Prisustvovanjeunovembru[4],\"O\")","v":0},{"$f":"COUNTIF(Prisustvovanjeunovembru[5],\"Ne\")+COUNTIF(Prisustvovanjeunovembru[5],\"O\")","v":0},{"$f":"COUNTIF(Prisustvovanjeunovembru[6],\"Ne\")+COUNTIF(Prisustvovanjeunovembru[6],\"O\")","v":0},{"$f":"COUNTIF(Prisustvovanjeunovembru[7],\"Ne\")+COUNTIF(Prisustvovanjeunovembru[7],\"O\")","v":0},{"$f":"COUNTIF(Prisustvovanjeunovembru[8],\"Ne\")+COUNTIF(Prisustvovanjeunovembru[8],\"O\")","v":0},{"$f":"COUNTIF(Prisustvovanjeunovembru[9],\"Ne\")+COUNTIF(Prisustvovanjeunovembru[9],\"O\")","v":0},{"$f":"COUNTIF(Prisustvovanjeunovembru[10],\"Ne\")+COUNTIF(Prisustvovanjeunovembru[10],\"O\")","v":0},{"$f":"COUNTIF(Prisustvovanjeunovembru[11],\"Ne\")+COUNTIF(Prisustvovanjeunovembru[11],\"O\")","v":0},{"$f":"COUNTIF(Prisustvovanjeunovembru[12],\"Ne\")+COUNTIF(Prisustvovanjeunovembru[12],\"O\")","v":0},{"$f":"COUNTIF(Prisustvovanjeunovembru[13],\"Ne\")+COUNTIF(Prisustvovanjeunovembru[13],\"O\")","v":0},{"$f":"COUNTIF(Prisustvovanjeunovembru[14],\"Ne\")+COUNTIF(Prisustvovanjeunovembru[14],\"O\")","v":0},{"$f":"COUNTIF(Prisustvovanjeunovembru[15],\"Ne\")+COUNTIF(Prisustvovanjeunovembru[15],\"O\")","v":0},{"$f":"COUNTIF(Prisustvovanjeunovembru[16],\"Ne\")+COUNTIF(Prisustvovanjeunovembru[16],\"O\")","v":0},{"$f":"COUNTIF(Prisustvovanjeunovembru[17],\"Ne\")+COUNTIF(Prisustvovanjeunovembru[17],\"O\")","v":0},{"$f":"COUNTIF(Prisustvovanjeunovembru[18],\"Ne\")+COUNTIF(Prisustvovanjeunovembru[18],\"O\")","v":0},{"$f":"COUNTIF(Prisustvovanjeunovembru[19],\"Ne\")+COUNTIF(Prisustvovanjeunovembru[19],\"O\")","v":0},{"$f":"COUNTIF(Prisustvovanjeunovembru[20],\"Ne\")+COUNTIF(Prisustvovanjeunovembru[20],\"O\")","v":0},{"$f":"COUNTIF(Prisustvovanjeunovembru[21],\"Ne\")+COUNTIF(Prisustvovanjeunovembru[21],\"O\")","v":0},{"$f":"COUNTIF(Prisustvovanjeunovembru[22],\"Ne\")+COUNTIF(Prisustvovanjeunovembru[22],\"O\")","v":0},{"$f":"COUNTIF(Prisustvovanjeunovembru[23],\"Ne\")+COUNTIF(Prisustvovanjeunovembru[23],\"O\")","v":0},{"$f":"COUNTIF(Prisustvovanjeunovembru[24],\"Ne\")+COUNTIF(Prisustvovanjeunovembru[24],\"O\")","v":0},{"$f":"COUNTIF(Prisustvovanjeunovembru[25],\"Ne\")+COUNTIF(Prisustvovanjeunovembru[25],\"O\")","v":0},{"$f":"COUNTIF(Prisustvovanjeunovembru[26],\"Ne\")+COUNTIF(Prisustvovanjeunovembru[26],\"O\")","v":0},{"$f":"COUNTIF(Prisustvovanjeunovembru[27],\"Ne\")+COUNTIF(Prisustvovanjeunovembru[27],\"O\")","v":0},{"$f":"COUNTIF(Prisustvovanjeunovembru[28],\"Ne\")+COUNTIF(Prisustvovanjeunovembru[28],\"O\")","v":0},{"$f":"COUNTIF(Prisustvovanjeunovembru[29],\"Ne\")+COUNTIF(Prisustvovanjeunovembru[29],\"O\")","v":0},{"$f":"COUNTIF(Prisustvovanjeunovembru[30],\"Ne\")+COUNTIF(Prisustvovanjeunovembru[30],\"O\")","v":0},{"$f":"COUNTIF(Prisustvovanjeunovembru[[ ]],\"Ne\")+COUNTIF(Prisustvovanjeunovembru[[ ]],\"O\")","v":0},{"$f":"SUBTOTAL(109,Prisustvovanjeunovembru[Z])","v":0},{"$f":"SUBTOTAL(109,Prisustvovanjeunovembru[O])","v":0},{"$f":"SUBTOTAL(109,Prisustvovanjeunovembru[Ne])","v":0},{"$f":"SUBTOTAL(109,Prisustvovanjeunovembru[P])","v":0},{"$f":"SUBTOTAL(109,Prisustvovanjeunovembru[Dani odsustvovanja])","v":0}]

{"sheet":"Decembar","index":6,"n_rows":12,"n_cols":39,"rows_kept":12,"merged":[[4,34,4,38]]}
["EVIDENCIJA O PRISUSTVOVANJU UČENIKA",{"$nulls":36},"Početak školske godine:",{"$f":"Kalendarskagodina","v":2012}]
[]
[null,null,{"$f":"Teksthromakija","v":"HROMA KI "},{"$f":"Šifra1","v":"Z"},{"$f":"Tekstšifre1","v":"Zakasnio"},null,null,{"$f":"Šifra2","v":"O"},{"$f":"Tekstšifre2","v":"Opravdan"},null,null,{"$f":"Šifra3","v":"Ne"},{"$f":"Tekstšifre3","v":"Neopravdan"},null,null,{"$f":"Šifra4","v":"P"},{"$f":"Tekstšifre4","v":"Prisutan"},null,null,{"$f":"Šifra5","v":"N"},{"$f":"Tekstšifre5","v":"Nema škole"}]
[]
[null,{"$f":"DATE(Kalendarskagodina,12,1)","v":"2012-12-01"},null,{"$f":"TEXT(WEEKDAY(DATE(Kalendarskagodina,12,1),1),\"aaa\")","v":"sub"},{"$f":"TEXT(WEEKDAY(DATE(Kalendarskagodina,12,2),1),\"aaa\")","v":"ned"},{"$f":"TEXT(WEEKDAY(DATE(Kalendarskagodina,12,3),1),\"aaa\")","v":"pon"},{"$f":"TEXT(WEEKDAY(DATE(Kalendarskagodina,12,4),1),\"aaa\")","v":"uto"},{"$f":"TEXT(WEEKDAY(DATE(Kalendarskagodina,12,5),1),\"aaa\")","v":"sre"},{"$f":"TEXT(WEEKDAY(DATE(Kalendarskagodina,12,6),1),\"aaa\")","v":"čet"},{"$f":"TEXT(WEEKDAY(DATE(Kalendarskagodina,12,7),1),\"aaa\")","v":"pet"},{"$f":"TEXT(WEEKDAY(DATE(Kalendarskagodina,12,8),1),\"aaa\")","v":"sub"},{"$f":"TEXT(WEEKDAY(DATE(Kalendarskagodina,12,9),1),\"aaa\")","v":"ned"},{"$f":"TEXT(WEEKDAY(DATE(Kalendarskagodina,12,10),1),\"aaa\")","v":"pon"},{"$f":"TEXT(WEEKDAY(DATE(Kalendarskagodina,12,11),1),\"aaa\")","v":"uto"},{"$f":"TEXT(WEEKDAY(DATE(Kalendarskagodina,12,12),1),\"aaa\")","v":"sre"},{"$f":"TEXT(WEEKDAY(DATE(Kalendarskagodina,12,13),1),\"aaa\")","v":"čet"},{"$f":"TEXT(WEEKDAY(DATE(Kalendarskagodina,12,14),1),\"aaa\")","v":"pet"},{"$f":"TEXT(WEEKDAY(DATE(Kalendarskagodina,12,15),1),\"aaa\")","v":"sub"},{"$f":"TEXT(WEEKDAY(DATE(Kalendarskagodina,12,16),1),\"aaa\")","v":"ned"},{"$f":"TEXT(WEEKDAY(DATE(Kalendarskagodina,12,17),1),\"aaa\")","v":"pon"},{"$f":"TEXT(WEEKDAY(DATE(Kalendarskagodina,12,18),1),\"aaa\")","v":"uto"},{"$f":"TEXT(WEEKDAY(DATE(Kalendarskagodina,12,19),1),\"aaa\")","v":"sre"},{"$f":"TEXT(WEEKDAY(DATE(Kalendarskagodina,12,20),1),\"aaa\")","v":"čet"},{"$f":"TEXT(WEEKDAY(DATE(Kalendarskagodina,12,21),1),\"aaa\")","v":"pet"},{"$f":"TEXT(WEEKDAY(DATE(Kalendarskagodina,12,22),1),\"aaa\")","v":"sub"},{"$f":"TEXT(WEEKDAY(DATE(Kalendarskagodina,12,23),1),\"aaa\")","v":"ned"},{"$f":"TEXT(WEEKDAY(DATE(Kalendarskagodina,12,24),1),\"aaa\")","v":"pon"},{"$f":"TEXT(WEEKDAY(DATE(Kalendarskagodina,12,25),1),\"aaa\")","v":"uto"},{"$f":"TEXT(WEEKDAY(DATE(Kalendarskagodina,12,26),1),\"aaa\")","v":"sre"},{"$f":"TEXT(WEEKDAY(DATE(Kalendarskagodina,12,27),1),\"aaa\")","v":"čet"},{"$f":"TEXT(WEEKDAY(DATE(Kalendarskagodina,12,28),1),\"aaa\")","v":"pet"},{"$f":"TEXT(WEEKDAY(DATE(Kalendarskagodina,12,29),1),\"aaa\")","v":"sub"},{"$f":"TEXT(WEEKDAY(DATE(Kalendarskagodina,12,30),1),\"aaa\")","v":"ned"},{"$f":"TEXT(WEEKDAY(DATE(Kalendarskagodina,12,31),1),\"aaa\")","v":"pon"},"Ukupne vrednosti"]
[null,"ID učenika","Ime i prezime učenika","1","2","3","4","5","6","7","8","9","10","11","12","13","14","15","16","17","18","19","20","21","22","23","24","25","26","27","28","29","30","31","Z","O","Ne","P","Dani odsustvovanja"]
[null,null,{"$f":"IFERROR(VLOOKUP(Prisustvovanjeudecembru[[#This Row],[ID učenika]],Listaučenika[],18,FALSE),\"\")","v":""},{"$nulls":31},{"$f":"COUNTIF(Prisustvovanjeudecembru[[#This Row],[1]:[31]],Šifra1)","v":0},{"$f":"COUNTIF(Prisustvovanjeudecembru[[#This Row],[1]:[31]],Šifra2)","v":0},{"$f":"COUNTIF(Prisustvovanjeudecembru[[#This Row],[1]:[31]],Šifra3)","v":0},{"$f":"COUNTIF(Prisustvovanjeudecembru[[#This Row],[1]:[31]],Šifra4)","v":0},{"$f":"SUM(Prisustvovanjeuseptembru[[#This Row],[O]:[Ne]])","v":0}]
[null,null,{"$f":"IFERROR(VLOOKUP(Prisustvovanjeudecembru[[#This Row],[ID učenika]],Listaučenika[],18,FALSE),\"\")","v":""},{"$nulls":31},{"$f":"COUNTIF(Prisustvovanjeudecembru[[#This Row],[1]:[31]],Šifra1)","v":0},{"$f":"COUNTIF(Prisustvovanjeudecembru[[#This Row],[1]:[31]],Šifra2)","v":0},{"$f":"COUNTIF(Prisustvovanjeudecembru[[#This Row],[1]:[31]],Šifra3)","v":0},{"$f":"COUNTIF(Prisustvovanjeudecembru[[#This Row],[1]:[31]],Šifra4)","v":0},{"$f":"SUM(Prisustvovanjeuseptembru[[#This Row],[O]:[Ne]])","v":0}]
[null,null,{"$f":"IFERROR(VLOOKUP(Prisustvovanjeudecembru[[#This Row],[ID učenika]],Listaučenika[],18,FALSE),\"\")","v":""},{"$nulls":31},{"$f":"COUNTIF(Prisustvovanjeudecembru[[#This Row],[1]:[31]],Šifra1)","v":0},{"$f":"COUNTIF(Prisustvovanjeudecembru[[#This Row],[1]:[31]],Šifra2)","v":0},{"$f":"COUNTIF(Prisustvovanjeudecembru[[#This Row],[1]:[31]],Šifra3)","v":0},{"$f":"COUNTIF(Prisustvovanjeudecembru[[#This Row],[1]:[31]],Šifra4)","v":0},{"$f":"SUM(Prisustvovanjeuseptembru[[#This Row],[O]:[Ne]])","v":0}]
[null,null,{"$f":"IFERROR(VLOOKUP(Prisustvovanjeudecembru[[#This Row],[ID učenika]],Listaučenika[],18,FALSE),\"\")","v":""},{"$nulls":31},{"$f":"COUNTIF(Prisustvovanjeudecembru[[#This Row],[1]:[31]],Šifra1)","v":0},{"$f":"COUNTIF(Prisustvovanjeudecembru[[#This Row],[1]:[31]],Šifra2)","v":0},{"$f":"COUNTIF(Prisustvovanjeudecembru[[#This Row],[1]:[31]],Šifra3)","v":0},{"$f":"COUNTIF(Prisustvovanjeudecembru[[#This Row],[1]:[31]],Šifra4)","v":0},{"$f":"SUM(Prisustvovanjeuseptembru[[#This Row],[O]:[Ne]])","v":0}]
[null,null,{"$f":"IFERROR(VLOOKUP(Prisustvovanjeudecembru[[#This Row],[ID učenika]],Listaučenika[],18,FALSE),\"\")","v":""},{"$nulls":31},{"$f":"COUNTIF(Prisustvovanjeudecembru[[#This Row],[1]:[31]],Šifra1)","v":0},{"$f":"COUNTIF(Prisustvovanjeudecembru[[#This Row],[1]:[31]],Šifra2)","v":0},{"$f":"COUNTIF(Prisustvovanjeudecembru[[#This Row],[1]:[31]],Šifra3)","v":0},{"$f":"COUNTIF(Prisustvovanjeudecembru[[#This Row],[1]:[31]],Šifra4)","v":0},{"$f":"SUM(Prisustvovanjeuseptembru[[#This Row],[O]:[Ne]])","v":0}]
[null,null,"Ukupno dana odsustvovanja",{"$f":"COUNTIF(Prisustvovanjeudecembru[1],\"Ne\")+COUNTIF(Prisustvovanjeudecembru[1],\"O\")","v":0},{"$f":"COUNTIF(Prisustvovanjeudecembru[2],\"Ne\")+COUNTIF(Prisustvovanjeudecembru[2],\"O\")","v":0},{"$f":"COUNTIF(Prisustvovanjeudecembru[3],\"Ne\")+COUNTIF(Prisustvovanjeudecembru[3],\"O\")","v":0},{"$f":"COUNTIF(Prisustvovanjeudecembru[4],\"Ne\")+COUNTIF(Prisustvovanjeudecembru[4],\"O\")","v":0},{"$f":"COUNTIF(Prisustvovanjeudecembru[5],\"Ne\")+COUNTIF(Prisustvovanjeudecembru[5],\"O\")","v":0},{"$f":"COUNTIF(Prisustvovanjeudecembru[6],\"Ne\")+COUNTIF(Prisustvovanjeudecembru[6],\"O\")","v":0},{"$f":"COUNTIF(Prisustvovanjeudecembru[7],\"Ne\")+COUNTIF(Prisustvovanjeudecembru[7],\"O\")","v":0},{"$f":"COUNTIF(Prisustvovanjeudecembru[8],\"Ne\")+COUNTIF(Prisustvovanjeudecembru[8],\"O\")","v":0},{"$f":"COUNTIF(Prisustvovanjeudecembru[9],\"Ne\")+COUNTIF(Prisustvovanjeudecembru[9],\"O\")","v":0},{"$f":"COUNTIF(Prisustvovanjeudecembru[10],\"Ne\")+COUNTIF(Prisustvovanjeudecembru[10],\"O\")","v":0},{"$f":"COUNTIF(Prisustvovanjeudecembru[11],\"Ne\")+COUNTIF(Prisustvovanjeudecembru[11],\"O\")","v":0},{"$f":"COUNTIF(Prisustvovanjeudecembru[12],\"Ne\")+COUNTIF(Prisustvovanjeudecembru[12],\"O\")","v":0},{"$f":"COUNTIF(Prisustvovanjeudecembru[13],\"Ne\")+COUNTIF(Prisustvovanjeudecembru[13],\"O\")","v":0},{"$f":"COUNTIF(Prisustvovanjeudecembru[14],\"Ne\")+COUNTIF(Prisustvovanjeudecembru[14],\"O\")","v":0},{"$f":"COUNTIF(Prisustvovanjeudecembru[15],\"Ne\")+COUNTIF(Prisustvovanjeudecembru[15],\"O\")","v":0},{"$f":"COUNTIF(Prisustvovanjeudecembru[16],\"Ne\")+COUNTIF(Prisustvovanjeudecembru[16],\"O\")","v":0},{"$f":"COUNTIF(Prisustvovanjeudecembru[17],\"Ne\")+COUNTIF(Prisustvovanjeudecembru[17],\"O\")","v":0},{"$f":"COUNTIF(Prisustvovanjeudecembru[18],\"Ne\")+COUNTIF(Prisustvovanjeudecembru[18],\"O\")","v":0},{"$f":"COUNTIF(Prisustvovanjeudecembru[19],\"Ne\")+COUNTIF(Prisustvovanjeudecembru[19],\"O\")","v":0},{"$f":"COUNTIF(Prisustvovanjeudecembru[20],\"Ne\")+COUNTIF(Prisustvovanjeudecembru[20],\"O\")","v":0},{"$f":"COUNTIF(Prisustvovanjeudecembru[21],\"Ne\")+COUNTIF(Prisustvovanjeudecembru[21],\"O\")","v":0},{"$f":"COUNTIF(Prisustvovanjeudecembru[22],\"Ne\")+COUNTIF(Prisustvovanjeudecembru[22],\"O\")","v":0},{"$f":"COUNTIF(Prisustvovanjeudecembru[23],\"Ne\")+COUNTIF(Prisustvovanjeudecembru[23],\"O\")","v":0},{"$f":"COUNTIF(Prisustvovanjeudecembru[24],\"Ne\")+COUNTIF(Prisustvovanjeudecembru[24],\"O\")","v":0},{"$f":"COUNTIF(Prisustvovanjeudecembru[25],\"Ne\")+COUNTIF(Prisustvovanjeudecembru[25],\"O\")","v":0},{"$f":"COUNTIF(Prisustvovanjeudecembru[26],\"Ne\")+COUNTIF(Prisustvovanjeudecembru[26],\"O\")","v":0},{"$f":"COUNTIF(Prisustvovanjeudecembru[27],\"Ne\")+COUNTIF(Prisustvovanjeudecembru[27],\"O\")","v":0},{"$f":"COUNTIF(Prisustvovanjeudecembru[28],\"Ne\")+COUNTIF(Prisustvovanjeudecembru[28],\"O\")","v":0},{"$f":"COUNTIF(Prisustvovanjeudecembru[29],\"Ne\")+COUNTIF(Prisustvovanjeudecembru[29],\"O\")","v":0},{"$f":"COUNTIF(Prisustvovanjeudecembru[30],\"Ne\")+COUNTIF(Prisustvovanjeudecembru[30],\"O\")","v":0},{"$f":"COUNTIF(Prisustvovanjeudecembru[31],\"Ne\")+COUNTIF(Prisustvovanjeudecembru[31],\"O\")","v":0},{"$f":"SUBTOTAL(109,Prisustvovanjeudecembru[Z])","v":0},{"$f":"SUBTOTAL(109,Prisustvovanjeudecembru[O])","v":0},{"$f":"SUBTOTAL(109,Prisustvovanjeudecembru[Ne])","v":0},{"$f":"SUBTOTAL(109,Prisustvovanjeudecembru[P])","v":0},{"$f":"SUBTOTAL(109,Prisustvovanjeudecembru[Dani odsustvovanja])","v":0}]

{"sheet":"Januar","index":7,"n_rows":12,"n_cols":39,"rows_kept":12,"merged":[[4,34,4,38]]}
["EVIDENCIJA O PRISUSTVOVANJU UČENIKA",{"$nulls":36},"Početak školske godine:",{"$f":"Kalendarskagodina","v":2012}]
[]
[null,null,{"$f":"Teksthromakija","v":"HROMA KI "},{"$f":"Šifra1","v":"Z"},{"$f":"Tekstšifre1","v":"Zakasnio"},null,null,{"$f":"Šifra2","v":"O"},{"$f":"Tekstšifre2","v":"Opravdan"},null,null,{"$f":"Šifra3","v":"Ne"},{"$f":"Tekstšifre3","v":"Neopravdan"},null,null,{"$f":"Šifra4","v":"P"},{"$f":"Tekstšifre4","v":"Prisutan"},null,null,{"$f":"Šifra5","v":"N"},{"$f":"Tekstšifre5","v":"Nema škole"}]
[]
[null,{"$f":"DATE(Kalendarskagodina+1,1,1)","v":"2013-01-01"},null,{"$f":"TEXT(WEEKDAY(DATE(Kalendarskagodina+1,1,1),1),\"aaa\")","v":"uto"},{"$f":"TEXT(WEEKDAY(DATE(Kalendarskagodina+1,1,2),1),\"aaa\")","v":"sre"},{"$f":"TEXT(WEEKDAY(DATE(Kalendarskagodina+1,1,3),1),\"aaa\")","v":"čet"},{"$f":"TEXT(WEEKDAY(DATE(Kalendarskagodina+1,1,4),1),\"aaa\")","v":"pet"},{"$f":"TEXT(WEEKDAY(DATE(Kalendarskagodina+1,1,5),1),\"aaa\")","v":"sub"},{"$f":"TEXT(WEEKDAY(DATE(Kalendarskagodina+1,1,6),1),\"aaa\")","v":"ned"},{"$f":"TEXT(WEEKDAY(DATE(Kalendarskagodina+1,1,7),1),\"aaa\")","v":"pon"},{"$f":"TEXT(WEEKDAY(DATE(Kalendarskagodina+1,1,8),1),\"aaa\")","v":"uto"},{"$f":"TEXT(WEEKDAY(DATE(Kalendarskagodina+1,1,9),1),\"aaa\")","v":"sre"},{"$f":"TEXT(WEEKDAY(DATE(Kalendarskagodina+1,1,10),1),\"aaa\")","v":"čet"},{"$f":"TEXT(WEEKDAY(DATE(Kalendarskagodina+1,1,11),1),\"aaa\")","v":"pet"},{"$f":"TEXT(WEEKDAY(DATE(Kalendarskagodina+1,1,12),1),\"aaa\")","v":"sub"},{"$f":"TEXT(WEEKDAY(DATE(Kalendarskagodina+1,1,13),1),\"aaa\")","v":"ned"},{"$f":"TEXT(WEEKDAY(DATE(Kalendarskagodina+1,1,14),1),\"aaa\")","v":"pon"},{"$f":"TEXT(WEEKDAY(DATE(Kalendarskagodina+1,1,15),1),\"aaa\")","v":"uto"},{"$f":"TEXT(WEEKDAY(DATE(Kalendarskagodina+1,1,16),1),\"aaa\")","v":"sre"},{"$f":"TEXT(WEEKDAY(DATE(Kalendarskagodina+1,1,17),1),\"aaa\")","v":"čet"},{"$f":"TEXT(WEEKDAY(DATE(Kalendarskagodina+1,1,18),1),\"aaa\")","v":"pet"},{"$f":"TEXT(WEEKDAY(DATE(Kalendarskagodina+1,1,19),1),\"aaa\")","v":"sub"},{"$f":"TEXT(WEEKDAY(DATE(Kalendarskagodina+1,1,20),1),\"aaa\")","v":"ned"},{"$f":"TEXT(WEEKDAY(DATE(Kalendarskagodina+1,1,21),1),\"aaa\")","v":"pon"},{"$f":"TEXT(WEEKDAY(DATE(Kalendarskagodina+1,1,22),1),\"aaa\")","v":"uto"},{"$f":"TEXT(WEEKDAY(DATE(Kalendarskagodina+1,1,23),1),\"aaa\")","v":"sre"},{"$f":"TEXT(WEEKDAY(DATE(Kalendarskagodina+1,1,24),1),\"aaa\")","v":"čet"},{"$f":"TEXT(WEEKDAY(DATE(Kalendarskagodina+1,1,25),1),\"aaa\")","v":"pet"},{"$f":"TEXT(WEEKDAY(DATE(Kalendarskagodina+1,1,26),1),\"aaa\")","v":"sub"},{"$f":"TEXT(WEEKDAY(DATE(Kalendarskagodina+1,1,27),1),\"aaa\")","v":"ned"},{"$f":"TEXT(WEEKDAY(DATE(Kalendarskagodina+1,1,28),1),\"aaa\")","v":"pon"},{"$f":"TEXT(WEEKDAY(DATE(Kalendarskagodina+1,1,29),1),\"aaa\")","v":"uto"},{"$f":"TEXT(WEEKDAY(DATE(Kalendarskagodina+1,1,30),1),\"aaa\")","v":"sre"},{"$f":"TEXT(WEEKDAY(DATE(Kalendarskagodina+1,1,31),1),\"aaa\")","v":"čet"},"Ukupne vrednosti"]
[null,"ID učenika","Ime i prezime učenika","1","2","3","4","5","6","7","8","9","10","11","12","13","14","15","16","17","18","19","20","21","22","23","24","25","26","27","28","29","30","31","Z","O","Ne","P","Dani odsustvovanja"]
[null,null,{"$f":"IFERROR(VLOOKUP(Prisustvovanjeujanuaru[[#This Row],[ID učenika]],Listaučenika[],18,FALSE),\"\")","v":""},{"$nulls":31},{"$f":"COUNTIF(Prisustvovanjeujanuaru[[#This Row],[1]:[31]],Šifra1)","v":0},{"$f":"COUNTIF(Prisustvovanjeujanuaru[[#This Row],[1]:[31]],Šifra2)","v":0},{"$f":"COUNTIF(Prisustvovanjeujanuaru[[#This Row],[1]:[31]],Šifra3)","v":0},{"$f":"COUNTIF(Prisustvovanjeujanuaru[[#This Row],[1]:[31]],Šifra4)","v":0},{"$f":"SUM(Prisustvovanjeuseptembru[[#This Row],[O]:[Ne]])","v":0}]
[null,null,{"$f":"IFERROR(VLOOKUP(Prisustvovanjeujanuaru[[#This Row],[ID učenika]],Listaučenika[],18,FALSE),\"\")","v":""},{"$nulls":31},{"$f":"COUNTIF(Prisustvovanjeujanuaru[[#This Row],[1]:[31]],Šifra1)","v":0},{"$f":"COUNTIF(Prisustvovanjeujanuaru[[#This Row],[1]:[31]],Šifra2)","v":0},{"$f":"COUNTIF(Prisustvovanjeujanuaru[[#This Row],[1]:[31]],Šifra3)","v":0},{"$f":"COUNTIF(Prisustvovanjeujanuaru[[#This Row],[1]:[31]],Šifra4)","v":0},{"$f":"SUM(Prisustvovanjeuseptembru[[#This Row],[O]:[Ne]])","v":0}]
[null,null,{"$f":"IFERROR(VLOOKUP(Prisustvovanjeujanuaru[[#This Row],[ID učenika]],Listaučenika[],18,FALSE),\"\")","v":""},{"$nulls":31},{"$f":"COUNTIF(Prisustvovanjeujanuaru[[#This Row],[1]:[31]],Šifra1)","v":0},{"$f":"COUNTIF(Prisustvovanjeujanuaru[[#This Row],[1]:[31]],Šifra2)","v":0},{"$f":"COUNTIF(Prisustvovanjeujanuaru[[#This Row],[1]:[31]],Šifra3)","v":0},{"$f":"COUNTIF(Prisustvovanjeujanuaru[[#This Row],[1]:[31]],Šifra4)","v":0},{"$f":"SUM(Prisustvovanjeuseptembru[[#This Row],[O]:[Ne]])","v":0}]
[null,null,{"$f":"IFERROR(VLOOKUP(Prisustvovanjeujanuaru[[#This Row],[ID učenika]],Listaučenika[],18,FALSE),\"\")","v":""},{"$nulls":31},{"$f":"COUNTIF(Prisustvovanjeujanuaru[[#This Row],[1]:[31]],Šifra1)","v":0},{"$f":"COUNTIF(Prisustvovanjeujanuaru[[#This Row],[1]:[31]],Šifra2)","v":0},{"$f":"COUNTIF(Prisustvovanjeujanuaru[[#This Row],[1]:[31]],Šifra3)","v":0},{"$f":"COUNTIF(Prisustvovanjeujanuaru[[#This Row],[1]:[31]],Šifra4)","v":0},{"$f":"SUM(Prisustvovanjeuseptembru[[#This Row],[O]:[Ne]])","v":0}]
[null,null,{"$f":"IFERROR(VLOOKUP(Prisustvovanjeujanuaru[[#This Row],[ID učenika]],Listaučenika[],18,FALSE),\"\")","v":""},{"$nulls":31},{"$f":"COUNTIF(Prisustvovanjeujanuaru[[#This Row],[1]:[31]],Šifra1)","v":0},{"$f":"COUNTIF(Prisustvovanjeujanuaru[[#This Row],[1]:[31]],Šifra2)","v":0},{"$f":"COUNTIF(Prisustvovanjeujanuaru[[#This Row],[1]:[31]],Šifra3)","v":0},{"$f":"COUNTIF(Prisustvovanjeujanuaru[[#This Row],[1]:[31]],Šifra4)","v":0},{"$f":"SUM(Prisustvovanjeuseptembru[[#This Row],[O]:[Ne]])","v":0}]
[null,null,"Ukupno dana odsustvovanja",{"$f":"COUNTIF(Prisustvovanjeujanuaru[1],\"Ne\")+COUNTIF(Prisustvovanjeujanuaru[1],\"O\")","v":0},{"$f":"COUNTIF(Prisustvovanjeujanuaru[2],\"Ne\")+COUNTIF(Prisustvovanjeujanuaru[2],\"O\")","v":0},{"$f":"COUNTIF(Prisustvovanjeujanuaru[3],\"Ne\")+COUNTIF(Prisustvovanjeujanuaru[3],\"O\")","v":0},{"$f":"COUNTIF(Prisustvovanjeujanuaru[4],\"Ne\")+COUNTIF(Prisustvovanjeujanuaru[4],\"O\")","v":0},{"$f":"COUNTIF(Prisustvovanjeujanuaru[5],\"Ne\")+COUNTIF(Prisustvovanjeujanuaru[5],\"O\")","v":0},{"$f":"COUNTIF(Prisustvovanjeujanuaru[6],\"Ne\")+COUNTIF(Prisustvovanjeujanuaru[6],\"O\")","v":0},{"$f":"COUNTIF(Prisustvovanjeujanuaru[7],\"Ne\")+COUNTIF(Prisustvovanjeujanuaru[7],\"O\")","v":0},{"$f":"COUNTIF(Prisustvovanjeujanuaru[8],\"Ne\")+COUNTIF(Prisustvovanjeujanuaru[8],\"O\")","v":0},{"$f":"COUNTIF(Prisustvovanjeujanuaru[9],\"Ne\")+COUNTIF(Prisustvovanjeujanuaru[9],\"O\")","v":0},{"$f":"COUNTIF(Prisustvovanjeujanuaru[10],\"Ne\")+COUNTIF(Prisustvovanjeujanuaru[10],\"O\")","v":0},{"$f":"COUNTIF(Prisustvovanjeujanuaru[11],\"Ne\")+COUNTIF(Prisustvovanjeujanuaru[11],\"O\")","v":0},{"$f":"COUNTIF(Prisustvovanjeujanuaru[12],\"Ne\")+COUNTIF(Prisustvovanjeujanuaru[12],\"O\")","v":0},{"$f":"COUNTIF(Prisustvovanjeujanuaru[13],\"Ne\")+COUNTIF(Prisustvovanjeujanuaru[13],\"O\")","v":0},{"$f":"COUNTIF(Prisustvovanjeujanuaru[14],\"Ne\")+COUNTIF(Prisustvovanjeujanuaru[14],\"O\")","v":0},{"$f":"COUNTIF(Prisustvovanjeujanuaru[15],\"Ne\")+COUNTIF(Prisustvovanjeujanuaru[15],\"O\")","v":0},{"$f":"COUNTIF(Prisustvovanjeujanuaru[16],\"Ne\")+COUNTIF(Prisustvovanjeujanuaru[16],\"O\")","v":0},{"$f":"COUNTIF(Prisustvovanjeujanuaru[17],\"Ne\")+COUNTIF(Prisustvovanjeujanuaru[17],\"O\")","v":0},{"$f":"COUNTIF(Prisustvovanjeujanuaru[18],\"Ne\")+COUNTIF(Prisustvovanjeujanuaru[18],\"O\")","v":0},{"$f":"COUNTIF(Prisustvovanjeujanuaru[19],\"Ne\")+COUNTIF(Prisustvovanjeujanuaru[19],\"O\")","v":0},{"$f":"COUNTIF(Prisustvovanjeujanuaru[20],\"Ne\")+COUNTIF(Prisustvovanjeujanuaru[20],\"O\")","v":0},{"$f":"COUNTIF(Prisustvovanjeujanuaru[21],\"Ne\")+COUNTIF(Prisustvovanjeujanuaru[21],\"O\")","v":0},{"$f":"COUNTIF(Prisustvovanjeujanuaru[22],\"Ne\")+COUNTIF(Prisustvovanjeujanuaru[22],\"O\")","v":0},{"$f":"COUNTIF(Prisustvovanjeujanuaru[23],\"Ne\")+COUNTIF(Prisustvovanjeujanuaru[23],\"O\")","v":0},{"$f":"COUNTIF(Prisustvovanjeujanuaru[24],\"Ne\")+COUNTIF(Prisustvovanjeujanuaru[24],\"O\")","v":0},{"$f":"COUNTIF(Prisustvovanjeujanuaru[25],\"Ne\")+COUNTIF(Prisustvovanjeujanuaru[25],\"O\")","v":0},{"$f":"COUNTIF(Prisustvovanjeujanuaru[26],\"Ne\")+COUNTIF(Prisustvovanjeujanuaru[26],\"O\")","v":0},{"$f":"COUNTIF(Prisustvovanjeujanuaru[27],\"Ne\")+COUNTIF(Prisustvovanjeujanuaru[27],\"O\")","v":0},{"$f":"COUNTIF(Prisustvovanjeujanuaru[28],\"Ne\")+COUNTIF(Prisustvovanjeujanuaru[28],\"O\")","v":0},{"$f":"COUNTIF(Prisustvovanjeujanuaru[29],\"Ne\")+COUNTIF(Prisustvovanjeujanuaru[29],\"O\")","v":0},{"$f":"COUNTIF(Prisustvovanjeujanuaru[30],\"Ne\")+COUNTIF(Prisustvovanjeujanuaru[30],\"O\")","v":0},{"$f":"COUNTIF(Prisustvovanjeujanuaru[31],\"Ne\")+COUNTIF(Prisustvovanjeujanuaru[31],\"O\")","v":0},{"$f":"SUBTOTAL(109,Prisustvovanjeujanuaru[Z])","v":0},{"$f":"SUBTOTAL(109,Prisustvovanjeujanuaru[O])","v":0},{"$f":"SUBTOTAL(109,Prisustvovanjeujanuaru[Ne])","v":0},{"$f":"SUBTOTAL(109,Prisustvovanjeujanuaru[P])","v":0},{"$f":"SUBTOTAL(109,Prisustvovanjeujanuaru[Dani odsustvovanja])","v":0}]

{"sheet":"Februar","index":8,"n_rows":12,"n_cols":39,"rows_kept":12,"merged":[[4,34,4,38]]}
["EVIDENCIJA O PRISUSTVOVANJU UČENIKA",{"$nulls":36},"Početak školske godine:",{"$f":"Kalendarskagodina","v":2012}]
[]
[null,null,{"$f":"Teksthromakija","v":"HROMA KI "},{"$f":"Šifra1","v":"Z"},{"$f":"Tekstšifre1","v":"Zakasnio"},null,null,{"$f":"Šifra2","v":"O"},{"$f":"Tekstšifre2","v":"Opravdan"},null,null,{"$f":"Šifra3","v":"Ne"},{"$f":"Tekstšifre3","v":"Neopravdan"},null,null,{"$f":"Šifra4","v":"P"},{"$f":"Tekstšifre4","v":"Prisutan"},null,null,{"$f":"Šifra5","v":"N"},{"$f":"Tekstšifre5","v":"Nema škole"}]
[]
[null,{"$f":"DATE(Kalendarskagodina+1,2,1)","v":"2013-02-01"},null,{"$f":"TEXT(WEEKDAY(DATE(Kalendarskagodina+1,2,1),1),\"aaa\")","v":"pet"},{"$f":"TEXT(WEEKDAY(DATE(Kalendarskagodina+1,2,2),1),\"aaa\")","v":"sub"},{"$f":"TEXT(WEEKDAY(DATE(Kalendarskagodina+1,2,3),1),\"aaa\")","v":"ned"},{"$f":"TEXT(WEEKDAY(DATE(Kalendarskagodina+1,2,4),1),\"aaa\")","v":"pon"},{"$f":"TEXT(WEEKDAY(DATE(Kalendarskagodina+1,2,5),1),\"aaa\")","v":"uto"},{"$f":"TEXT(WEEKDAY(DATE(Kalendarskagodina+1,2,6),1),\"aaa\")","v":"sre"},{"$f":"TEXT(WEEKDAY(DATE(Kalendarskagodina+1,2,7),1),\"aaa\")","v":"čet"},{"$f":"TEXT(WEEKDAY(DATE(Kalendarskagodina+1,2,8),1),\"aaa\")","v":"pet"},{"$f":"TEXT(WEEKDAY(DATE(Kalendarskagodina+1,2,9),1),\"aaa\")","v":"sub"},{"$f":"TEXT(WEEKDAY(DATE(Kalendarskagodina+1,2,10),1),\"aaa\")","v":"ned"},{"$f":"TEXT(WEEKDAY(DATE(Kalendarskagodina+1,2,11),1),\"aaa\")","v":"pon"},{"$f":"TEXT(WEEKDAY(DATE(Kalendarskagodina+1,2,12),1),\"aaa\")","v":"uto"},{"$f":"TEXT(WEEKDAY(DATE(Kalendarskagodina+1,2,13),1),\"aaa\")","v":"sre"},{"$f":"TEXT(WEEKDAY(DATE(Kalendarskagodina+1,2,14),1),\"aaa\")","v":"čet"},{"$f":"TEXT(WEEKDAY(DATE(Kalendarskagodina+1,2,15),1),\"aaa\")","v":"pet"},{"$f":"TEXT(WEEKDAY(DATE(Kalendarskagodina+1,2,16),1),\"aaa\")","v":"sub"},{"$f":"TEXT(WEEKDAY(DATE(Kalendarskagodina+1,2,17),1),\"aaa\")","v":"ned"},{"$f":"TEXT(WEEKDAY(DATE(Kalendarskagodina+1,2,18),1),\"aaa\")","v":"pon"},{"$f":"TEXT(WEEKDAY(DATE(Kalendarskagodina+1,2,19),1),\"aaa\")","v":"uto"},{"$f":"TEXT(WEEKDAY(DATE(Kalendarskagodina+1,2,20),1),\"aaa\")","v":"sre"},{"$f":"TEXT(WEEKDAY(DATE(Kalendarskagodina+1,2,21),1),\"aaa\")","v":"čet"},{"$f":"TEXT(WEEKDAY(DATE(Kalendarskagodina+1,2,22),1),\"aaa\")","v":"pet"},{"$f":"TEXT(WEEKDAY(DATE(Kalendarskagodina+1,2,23),1),\"aaa\")","v":"sub"},{"$f":"TEXT(WEEKDAY(DATE(Kalendarskagodina+1,2,24),1),\"aaa\")","v":"ned"},{"$f":"TEXT(WEEKDAY(DATE(Kalendarskagodina+1,2,25),1),\"aaa\")","v":"pon"},{"$f":"TEXT(WEEKDAY(DATE(Kalendarskagodina+1,2,26),1),\"aaa\")","v":"uto"},{"$f":"TEXT(WEEKDAY(DATE(Kalendarskagodina+1,2,27),1),\"aaa\")","v":"sre"},{"$f":"TEXT(WEEKDAY(DATE(Kalendarskagodina+1,2,28),1),\"aaa\")","v":"čet"},{"$f":"TEXT(WEEKDAY(DATE(Kalendarskagodina+1,2,29),1),\"aaa\")","v":"pet"},null,null,"Ukupne vrednosti"]
[null,"ID učenika","Ime i prezime učenika","1","2","3","4","5","6","7","8","9","10","11","12","13","14","15","16","17","18","19","20","21","22","23","24","25","26","27","28","29","30","31","Z","O","Ne","P","Dani odsustvovanja"]
[null,null,{"$f":"IFERROR(VLOOKUP(Prisustvovanjeufebruaru[[#This Row],[ID učenika]],Listaučenika[],18,FALSE),\"\")","v":""},{"$nulls":31},{"$f":"COUNTIF(Prisustvovanjeufebruaru[[#This Row],[1]:[31]],Šifra1)","v":0},{"$f":"COUNTIF(Prisustvovanjeufebruaru[[#This Row],[1]:[31]],Šifra2)","v":0},{"$f":"COUNTIF(Prisustvovanjeufebruaru[[#This Row],[1]:[31]],Šifra3)","v":0},{"$f":"COUNTIF(Prisustvovanjeufebruaru[[#This Row],[1]:[31]],Šifra4)","v":0},{"$f":"SUM(Prisustvovanjeuseptembru[[#This Row],[O]:[Ne]])","v":0}]
[null,null,{"$f":"IFERROR(VLOOKUP(Prisustvovanjeufebruaru[[#This Row],[ID učenika]],Listaučenika[],18,FALSE),\"\")","v":""},{"$nulls":31},{"$f":"COUNTIF(Prisustvovanjeufebruaru[[#This Row],[1]:[31]],Šifra1)","v":0},{"$f":"COUNTIF(Prisustvovanjeufebruaru[[#This Row],[1]:[31]],Šifra2)","v":0},{"$f":"COUNTIF(Prisustvovanjeufebruaru[[#This Row],[1]:[31]],Šifra3)","v":0},{"$f":"COUNTIF(Prisustvovanjeufebruaru[[#This Row],[1]:[31]],Šifra4)","v":0},{"$f":"SUM(Prisustvovanjeuseptembru[[#This Row],[O]:[Ne]])","v":0}]
[null,null,{"$f":"IFERROR(VLOOKUP(Prisustvovanjeufebruaru[[#This Row],[ID učenika]],Listaučenika[],18,FALSE),\"\")","v":""},{"$nulls":31},{"$f":"COUNTIF(Prisustvovanjeufebruaru[[#This Row],[1]:[31]],Šifra1)","v":0},{"$f":"COUNTIF(Prisustvovanjeufebruaru[[#This Row],[1]:[31]],Šifra2)","v":0},{"$f":"COUNTIF(Prisustvovanjeufebruaru[[#This Row],[1]:[31]],Šifra3)","v":0},{"$f":"COUNTIF(Prisustvovanjeufebruaru[[#This Row],[1]:[31]],Šifra4)","v":0},{"$f":"SUM(Prisustvovanjeuseptembru[[#This Row],[O]:[Ne]])","v":0}]
[null,null,{"$f":"IFERROR(VLOOKUP(Prisustvovanjeufebruaru[[#This Row],[ID učenika]],Listaučenika[],18,FALSE),\"\")","v":""},{"$nulls":31},{"$f":"COUNTIF(Prisustvovanjeufebruaru[[#This Row],[1]:[31]],Šifra1)","v":0},{"$f":"COUNTIF(Prisustvovanjeufebruaru[[#This Row],[1]:[31]],Šifra2)","v":0},{"$f":"COUNTIF(Prisustvovanjeufebruaru[[#This Row],[1]:[31]],Šifra3)","v":0},{"$f":"COUNTIF(Prisustvovanjeufebruaru[[#This Row],[1]:[31]],Šifra4)","v":0},{"$f":"SUM(Prisustvovanjeuseptembru[[#This Row],[O]:[Ne]])","v":0}]
[null,null,{"$f":"IFERROR(VLOOKUP(Prisustvovanjeufebruaru[[#This Row],[ID učenika]],Listaučenika[],18,FALSE),\"\")","v":""},{"$nulls":31},{"$f":"COUNTIF(Prisustvovanjeufebruaru[[#This Row],[1]:[31]],Šifra1)","v":0},{"$f":"COUNTIF(Prisustvovanjeufebruaru[[#This Row],[1]:[31]],Šifra2)","v":0},{"$f":"COUNTIF(Prisustvovanjeufebruaru[[#This Row],[1]:[31]],Šifra3)","v":0},{"$f":"COUNTIF(Prisustvovanjeufebruaru[[#This Row],[1]:[31]],Šifra4)","v":0},{"$f":"SUM(Prisustvovanjeuseptembru[[#This Row],[O]:[Ne]])","v":0}]
[null,null,"Ukupno dana odsustvovanja",{"$f":"COUNTIF(Prisustvovanjeufebruaru[1],\"Ne\")+COUNTIF(Prisustvovanjeufebruaru[1],\"O\")","v":0},{"$f":"COUNTIF(Prisustvovanjeufebruaru[2],\"Ne\")+COUNTIF(Prisustvovanjeufebruaru[2],\"O\")","v":0},{"$f":"COUNTIF(Prisustvovanjeufebruaru[3],\"Ne\")+COUNTIF(Prisustvovanjeufebruaru[3],\"O\")","v":0},{"$f":"COUNTIF(Prisustvovanjeufebruaru[4],\"Ne\")+COUNTIF(Prisustvovanjeufebruaru[4],\"O\")","v":0},{"$f":"COUNTIF(Prisustvovanjeufebruaru[5],\"Ne\")+COUNTIF(Prisustvovanjeufebruaru[5],\"O\")","v":0},{"$f":"COUNTIF(Prisustvovanjeufebruaru[6],\"Ne\")+COUNTIF(Prisustvovanjeufebruaru[6],\"O\")","v":0},{"$f":"COUNTIF(Prisustvovanjeufebruaru[7],\"Ne\")+COUNTIF(Prisustvovanjeufebruaru[7],\"O\")","v":0},{"$f":"COUNTIF(Prisustvovanjeufebruaru[8],\"Ne\")+COUNTIF(Prisustvovanjeufebruaru[8],\"O\")","v":0},{"$f":"COUNTIF(Prisustvovanjeufebruaru[9],\"Ne\")+COUNTIF(Prisustvovanjeufebruaru[9],\"O\")","v":0},{"$f":"COUNTIF(Prisustvovanjeufebruaru[10],\"Ne\")+COUNTIF(Prisustvovanjeufebruaru[10],\"O\")","v":0},{"$f":"COUNTIF(Prisustvovanjeufebruaru[11],\"Ne\")+COUNTIF(Prisustvovanjeufebruaru[11],\"O\")","v":0},{"$f":"COUNTIF(Prisustvovanjeufebruaru[12],\"Ne\")+COUNTIF(Prisustvovanjeufebruaru[12],\"O\")","v":0},{"$f":"COUNTIF(Prisustvovanjeufebruaru[13],\"Ne\")+COUNTIF(Prisustvovanjeufebruaru[13],\"O\")","v":0},{"$f":"COUNTIF(Prisustvovanjeufebruaru[14],\"Ne\")+COUNTIF(Prisustvovanjeufebruaru[14],\"O\")","v":0},{"$f":"COUNTIF(Prisustvovanjeufebruaru[15],\"Ne\")+COUNTIF(Prisustvovanjeufebruaru[15],\"O\")","v":0},{"$f":"COUNTIF(Prisustvovanjeufebruaru[16],\"Ne\")+COUNTIF(Prisustvovanjeufebruaru[16],\"O\")","v":0},{"$f":"COUNTIF(Prisustvovanjeufebruaru[17],\"Ne\")+COUNTIF(Prisustvovanjeufebruaru[17],\"O\")","v":0},{"$f":"COUNTIF(Prisustvovanjeufebruaru[18],\"Ne\")+COUNTIF(Prisustvovanjeufebruaru[18],\"O\")","v":0},{"$f":"COUNTIF(Prisustvovanjeufebruaru[19],\"Ne\")+COUNTIF(Prisustvovanjeufebruaru[19],\"O\")","v":0},{"$f":"COUNTIF(Prisustvovanjeufebruaru[20],\"Ne\")+COUNTIF(Prisustvovanjeufebruaru[20],\"O\")","v":0},{"$f":"COUNTIF(Prisustvovanjeufebruaru[21],\"Ne\")+COUNTIF(Prisustvovanjeufebruaru[21],\"O\")","v":0},{"$f":"COUNTIF(Prisustvovanjeufebruaru[22],\"Ne\")+COUNTIF(Prisustvovanjeufebruaru[22],\"O\")","v":0},{"$f":"COUNTIF(Prisustvovanjeufebruaru[23],\"Ne\")+COUNTIF(Prisustvovanjeufebruaru[23],\"O\")","v":0},{"$f":"COUNTIF(Prisustvovanjeufebruaru[24],\"Ne\")+COUNTIF(Prisustvovanjeufebruaru[24],\"O\")","v":0},{"$f":"COUNTIF(Prisustvovanjeufebruaru[25],\"Ne\")+COUNTIF(Prisustvovanjeufebruaru[25],\"O\")","v":0},{"$f":"COUNTIF(Prisustvovanjeufebruaru[26],\"Ne\")+COUNTIF(Prisustvovanjeufebruaru[26],\"O\")","v":0},{"$f":"COUNTIF(Prisustvovanjeufebruaru[27],\"Ne\")+COUNTIF(Prisustvovanjeufebruaru[27],\"O\")","v":0},{"$f":"COUNTIF(Prisustvovanjeufebruaru[28],\"Ne\")+COUNTIF(Prisustvovanjeufebruaru[28],\"O\")","v":0},{"$f":"COUNTIF(Prisustvovanjeufebruaru[29],\"Ne\")+COUNTIF(Prisustvovanjeufebruaru[29],\"O\")","v":0},{"$f":"COUNTIF(Prisustvovanjeufebruaru[30],\"Ne\")+COUNTIF(Prisustvovanjeufebruaru[30],\"O\")","v":0},{"$f":"COUNTIF(Prisustvovanjeufebruaru[31],\"Ne\")+COUNTIF(Prisustvovanjeufebruaru[31],\"O\")","v":0},{"$f":"SUBTOTAL(109,Prisustvovanjeufebruaru[Z])","v":0},{"$f":"SUBTOTAL(109,Prisustvovanjeufebruaru[O])","v":0},{"$f":"SUBTOTAL(109,Prisustvovanjeufebruaru[Ne])","v":0},{"$f":"SUBTOTAL(109,Prisustvovanjeufebruaru[P])","v":0},{"$f":"SUBTOTAL(109,Prisustvovanjeufebruaru[Dani odsustvovanja])","v":0}]

{"sheet":"Mart","index":9,"n_rows":12,"n_cols":39,"rows_kept":12,"merged":[[4,34,4,38]]}
["EVIDENCIJA O PRISUSTVOVANJU UČENIKA",{"$nulls":36},"Početak školske godine:",{"$f":"Kalendarskagodina","v":2012}]
[]
[null,null,{"$f":"Teksthromakija","v":"HROMA KI "},{"$f":"Šifra1","v":"Z"},{"$f":"Tekstšifre1","v":"Zakasnio"},null,null,{"$f":"Šifra2","v":"O"},{"$f":"Tekstšifre2","v":"Opravdan"},null,null,{"$f":"Šifra3","v":"Ne"},{"$f":"Tekstšifre3","v":"Neopravdan"},null,null,{"$f":"Šifra4","v":"P"},{"$f":"Tekstšifre4","v":"Prisutan"},null,null,{"$f":"Šifra5","v":"N"},{"$f":"Tekstšifre5","v":"Nema škole"}]
[]
[null,{"$f":"DATE(Kalendarskagodina+1,3,1)","v":"2013-03-01"},null,{"$f":"TEXT(WEEKDAY(DATE(Kalendarskagodina+1,3,1),1),\"aaa\")","v":"pet"},{"$f":"TEXT(WEEKDAY(DATE(Kalendarskagodina+1,3,2),1),\"aaa\")","v":"sub"},{"$f":"TEXT(WEEKDAY(DATE(Kalendarskagodina+1,3,3),1),\"aaa\")","v":"ned"},{"$f":"TEXT(WEEKDAY(DATE(Kalendarskagodina+1,3,4),1),\"aaa\")","v":"pon"},{"$f":"TEXT(WEEKDAY(DATE(Kalendarskagodina+1,3,5),1),\"aaa\")","v":"uto"},{"$f":"TEXT(WEEKDAY(DATE(Kalendarskagodina+1,3,6),1),\"aaa\")","v":"sre"},{"$f":"TEXT(WEEKDAY(DATE(Kalendarskagodina+1,3,7),1),\"aaa\")","v":"čet"},{"$f":"TEXT(WEEKDAY(DATE(Kalendarskagodina+1,3,8),1),\"aaa\")","v":"pet"},{"$f":"TEXT(WEEKDAY(DATE(Kalendarskagodina+1,3,9),1),\"aaa\")","v":"sub"},{"$f":"TEXT(WEEKDAY(DATE(Kalendarskagodina+1,3,10),1),\"aaa\")","v":"ned"},{"$f":"TEXT(WEEKDAY(DATE(Kalendarskagodina+1,3,11),1),\"aaa\")","v":"pon"},{"$f":"TEXT(WEEKDAY(DATE(Kalendarskagodina+1,3,12),1),\"aaa\")","v":"uto"},{"$f":"TEXT(WEEKDAY(DATE(Kalendarskagodina+1,3,13),1),\"aaa\")","v":"sre"},{"$f":"TEXT(WEEKDAY(DATE(Kalendarskagodina+1,3,14),1),\"aaa\")","v":"čet"},{"$f":"TEXT(WEEKDAY(DATE(Kalendarskagodina+1,3,15),1),\"aaa\")","v":"pet"},{"$f":"TEXT(WEEKDAY(DATE(Kalendarskagodina+1,3,16),1),\"aaa\")","v":"sub"},{"$f":"TEXT(WEEKDAY(DATE(Kalendarskagodina+1,3,17),1),\"aaa\")","v":"ned"},{"$f":"TEXT(WEEKDAY(DATE(Kalendarskagodina+1,3,18),1),\"aaa\")","v":"pon"},{"$f":"TEXT(WEEKDAY(DATE(Kalendarskagodina+1,3,19),1),\"aaa\")","v":"uto"},{"$f":"TEXT(WEEKDAY(DATE(Kalendarskagodina+1,3,20),1),\"aaa\")","v":"sre"},{"$f":"TEXT(WEEKDAY(DATE(Kalendarskagodina+1,3,21),1),\"aaa\")","v":"čet"},{"$f":"TEXT(WEEKDAY(DATE(Kalendarskagodina+1,3,22),1),\"aaa\")","v":"pet"},{"$f":"TEXT(WEEKDAY(DATE(Kalendarskagodina+1,3,23),1),\"aaa\")","v":"sub"},{"$f":"TEXT(WEEKDAY(DATE(Kalendarskagodina+1,3,24),1),\"aaa\")","v":"ned"},{"$f":"TEXT(WEEKDAY(DATE(Kalendarskagodina+1,3,25),1),\"aaa\")","v":"pon"},{"$f":"TEXT(WEEKDAY(DATE(Kalendarskagodina+1,3,26),1),\"aaa\")","v":"uto"},{"$f":"TEXT(WEEKDAY(DATE(Kalendarskagodina+1,3,27),1),\"aaa\")","v":"sre"},{"$f":"TEXT(WEEKDAY(DATE(Kalendarskagodina+1,3,28),1),\"aaa\")","v":"čet"},{"$f":"TEXT(WEEKDAY(DATE(Kalendarskagodina+1,3,29),1),\"aaa\")","v":"pet"},{"$f":"TEXT(WEEKDAY(DATE(Kalendarskagodina+1,3,30),1),\"aaa\")","v":"sub"},{"$f":"TEXT(WEEKDAY(DATE(Kalendarskagodina+1,3,31),1),\"aaa\")","v":"ned"},"Ukupne vrednosti"]
[null,"ID učenika","Ime i prezime učenika","1","2","3","4","5","6","7","8","9","10","11","12","13","14","15","16","17","18","19","20","21","22","23","24","25","26","27","28","29","30","31","Z","O","Ne","P","Dani odsustvovanja"]
[null,null,{"$f":"IFERROR(VLOOKUP(Prisustvovanjeumartu[[#This Row],[ID učenika]],Listaučenika[],18,FALSE),\"\")","v":""},{"$nulls":31},{"$f":"COUNTIF(Prisustvovanjeumartu[[#This Row],[1]:[31]],Šifra1)","v":0},{"$f":"COUNTIF(Prisustvovanjeumartu[[#This Row],[1]:[31]],Šifra2)","v":0},{"$f":"COUNTIF(Prisustvovanjeumartu[[#This Row],[1]:[31]],Šifra3)","v":0},{"$f":"COUNTIF(Prisustvovanjeumartu[[#This Row],[1]:[31]],Šifra4)","v":0},{"$f":"SUM(Prisustvovanjeuseptembru[[#This Row],[O]:[Ne]])","v":0}]
[null,null,{"$f":"IFERROR(VLOOKUP(Prisustvovanjeumartu[[#This Row],[ID učenika]],Listaučenika[],18,FALSE),\"\")","v":""},{"$nulls":31},{"$f":"COUNTIF(Prisustvovanjeumartu[[#This Row],[1]:[31]],Šifra1)","v":0},{"$f":"COUNTIF(Prisustvovanjeumartu[[#This Row],[1]:[31]],Šifra2)","v":0},{"$f":"COUNTIF(Prisustvovanjeumartu[[#This Row],[1]:[31]],Šifra3)","v":0},{"$f":"COUNTIF(Prisustvovanjeumartu[[#This Row],[1]:[31]],Šifra4)","v":0},{"$f":"SUM(Prisustvovanjeuseptembru[[#This Row],[O]:[Ne]])","v":0}]
[null,null,{"$f":"IFERROR(VLOOKUP(Prisustvovanjeumartu[[#This Row],[ID učenika]],Listaučenika[],18,FALSE),\"\")","v":""},{"$nulls":31},{"$f":"COUNTIF(Prisustvovanjeumartu[[#This Row],[1]:[31]],Šifra1)","v":0},{"$f":"COUNTIF(Prisustvovanjeumartu[[#This Row],[1]:[31]],Šifra2)","v":0},{"$f":"COUNTIF(Prisustvovanjeumartu[[#This Row],[1]:[31]],Šifra3)","v":0},{"$f":"COUNTIF(Prisustvovanjeumartu[[#This Row],[1]:[31]],Šifra4)","v":0},{"$f":"SUM(Prisustvovanjeuseptembru[[#This Row],[O]:[Ne]])","v":0}]
[null,null,{"$f":"IFERROR(VLOOKUP(Prisustvovanjeumartu[[#This Row],[ID učenika]],Listaučenika[],18,FALSE),\"\")","v":""},{"$nulls":31},{"$f":"COUNTIF(Prisustvovanjeumartu[[#This Row],[1]:[31]],Šifra1)","v":0},{"$f":"COUNTIF(Prisustvovanjeumartu[[#This Row],[1]:[31]],Šifra2)","v":0},{"$f":"COUNTIF(Prisustvovanjeumartu[[#This Row],[1]:[31]],Šifra3)","v":0},{"$f":"COUNTIF(Prisustvovanjeumartu[[#This Row],[1]:[31]],Šifra4)","v":0},{"$f":"SUM(Prisustvovanjeuseptembru[[#This Row],[O]:[Ne]])","v":0}]
[null,null,{"$f":"IFERROR(VLOOKUP(Prisustvovanjeumartu[[#This Row],[ID učenika]],Listaučenika[],18,FALSE),\"\")","v":""},{"$nulls":31},{"$f":"COUNTIF(Prisustvovanjeumartu[[#This Row],[1]:[31]],Šifra1)","v":0},{"$f":"COUNTIF(Prisustvovanjeumartu[[#This Row],[1]:[31]],Šifra2)","v":0},{"$f":"COUNTIF(Prisustvovanjeumartu[[#This Row],[1]:[31]],Šifra3)","v":0},{"$f":"COUNTIF(Prisustvovanjeumartu[[#This Row],[1]:[31]],Šifra4)","v":0},{"$f":"SUM(Prisustvovanjeuseptembru[[#This Row],[O]:[Ne]])","v":0}]
[null,null,"Ukupno dana odsustvovanja",{"$f":"COUNTIF(Prisustvovanjeumartu[1],\"Ne\")+COUNTIF(Prisustvovanjeumartu[1],\"O\")","v":0},{"$f":"COUNTIF(Prisustvovanjeumartu[2],\"Ne\")+COUNTIF(Prisustvovanjeumartu[2],\"O\")","v":0},{"$f":"COUNTIF(Prisustvovanjeumartu[3],\"Ne\")+COUNTIF(Prisustvovanjeumartu[3],\"O\")","v":0},{"$f":"COUNTIF(Prisustvovanjeumartu[4],\"Ne\")+COUNTIF(Prisustvovanjeumartu[4],\"O\")","v":0},{"$f":"COUNTIF(Prisustvovanjeumartu[5],\"Ne\")+COUNTIF(Prisustvovanjeumartu[5],\"O\")","v":0},{"$f":"COUNTIF(Prisustvovanjeumartu[6],\"Ne\")+COUNTIF(Prisustvovanjeumartu[6],\"O\")","v":0},{"$f":"COUNTIF(Prisustvovanjeumartu[7],\"Ne\")+COUNTIF(Prisustvovanjeumartu[7],\"O\")","v":0},{"$f":"COUNTIF(Prisustvovanjeumartu[8],\"Ne\")+COUNTIF(Prisustvovanjeumartu[8],\"O\")","v":0},{"$f":"COUNTIF(Prisustvovanjeumartu[9],\"Ne\")+COUNTIF(Prisustvovanjeumartu[9],\"O\")","v":0},{"$f":"COUNTIF(Prisustvovanjeumartu[10],\"Ne\")+COUNTIF(Prisustvovanjeumartu[10],\"O\")","v":0},{"$f":"COUNTIF(Prisustvovanjeumartu[11],\"Ne\")+COUNTIF(Prisustvovanjeumartu[11],\"O\")","v":0},{"$f":"COUNTIF(Prisustvovanjeumartu[12],\"Ne\")+COUNTIF(Prisustvovanjeumartu[12],\"O\")","v":0},{"$f":"COUNTIF(Prisustvovanjeumartu[13],\"Ne\")+COUNTIF(Prisustvovanjeumartu[13],\"O\")","v":0},{"$f":"COUNTIF(Prisustvovanjeumartu[14],\"Ne\")+COUNTIF(Prisustvovanjeumartu[14],\"O\")","v":0},{"$f":"COUNTIF(Prisustvovanjeumartu[15],\"Ne\")+COUNTIF(Prisustvovanjeumartu[15],\"O\")","v":0},{"$f":"COUNTIF(Prisustvovanjeumartu[16],\"Ne\")+COUNTIF(Prisustvovanjeumartu[16],\"O\")","v":0},{"$f":"COUNTIF(Prisustvovanjeumartu[17],\"Ne\")+COUNTIF(Prisustvovanjeumartu[17],\"O\")","v":0},{"$f":"COUNTIF(Prisustvovanjeumartu[18],\"Ne\")+COUNTIF(Prisustvovanjeumartu[18],\"O\")","v":0},{"$f":"COUNTIF(Prisustvovanjeumartu[19],\"Ne\")+COUNTIF(Prisustvovanjeumartu[19],\"O\")","v":0},{"$f":"COUNTIF(Prisustvovanjeumartu[20],\"Ne\")+COUNTIF(Prisustvovanjeumartu[20],\"O\")","v":0},{"$f":"COUNTIF(Prisustvovanjeumartu[21],\"Ne\")+COUNTIF(Prisustvovanjeumartu[21],\"O\")","v":0},{"$f":"COUNTIF(Prisustvovanjeumartu[22],\"Ne\")+COUNTIF(Prisustvovanjeumartu[22],\"O\")","v":0},{"$f":"COUNTIF(Prisustvovanjeumartu[23],\"Ne\")+COUNTIF(Prisustvovanjeumartu[23],\"O\")","v":0},{"$f":"COUNTIF(Prisustvovanjeumartu[24],\"Ne\")+COUNTIF(Prisustvovanjeumartu[24],\"O\")","v":0},{"$f":"COUNTIF(Prisustvovanjeumartu[25],\"Ne\")+COUNTIF(Prisustvovanjeumartu[25],\"O\")","v":0},{"$f":"COUNTIF(Prisustvovanjeumartu[26],\"Ne\")+COUNTIF(Prisustvovanjeumartu[26],\"O\")","v":0},{"$f":"COUNTIF(Prisustvovanjeumartu[27],\"Ne\")+COUNTIF(Prisustvovanjeumartu[27],\"O\")","v":0},{"$f":"COUNTIF(Prisustvovanjeumartu[28],\"Ne\")+COUNTIF(Prisustvovanjeumartu[28],\"O\")","v":0},{"$f":"COUNTIF(Prisustvovanjeumartu[29],\"Ne\")+COUNTIF(Prisustvovanjeumartu[29],\"O\")","v":0},{"$f":"COUNTIF(Prisustvovanjeumartu[30],\"Ne\")+COUNTIF(Prisustvovanjeumartu[30],\"O\")","v":0},{"$f":"COUNTIF(Prisustvovanjeumartu[31],\"Ne\")+COUNTIF(Prisustvovanjeumartu[31],\"O\")","v":0},{"$f":"SUBTOTAL(109,Prisustvovanjeumartu[Z])","v":0},{"$f":"SUBTOTAL(109,Prisustvovanjeumartu[O])","v":0},{"$f":"SUBTOTAL(109,Prisustvovanjeumartu[Ne])","v":0},{"$f":"SUBTOTAL(109,Prisustvovanjeumartu[P])","v":0},{"$f":"SUBTOTAL(109,Prisustvovanjeumartu[Dani odsustvovanja])","v":0}]

{"sheet":"April","index":10,"n_rows":12,"n_cols":39,"rows_kept":12,"merged":[[4,34,4,38]]}
["EVIDENCIJA O PRISUSTVOVANJU UČENIKA",{"$nulls":36},"Početak školske godine:",{"$f":"Kalendarskagodina","v":2012}]
[]
[null,null,{"$f":"Teksthromakija","v":"HROMA KI "},{"$f":"Šifra1","v":"Z"},{"$f":"Tekstšifre1","v":"Zakasnio"},null,null,{"$f":"Šifra2","v":"O"},{"$f":"Tekstšifre2","v":"Opravdan"},null,null,{"$f":"Šifra3","v":"Ne"},{"$f":"Tekstšifre3","v":"Neopravdan"},null,null,{"$f":"Šifra4","v":"P"},{"$f":"Tekstšifre4","v":"Prisutan"},null,null,{"$f":"Šifra5","v":"N"},{"$f":"Tekstšifre5","v":"Nema škole"}]
[]
[null,{"$f":"DATE(Kalendarskagodina+1,4,1)","v":"2013-04-01"},null,{"$f":"TEXT(WEEKDAY(DATE(Kalendarskagodina+1,4,1),1),\"aaa\")","v":"pon"},{"$f":"TEXT(WEEKDAY(DATE(Kalendarskagodina+1,4,2),1),\"aaa\")","v":"uto"},{"$f":"TEXT(WEEKDAY(DATE(Kalendarskagodina+1,4,3),1),\"aaa\")","v":"sre"},{"$f":"TEXT(WEEKDAY(DATE(Kalendarskagodina+1,4,4),1),\"aaa\")","v":"čet"},{"$f":"TEXT(WEEKDAY(DATE(Kalendarskagodina+1,4,5),1),\"aaa\")","v":"pet"},{"$f":"TEXT(WEEKDAY(DATE(Kalendarskagodina+1,4,6),1),\"aaa\")","v":"sub"},{"$f":"TEXT(WEEKDAY(DATE(Kalendarskagodina+1,4,7),1),\"aaa\")","v":"ned"},{"$f":"TEXT(WEEKDAY(DATE(Kalendarskagodina+1,4,8),1),\"aaa\")","v":"pon"},{"$f":"TEXT(WEEKDAY(DATE(Kalendarskagodina+1,4,9),1),\"aaa\")","v":"uto"},{"$f":"TEXT(WEEKDAY(DATE(Kalendarskagodina+1,4,10),1),\"aaa\")","v":"sre"},{"$f":"TEXT(WEEKDAY(DATE(Kalendarskagodina+1,4,11),1),\"aaa\")","v":"čet"},{"$f":"TEXT(WEEKDAY(DATE(Kalendarskagodina+1,4,12),1),\"aaa\")","v":"pet"},{"$f":"TEXT(WEEKDAY(DATE(Kalendarskagodina+1,4,13),1),\"aaa\")","v":"sub"},{"$f":"TEXT(WEEKDAY(DATE(Kalendarskagodina+1,4,14),1),\"aaa\")","v":"ned"},{"$f":"TEXT(WEEKDAY(DATE(Kalendarskagodina+1,4,15),1),\"aaa\")","v":"pon"},{"$f":"TEXT(WEEKDAY(DATE(Kalendarskagodina+1,4,16),1),\"aaa\")","v":"uto"},{"$f":"TEXT(WEEKDAY(DATE(Kalendarskagodina+1,4,17),1),\"aaa\")","v":"sre"},{"$f":"TEXT(WEEKDAY(DATE(Kalendarskagodina+1,4,18),1),\"aaa\")","v":"čet"},{"$f":"TEXT(WEEKDAY(DATE(Kalendarskagodina+1,4,19),1),\"aaa\")","v":"pet"},{"$f":"TEXT(WEEKDAY(DATE(Kalendarskagodina+1,4,20),1),\"aaa\")","v":"sub"},{"$f":"TEXT(WEEKDAY(DATE(Kalendarskagodina+1,4,21),1),\"aaa\")","v":"ned"},{"$f":"TEXT(WEEKDAY(DATE(Kalendarskagodina+1,4,22),1),\"aaa\")","v":"pon"},{"$f":"TEXT(WEEKDAY(DATE(Kalendarskagodina+1,4,23),1),\"aaa\")","v":"uto"},{"$f":"TEXT(WEEKDAY(DATE(Kalendarskagodina+1,4,24),1),\"aaa\")","v":"sre"},{"$f":"TEXT(WEEKDAY(DATE(Kalendarskagodina+1,4,25),1),\"aaa\")","v":"čet"},{"$f":"TEXT(WEEKDAY(DATE(Kalendarskagodina+1,4,26),1),\"aaa\")","v":"pet"},{"$f":"TEXT(WEEKDAY(DATE(Kalendarskagodina+1,4,27),1),\"aaa\")","v":"sub"},{"$f":"TEXT(WEEKDAY(DATE(Kalendarskagodina+1,4,28),1),\"aaa\")","v":"ned"},{"$f":"TEXT(WEEKDAY(DATE(Kalendarskagodina+1,4,29),1),\"aaa\")","v":"pon"},{"$f":"TEXT(WEEKDAY(DATE(Kalendarskagodina+1,4,30),1),\"aaa\")","v":"uto"},null,"Ukupne vrednosti"]
[null,"ID učenika","Ime i prezime učenika","1","2","3","4","5","6","7","8","9","10","11","12","13","14","15","16","17","18","19","20","21","22","23","24","25","26","27","28","29","30"," ","Z","O","Ne","P","Dani odsustvovanja"]
[null,null,{"$f":"IFERROR(VLOOKUP(Prisustvovanjeuaprilu[[#This Row],[ID učenika]],Listaučenika[],18,FALSE),\"\")","v":""},{"$nulls":31},{"$f":"COUNTIF(Prisustvovanjeuaprilu[[#This Row],[1]:[ ]],Šifra1)","v":0},{"$f":"COUNTIF(Prisustvovanjeuaprilu[[#This Row],[1]:[ ]],Šifra2)","v":0},{"$f":"COUNTIF(Prisustvovanjeuaprilu[[#This Row],[1]:[ ]],Šifra3)","v":0},{"$f":"COUNTIF(Prisustvovanjeuaprilu[[#This Row],[1]:[ ]],Šifra4)","v":0},{"$f":"SUM(Prisustvovanjeuseptembru[[#This Row],[O]:[Ne]])","v":0}]
[null,null,{"$f":"IFERROR(VLOOKUP(Prisustvovanjeuaprilu[[#This Row],[ID učenika]],Listaučenika[],18,FALSE),\"\")","v":""},{"$nulls":31},{"$f":"COUNTIF(Prisustvovanjeuaprilu[[#This Row],[1]:[ ]],Šifra1)","v":0},{"$f":"COUNTIF(Prisustvovanjeuaprilu[[#This Row],[1]:[ ]],Šifra2)","v":0},{"$f":"COUNTIF(Prisustvovanjeuaprilu[[#This Row],[1]:[ ]],Šifra3)","v":0},{"$f":"COUNTIF(Prisustvovanjeuaprilu[[#This Row],[1]:[ ]],Šifra4)","v":0},{"$f":"SUM(Prisustvovanjeuseptembru[[#This Row],[O]:[Ne]])","v":0}]
[null,null,{"$f":"IFERROR(VLOOKUP(Prisustvovanjeuaprilu[[#This Row],[ID učenika]],Listaučenika[],18,FALSE),\"\")","v":""},{"$nulls":31},{"$f":"COUNTIF(Prisustvovanjeuaprilu[[#This Row],[1]:[ ]],Šifra1)","v":0},{"$f":"COUNTIF(Prisustvovanjeuaprilu[[#This Row],[1]:[ ]],Šifra2)","v":0},{"$f":"COUNTIF(Prisustvovanjeuaprilu[[#This Row],[1]:[ ]],Šifra3)","v":0},{"$f":"COUNTIF(Prisustvovanjeuaprilu[[#This Row],[1]:[ ]],Šifra4)","v":0},{"$f":"SUM(Prisustvovanjeuseptembru[[#This Row],[O]:[Ne]])","v":0}]
[null,null,{"$f":"IFERROR(VLOOKUP(Prisustvovanjeuaprilu[[#This Row],[ID učenika]],Listaučenika[],18,FALSE),\"\")","v":""},{"$nulls":31},{"$f":"COUNTIF(Prisustvovanjeuaprilu[[#This Row],[1]:[ ]],Šifra1)","v":0},{"$f":"COUNTIF(Prisustvovanjeuaprilu[[#This Row],[1]:[ ]],Šifra2)","v":0},{"$f":"COUNTIF(Prisustvovanjeuaprilu[[#This Row],[1]:[ ]],Šifra3)","v":0},{"$f":"COUNTIF(Prisustvovanjeuaprilu[[#This Row],[1]:[ ]],Šifra4)","v":0},{"$f":"SUM(Prisustvovanjeuseptembru[[#This Row],[O]:[Ne]])","v":0}]
[null,null,{"$f":"IFERROR(VLOOKUP(Prisustvovanjeuaprilu[[#This Row],[ID učenika]],Listaučenika[],18,FALSE),\"\")","v":""},{"$nulls":31},{"$f":"COUNTIF(Prisustvovanjeuaprilu[[#This Row],[1]:[ ]],Šifra1)","v":0},{"$f":"COUNTIF(Prisustvovanjeuaprilu[[#This Row],[1]:[ ]],Šifra2)","v":0},{"$f":"COUNTIF(Prisustvovanjeuaprilu[[#This Row],[1]:[ ]],Šifra3)","v":0},{"$f":"COUNTIF(Prisustvovanjeuaprilu[[#This Row],[1]:[ ]],Šifra4)","v":0},{"$f":"SUM(Prisustvovanjeuseptembru[[#This Row],[O]:[Ne]])","v":0}]
[null,null,"Ukupno dana odsustvovanja",{"$f":"COUNTIF(Prisustvovanjeuaprilu[1],\"Ne\")+COUNTIF(Prisustvovanjeuaprilu[1],\"O\")","v":0},{"$f":"COUNTIF(Prisustvovanjeuaprilu[2],\"Ne\")+COUNTIF(Prisustvovanjeuaprilu[2],\"O\")","v":0},{"$f":"COUNTIF(Prisustvovanjeuaprilu[3],\"Ne\")+COUNTIF(Prisustvovanjeuaprilu[3],\"O\")","v":0},{"$f":"COUNTIF(Prisustvovanjeuaprilu[4],\"Ne\")+COUNTIF(Prisustvovanjeuaprilu[4],\"O\")","v":0},{"$f":"COUNTIF(Prisustvovanjeuaprilu[5],\"Ne\")+COUNTIF(Prisustvovanjeuaprilu[5],\"O\")","v":0},{"$f":"COUNTIF(Prisustvovanjeuaprilu[6],\"Ne\")+COUNTIF(Prisustvovanjeuaprilu[6],\"O\")","v":0},{"$f":"COUNTIF(Prisustvovanjeuaprilu[7],\"Ne\")+COUNTIF(Prisustvovanjeuaprilu[7],\"O\")","v":0},{"$f":"COUNTIF(Prisustvovanjeuaprilu[8],\"Ne\")+COUNTIF(Prisustvovanjeuaprilu[8],\"O\")","v":0},{"$f":"COUNTIF(Prisustvovanjeuaprilu[9],\"Ne\")+COUNTIF(Prisustvovanjeuaprilu[9],\"O\")","v":0},{"$f":"COUNTIF(Prisustvovanjeuaprilu[10],\"Ne\")+COUNTIF(Prisustvovanjeuaprilu[10],\"O\")","v":0},{"$f":"COUNTIF(Prisustvovanjeuaprilu[11],\"Ne\")+COUNTIF(Prisustvovanjeuaprilu[11],\"O\")","v":0},{"$f":"COUNTIF(Prisustvovanjeuaprilu[12],\"Ne\")+COUNTIF(Prisustvovanjeuaprilu[12],\"O\")","v":0},{"$f":"COUNTIF(Prisustvovanjeuaprilu[13],\"Ne\")+COUNTIF(Prisustvovanjeuaprilu[13],\"O\")","v":0},{"$f":"COUNTIF(Prisustvovanjeuaprilu[14],\"Ne\")+COUNTIF(Prisustvovanjeuaprilu[14],\"O\")","v":0},{"$f":"COUNTIF(Prisustvovanjeuaprilu[15],\"Ne\")+COUNTIF(Prisustvovanjeuaprilu[15],\"O\")","v":0},{"$f":"COUNTIF(Prisustvovanjeuaprilu[16],\"Ne\")+COUNTIF(Prisustvovanjeuaprilu[16],\"O\")","v":0},{"$f":"COUNTIF(Prisustvovanjeuaprilu[17],\"Ne\")+COUNTIF(Prisustvovanjeuaprilu[17],\"O\")","v":0},{"$f":"COUNTIF(Prisustvovanjeuaprilu[18],\"Ne\")+COUNTIF(Prisustvovanjeuaprilu[18],\"O\")","v":0},{"$f":"COUNTIF(Prisustvovanjeuaprilu[19],\"Ne\")+COUNTIF(Prisustvovanjeuaprilu[19],\"O\")","v":0},{"$f":"COUNTIF(Prisustvovanjeuaprilu[20],\"Ne\")+COUNTIF(Prisustvovanjeuaprilu[20],\"O\")","v":0},{"$f":"COUNTIF(Prisustvovanjeuaprilu[21],\"Ne\")+COUNTIF(Prisustvovanjeuaprilu[21],\"O\")","v":0},{"$f":"COUNTIF(Prisustvovanjeuaprilu[22],\"Ne\")+COUNTIF(Prisustvovanjeuaprilu[22],\"O\")","v":0},{"$f":"COUNTIF(Prisustvovanjeuaprilu[23],\"Ne\")+COUNTIF(Prisustvovanjeuaprilu[23],\"O\")","v":0},{"$f":"COUNTIF(Prisustvovanjeuaprilu[24],\"Ne\")+COUNTIF(Prisustvovanjeuaprilu[24],\"O\")","v":0},{"$f":"COUNTIF(Prisustvovanjeuaprilu[25],\"Ne\")+COUNTIF(Prisustvovanjeuaprilu[25],\"O\")","v":0},{"$f":"COUNTIF(Prisustvovanjeuaprilu[26],\"Ne\")+COUNTIF(Prisustvovanjeuaprilu[26],\"O\")","v":0},{"$f":"COUNTIF(Prisustvovanjeuaprilu[27],\"Ne\")+COUNTIF(Prisustvovanjeuaprilu[27],\"O\")","v":0},{"$f":"COUNTIF(Prisustvovanjeuaprilu[28],\"Ne\")+COUNTIF(Prisustvovanjeuaprilu[28],\"O\")","v":0},{"$f":"COUNTIF(Prisustvovanjeuaprilu[29],\"Ne\")+COUNTIF(Prisustvovanjeuaprilu[29],\"O\")","v":0},{"$f":"COUNTIF(Prisustvovanjeuaprilu[30],\"Ne\")+COUNTIF(Prisustvovanjeuaprilu[30],\"O\")","v":0},{"$f":"COUNTIF(Prisustvovanjeuaprilu[[ ]],\"Ne\")+COUNTIF(Prisustvovanjeuaprilu[[ ]],\"O\")","v":0},{"$f":"SUBTOTAL(109,Prisustvovanjeuaprilu[Z])","v":0},{"$f":"SUBTOTAL(109,Prisustvovanjeuaprilu[O])","v":0},{"$f":"SUBTOTAL(109,Prisustvovanjeuaprilu[Ne])","v":0},{"$f":"SUBTOTAL(109,Prisustvovanjeuaprilu[P])","v":0},{"$f":"SUBTOTAL(109,Prisustvovanjeuaprilu[Dani odsustvovanja])","v":0}]

{"sheet":"Maj","index":11,"n_rows":12,"n_cols":39,"rows_kept":12,"merged":[[4,34,4,38]]}
["EVIDENCIJA O PRISUSTVOVANJU UČENIKA",{"$nulls":36},"Početak školske godine:",{"$f":"Kalendarskagodina","v":2012}]
[]
[null,null,{"$f":"Teksthromakija","v":"HROMA KI "},{"$f":"Šifra1","v":"Z"},{"$f":"Tekstšifre1","v":"Zakasnio"},null,null,{"$f":"Šifra2","v":"O"},{"$f":"Tekstšifre2","v":"Opravdan"},null,null,{"$f":"Šifra3","v":"Ne"},{"$f":"Tekstšifre3","v":"Neopravdan"},null,null,{"$f":"Šifra4","v":"P"},{"$f":"Tekstšifre4","v":"Prisutan"},null,null,{"$f":"Šifra5","v":"N"},{"$f":"Tekstšifre5","v":"Nema škole"}]
[]
[null,{"$f":"DATE(Kalendarskagodina+1,5,1)","v":"2013-05-01"},null,{"$f":"TEXT(WEEKDAY(DATE(Kalendarskagodina+1,5,1),1),\"aaa\")","v":"sre"},{"$f":"TEXT(WEEKDAY(DATE(Kalendarskagodina+1,5,2),1),\"aaa\")","v":"čet"},{"$f":"TEXT(WEEKDAY(DATE(Kalendarskagodina+1,5,3),1),\"aaa\")","v":"pet"},{"$f":"TEXT(WEEKDAY(DATE(Kalendarskagodina+1,5,4),1),\"aaa\")","v":"sub"},{"$f":"TEXT(WEEKDAY(DATE(Kalendarskagodina+1,5,5),1),\"aaa\")","v":"ned"},{"$f":"TEXT(WEEKDAY(DATE(Kalendarskagodina+1,5,6),1),\"aaa\")","v":"pon"},{"$f":"TEXT(WEEKDAY(DATE(Kalendarskagodina+1,5,7),1),\"aaa\")","v":"uto"},{"$f":"TEXT(WEEKDAY(DATE(Kalendarskagodina+1,5,8),1),\"aaa\")","v":"sre"},{"$f":"TEXT(WEEKDAY(DATE(Kalendarskagodina+1,5,9),1),\"aaa\")","v":"čet"},{"$f":"TEXT(WEEKDAY(DATE(Kalendarskagodina+1,5,10),1),\"aaa\")","v":"pet"},{"$f":"TEXT(WEEKDAY(DATE(Kalendarskagodina+1,5,11),1),\"aaa\")","v":"sub"},{"$f":"TEXT(WEEKDAY(DATE(Kalendarskagodina+1,5,12),1),\"aaa\")","v":"ned"},{"$f":"TEXT(WEEKDAY(DATE(Kalendarskagodina+1,5,13),1),\"aaa\")","v":"pon"},{"$f":"TEXT(WEEKDAY(DATE(Kalendarskagodina+1,5,14),1),\"aaa\")","v":"uto"},{"$f":"TEXT(WEEKDAY(DATE(Kalendarskagodina+1,5,15),1),\"aaa\")","v":"sre"},{"$f":"TEXT(WEEKDAY(DATE(Kalendarskagodina+1,5,16),1),\"aaa\")","v":"čet"},{"$f":"TEXT(WEEKDAY(DATE(Kalendarskagodina+1,5,17),1),\"aaa\")","v":"pet"},{"$f":"TEXT(WEEKDAY(DATE(Kalendarskagodina+1,5,18),1),\"aaa\")","v":"sub"},{"$f":"TEXT(WEEKDAY(DATE(Kalendarskagodina+1,5,19),1),\"aaa\")","v":"ned"},{"$f":"TEXT(WEEKDAY(DATE(Kalendarskagodina+1,5,20),1),\"aaa\")","v":"pon"},{"$f":"TEXT(WEEKDAY(DATE(Kalendarskagodina+1,5,21),1),\"aaa\")","v":"uto"},{"$f":"TEXT(WEEKDAY(DATE(Kalendarskagodina+1,5,22),1),\"aaa\")","v":"sre"},{"$f":"TEXT(WEEKDAY(DATE(Kalendarskagodina+1,5,23),1),\"aaa\")","v":"čet"},{"$f":"TEXT(WEEKDAY(DATE(Kalendarskagodina+1,5,24),1),\"aaa\")","v":"pet"},{"$f":"TEXT(WEEKDAY(DATE(Kalendarskagodina+1,5,25),1),\"aaa\")","v":"sub"},{"$f":"TEXT(WEEKDAY(DATE(Kalendarskagodina+1,5,26),1),\"aaa\")","v":"ned"},{"$f":"TEXT(WEEKDAY(DATE(Kalendarskagodina+1,5,27),1),\"aaa\")","v":"pon"},{"$f":"TEXT(WEEKDAY(DATE(Kalendarskagodina+1,5,28),1),\"aaa\")","v":"uto"},{"$f":"TEXT(WEEKDAY(DATE(Kalendarskagodina+1,5,29),1),\"aaa\")","v":"sre"},{"$f":"TEXT(WEEKDAY(DATE(Kalendarskagodina+1,5,30),1),\"aaa\")","v":"čet"},{"$f":"TEXT(WEEKDAY(DATE(Kalendarskagodina+1,5,31),1),\"aaa\")","v":"pet"},"Ukupne vrednosti"]
[null,"ID učenika","Ime i prezime učenika","1","2","3","4","5","6","7","8","9","10","11","12","13","14","15","16","17","18","19","20","21","22","23","24","25","26","27","28","29","30","31","Z","O","Ne","P","Dani odsustvovanja"]
[null,null,{"$f":"IFERROR(VLOOKUP(Prisustvovanjeumaju[[#This Row],[ID učenika]],Listaučenika[],18,FALSE),\"\")","v":""},{"$nulls":31},{"$f":"COUNTIF(Prisustvovanjeumaju[[#This Row],[1]:[31]],Šifra1)","v":0},{"$f":"COUNTIF(Prisustvovanjeumaju[[#This Row],[1]:[31]],Šifra2)","v":0},{"$f":"COUNTIF(Prisustvovanjeumaju[[#This Row],[1]:[31]],Šifra3)","v":0},{"$f":"COUNTIF(Prisustvovanjeumaju[[#This Row],[1]:[31]],Šifra4)","v":0},{"$f":"SUM(Prisustvovanjeuseptembru[[#This Row],[O]:[Ne]])","v":0}]
[null,null,{"$f":"IFERROR(VLOOKUP(Prisustvovanjeumaju[[#This Row],[ID učenika]],Listaučenika[],18,FALSE),\"\")","v":""},{"$nulls":31},{"$f":"COUNTIF(Prisustvovanjeumaju[[#This Row],[1]:[31]],Šifra1)","v":0},{"$f":"COUNTIF(Prisustvovanjeumaju[[#This Row],[1]:[31]],Šifra2)","v":0},{"$f":"COUNTIF(Prisustvovanjeumaju[[#This Row],[1]:[31]],Šifra3)","v":0},{"$f":"COUNTIF(Prisustvovanjeumaju[[#This Row],[1]:[31]],Šifra4)","v":0},{"$f":"SUM(Prisustvovanjeuseptembru[[#This Row],[O]:[Ne]])","v":0}]
[null,null,{"$f":"IFERROR(VLOOKUP(Prisustvovanjeumaju[[#This Row],[ID učenika]],Listaučenika[],18,FALSE),\"\")","v":""},{"$nulls":31},{"$f":"COUNTIF(Prisustvovanjeumaju[[#This Row],[1]:[31]],Šifra1)","v":0},{"$f":"COUNTIF(Prisustvovanjeumaju[[#This Row],[1]:[31]],Šifra2)","v":0},{"$f":"COUNTIF(Prisustvovanjeumaju[[#This Row],[1]:[31]],Šifra3)","v":0},{"$f":"COUNTIF(Prisustvovanjeumaju[[#This Row],[1]:[31]],Šifra4)","v":0},{"$f":"SUM(Prisustvovanjeuseptembru[[#This Row],[O]:[Ne]])","v":0}]
[null,null,{"$f":"IFERROR(VLOOKUP(Prisustvovanjeumaju[[#This Row],[ID učenika]],Listaučenika[],18,FALSE),\"\")","v":""},{"$nulls":31},{"$f":"COUNTIF(Prisustvovanjeumaju[[#This Row],[1]:[31]],Šifra1)","v":0},{"$f":"COUNTIF(Prisustvovanjeumaju[[#This Row],[1]:[31]],Šifra2)","v":0},{"$f":"COUNTIF(Prisustvovanjeumaju[[#This Row],[1]:[31]],Šifra3)","v":0},{"$f":"COUNTIF(Prisustvovanjeumaju[[#This Row],[1]:[31]],Šifra4)","v":0},{"$f":"SUM(Prisustvovanjeuseptembru[[#This Row],[O]:[Ne]])","v":0}]
[null,null,{"$f":"IFERROR(VLOOKUP(Prisustvovanjeumaju[[#This Row],[ID učenika]],Listaučenika[],18,FALSE),\"\")","v":""},{"$nulls":31},{"$f":"COUNTIF(Prisustvovanjeumaju[[#This Row],[1]:[31]],Šifra1)","v":0},{"$f":"COUNTIF(Prisustvovanjeumaju[[#This Row],[1]:[31]],Šifra2)","v":0},{"$f":"COUNTIF(Prisustvovanjeumaju[[#This Row],[1]:[31]],Šifra3)","v":0},{"$f":"COUNTIF(Prisustvovanjeumaju[[#This Row],[1]:[31]],Šifra4)","v":0},{"$f":"SUM(Prisustvovanjeuseptembru[[#This Row],[O]:[Ne]])","v":0}]
[null,null,"Ukupno dana odsustvovanja",{"$f":"COUNTIF(Prisustvovanjeumaju[1],\"Ne\")+COUNTIF(Prisustvovanjeumaju[1],\"O\")","v":0},{"$f":"COUNTIF(Prisustvovanjeumaju[2],\"Ne\")+COUNTIF(Prisustvovanjeumaju[2],\"O\")","v":0},{"$f":"COUNTIF(Prisustvovanjeumaju[3],\"Ne\")+COUNTIF(Prisustvovanjeumaju[3],\"O\")","v":0},{"$f":"COUNTIF(Prisustvovanjeumaju[4],\"Ne\")+COUNTIF(Prisustvovanjeumaju[4],\"O\")","v":0},{"$f":"COUNTIF(Prisustvovanjeumaju[5],\"Ne\")+COUNTIF(Prisustvovanjeumaju[5],\"O\")","v":0},{"$f":"COUNTIF(Prisustvovanjeumaju[6],\"Ne\")+COUNTIF(Prisustvovanjeumaju[6],\"O\")","v":0},{"$f":"COUNTIF(Prisustvovanjeumaju[7],\"Ne\")+COUNTIF(Prisustvovanjeumaju[7],\"O\")","v":0},{"$f":"COUNTIF(Prisustvovanjeumaju[8],\"Ne\")+COUNTIF(Prisustvovanjeumaju[8],\"O\")","v":0},{"$f":"COUNTIF(Prisustvovanjeumaju[9],\"Ne\")+COUNTIF(Prisustvovanjeumaju[9],\"O\")","v":0},{"$f":"COUNTIF(Prisustvovanjeumaju[10],\"Ne\")+COUNTIF(Prisustvovanjeumaju[10],\"O\")","v":0},{"$f":"COUNTIF(Prisustvovanjeumaju[11],\"Ne\")+COUNTIF(Prisustvovanjeumaju[11],\"O\")","v":0},{"$f":"COUNTIF(Prisustvovanjeumaju[12],\"Ne\")+COUNTIF(Prisustvovanjeumaju[12],\"O\")","v":0},{"$f":"COUNTIF(Prisustvovanjeumaju[13],\"Ne\")+COUNTIF(Prisustvovanjeumaju[13],\"O\")","v":0},{"$f":"COUNTIF(Prisustvovanjeumaju[14],\"Ne\")+COUNTIF(Prisustvovanjeumaju[14],\"O\")","v":0},{"$f":"COUNTIF(Prisustvovanjeumaju[15],\"Ne\")+COUNTIF(Prisustvovanjeumaju[15],\"O\")","v":0},{"$f":"COUNTIF(Prisustvovanjeumaju[16],\"Ne\")+COUNTIF(Prisustvovanjeumaju[16],\"O\")","v":0},{"$f":"COUNTIF(Prisustvovanjeumaju[17],\"Ne\")+COUNTIF(Prisustvovanjeumaju[17],\"O\")","v":0},{"$f":"COUNTIF(Prisustvovanjeumaju[18],\"Ne\")+COUNTIF(Prisustvovanjeumaju[18],\"O\")","v":0},{"$f":"COUNTIF(Prisustvovanjeumaju[19],\"Ne\")+COUNTIF(Prisustvovanjeumaju[19],\"O\")","v":0},{"$f":"COUNTIF(Prisustvovanjeumaju[20],\"Ne\")+COUNTIF(Prisustvovanjeumaju[20],\"O\")","v":0},{"$f":"COUNTIF(Prisustvovanjeumaju[21],\"Ne\")+COUNTIF(Prisustvovanjeumaju[21],\"O\")","v":0},{"$f":"COUNTIF(Prisustvovanjeumaju[22],\"Ne\")+COUNTIF(Prisustvovanjeumaju[22],\"O\")","v":0},{"$f":"COUNTIF(Prisustvovanjeumaju[23],\"Ne\")+COUNTIF(Prisustvovanjeumaju[23],\"O\")","v":0},{"$f":"COUNTIF(Prisustvovanjeumaju[24],\"Ne\")+COUNTIF(Prisustvovanjeumaju[24],\"O\")","v":0},{"$f":"COUNTIF(Prisustvovanjeumaju[25],\"Ne\")+COUNTIF(Prisustvovanjeumaju[25],\"O\")","v":0},{"$f":"COUNTIF(Prisustvovanjeumaju[26],\"Ne\")+COUNTIF(Prisustvovanjeumaju[26],\"O\")","v":0},{"$f":"COUNTIF(Prisustvovanjeumaju[27],\"Ne\")+COUNTIF(Prisustvovanjeumaju[27],\"O\")","v":0},{"$f":"COUNTIF(Prisustvovanjeumaju[28],\"Ne\")+COUNTIF(Prisustvovanjeumaju[28],\"O\")","v":0},{"$f":"COUNTIF(Prisustvovanjeumaju[29],\"Ne\")+COUNTIF(Prisustvovanjeumaju[29],\"O\")","v":0},{"$f":"COUNTIF(Prisustvovanjeumaju[30],\"Ne\")+COUNTIF(Prisustvovanjeumaju[30],\"O\")","v":0},{"$f":"COUNTIF(Prisustvovanjeumaju[31],\"Ne\")+COUNTIF(Prisustvovanjeumaju[31],\"O\")","v":0},{"$f":"SUBTOTAL(109,Prisustvovanjeumaju[Z])","v":0},{"$f":"SUBTOTAL(109,Prisustvovanjeumaju[O])","v":0},{"$f":"SUBTOTAL(109,Prisustvovanjeumaju[Ne])","v":0},{"$f":"SUBTOTAL(109,Prisustvovanjeumaju[P])","v":0},{"$f":"SUBTOTAL(109,Prisustvovanjeumaju[Dani odsustvovanja])","v":0}]

{"sheet":"Jun","index":12,"n_rows":12,"n_cols":39,"rows_kept":12,"merged":[[4,34,4,38]]}
["EVIDENCIJA O PRISUSTVOVANJU UČENIKA",{"$nulls":36},"Početak školske godine:",{"$f":"Kalendarskagodina","v":2012}]
[]
[null,null,{"$f":"Teksthromakija","v":"HROMA KI "},{"$f":"Šifra1","v":"Z"},{"$f":"Tekstšifre1","v":"Zakasnio"},null,null,{"$f":"Šifra2","v":"O"},{"$f":"Tekstšifre2","v":"Opravdan"},null,null,{"$f":"Šifra3","v":"Ne"},{"$f":"Tekstšifre3","v":"Neopravdan"},null,null,{"$f":"Šifra4","v":"P"},{"$f":"Tekstšifre4","v":"Prisutan"},null,null,{"$f":"Šifra5","v":"N"},{"$f":"Tekstšifre5","v":"Nema škole"}]
[]
[null,{"$f":"DATE(Kalendarskagodina+1,6,1)","v":"2013-06-01"},null,{"$f":"TEXT(WEEKDAY(DATE(Kalendarskagodina+1,6,1),1),\"aaa\")","v":"sub"},{"$f":"TEXT(WEEKDAY(DATE(Kalendarskagodina+1,6,2),1),\"aaa\")","v":"ned"},{"$f":"TEXT(WEEKDAY(DATE(Kalendarskagodina+1,6,3),1),\"aaa\")","v":"pon"},{"$f":"TEXT(WEEKDAY(DATE(Kalendarskagodina+1,6,4),1),\"aaa\")","v":"uto"},{"$f":"TEXT(WEEKDAY(DATE(Kalendarskagodina+1,6,5),1),\"aaa\")","v":"sre"},{"$f":"TEXT(WEEKDAY(DATE(Kalendarskagodina+1,6,6),1),\"aaa\")","v":"čet"},{"$f":"TEXT(WEEKDAY(DATE(Kalendarskagodina+1,6,7),1),\"aaa\")","v":"pet"},{"$f":"TEXT(WEEKDAY(DATE(Kalendarskagodina+1,6,8),1),\"aaa\")","v":"sub"},{"$f":"TEXT(WEEKDAY(DATE(Kalendarskagodina+1,6,9),1),\"aaa\")","v":"ned"},{"$f":"TEXT(WEEKDAY(DATE(Kalendarskagodina+1,6,10),1),\"aaa\")","v":"pon"},{"$f":"TEXT(WEEKDAY(DATE(Kalendarskagodina+1,6,11),1),\"aaa\")","v":"uto"},{"$f":"TEXT(WEEKDAY(DATE(Kalendarskagodina+1,6,12),1),\"aaa\")","v":"sre"},{"$f":"TEXT(WEEKDAY(DATE(Kalendarskagodina+1,6,13),1),\"aaa\")","v":"čet"},{"$f":"TEXT(WEEKDAY(DATE(Kalendarskagodina+1,6,14),1),\"aaa\")","v":"pet"},{"$f":"TEXT(WEEKDAY(DATE(Kalendarskagodina+1,6,15),1),\"aaa\")","v":"sub"},{"$f":"TEXT(WEEKDAY(DATE(Kalendarskagodina+1,6,16),1),\"aaa\")","v":"ned"},{"$f":"TEXT(WEEKDAY(DATE(Kalendarskagodina+1,6,17),1),\"aaa\")","v":"pon"},{"$f":"TEXT(WEEKDAY(DATE(Kalendarskagodina+1,6,18),1),\"aaa\")","v":"uto"},{"$f":"TEXT(WEEKDAY(DATE(Kalendarskagodina+1,6,19),1),\"aaa\")","v":"sre"},{"$f":"TEXT(WEEKDAY(DATE(Kalendarskagodina+1,6,20),1),\"aaa\")","v":"čet"},{"$f":"TEXT(WEEKDAY(DATE(Kalendarskagodina+1,6,21),1),\"aaa\")","v":"pet"},{"$f":"TEXT(WEEKDAY(DATE(Kalendarskagodina+1,6,22),1),\"aaa\")","v":"sub"},{"$f":"TEXT(WEEKDAY(DATE(Kalendarskagodina+1,6,23),1),\"aaa\")","v":"ned"},{"$f":"TEXT(WEEKDAY(DATE(Kalendarskagodina+1,6,24),1),\"aaa\")","v":"pon"},{"$f":"TEXT(WEEKDAY(DATE(Kalendarskagodina+1,6,25),1),\"aaa\")","v":"uto"},{"$f":"TEXT(WEEKDAY(DATE(Kalendarskagodina+1,6,26),1),\"aaa\")","v":"sre"},{"$f":"TEXT(WEEKDAY(DATE(Kalendarskagodina+1,6,27),1),\"aaa\")","v":"čet"},{"$f":"TEXT(WEEKDAY(DATE(Kalendarskagodina+1,6,28),1),\"aaa\")","v":"pet"},{"$f":"TEXT(WEEKDAY(DATE(Kalendarskagodina+1,6,29),1),\"aaa\")","v":"sub"},{"$f":"TEXT(WEEKDAY(DATE(Kalendarskagodina+1,6,30),1),\"aaa\")","v":"ned"},null,"Ukupne vrednosti"]
[null,"ID učenika","Ime i prezime učenika","1","2","3","4","5","6","7","8","9","10","11","12","13","14","15","16","17","18","19","20","21","22","23","24","25","26","27","28","29","30"," ","Z","O","Ne","P","Dani odsustvovanja"]
[null,null,{"$f":"IFERROR(VLOOKUP(Prisustvovanjeujunu[[#This Row],[ID učenika]],Listaučenika[],18,FALSE),\"\")","v":""},{"$nulls":31},{"$f":"COUNTIF(Prisustvovanjeujunu[[#This Row],[1]:[ ]],Šifra1)","v":0},{"$f":"COUNTIF(Prisustvovanjeujunu[[#This Row],[1]:[ ]],Šifra2)","v":0},{"$f":"COUNTIF(Prisustvovanjeujunu[[#This Row],[1]:[ ]],Šifra3)","v":0},{"$f":"COUNTIF(Prisustvovanjeujunu[[#This Row],[1]:[ ]],Šifra4)","v":0},{"$f":"SUM(Prisustvovanjeuseptembru[[#This Row],[O]:[Ne]])","v":0}]
[null,null,{"$f":"IFERROR(VLOOKUP(Prisustvovanjeujunu[[#This Row],[ID učenika]],Listaučenika[],18,FALSE),\"\")","v":""},{"$nulls":31},{"$f":"COUNTIF(Prisustvovanjeujunu[[#This Row],[1]:[ ]],Šifra1)","v":0},{"$f":"COUNTIF(Prisustvovanjeujunu[[#This Row],[1]:[ ]],Šifra2)","v":0},{"$f":"COUNTIF(Prisustvovanjeujunu[[#This Row],[1]:[ ]],Šifra3)","v":0},{"$f":"COUNTIF(Prisustvovanjeujunu[[#This Row],[1]:[ ]],Šifra4)","v":0},{"$f":"SUM(Prisustvovanjeuseptembru[[#This Row],[O]:[Ne]])","v":0}]
[null,null,{"$f":"IFERROR(VLOOKUP(Prisustvovanjeujunu[[#This Row],[ID učenika]],Listaučenika[],18,FALSE),\"\")","v":""},{"$nulls":31},{"$f":"COUNTIF(Prisustvovanjeujunu[[#This Row],[1]:[ ]],Šifra1)","v":0},{"$f":"COUNTIF(Prisustvovanjeujunu[[#This Row],[1]:[ ]],Šifra2)","v":0},{"$f":"COUNTIF(Prisustvovanjeujunu[[#This Row],[1]:[ ]],Šifra3)","v":0},{"$f":"COUNTIF(Prisustvovanjeujunu[[#This Row],[1]:[ ]],Šifra4)","v":0},{"$f":"SUM(Prisustvovanjeuseptembru[[#This Row],[O]:[Ne]])","v":0}]
[null,null,{"$f":"IFERROR(VLOOKUP(Prisustvovanjeujunu[[#This Row],[ID učenika]],Listaučenika[],18,FALSE),\"\")","v":""},{"$nulls":31},{"$f":"COUNTIF(Prisustvovanjeujunu[[#This Row],[1]:[ ]],Šifra1)","v":0},{"$f":"COUNTIF(Prisustvovanjeujunu[[#This Row],[1]:[ ]],Šifra2)","v":0},{"$f":"COUNTIF(Prisustvovanjeujunu[[#This Row],[1]:[ ]],Šifra3)","v":0},{"$f":"COUNTIF(Prisustvovanjeujunu[[#This Row],[1]:[ ]],Šifra4)","v":0},{"$f":"SUM(Prisustvovanjeuseptembru[[#This Row],[O]:[Ne]])","v":0}]
[null,null,{"$f":"IFERROR(VLOOKUP(Prisustvovanjeujunu[[#This Row],[ID učenika]],Listaučenika[],18,FALSE),\"\")","v":""},{"$nulls":31},{"$f":"COUNTIF(Prisustvovanjeujunu[[#This Row],[1]:[ ]],Šifra1)","v":0},{"$f":"COUNTIF(Prisustvovanjeujunu[[#This Row],[1]:[ ]],Šifra2)","v":0},{"$f":"COUNTIF(Prisustvovanjeujunu[[#This Row],[1]:[ ]],Šifra3)","v":0},{"$f":"COUNTIF(Prisustvovanjeujunu[[#This Row],[1]:[ ]],Šifra4)","v":0},{"$f":"SUM(Prisustvovanjeuseptembru[[#This Row],[O]:[Ne]])","v":0}]
[null,null,"Ukupno dana odsustvovanja",{"$f":"COUNTIF(Prisustvovanjeujunu[1],\"Ne\")+COUNTIF(Prisustvovanjeujunu[1],\"O\")","v":0},{"$f":"COUNTIF(Prisustvovanjeujunu[2],\"Ne\")+COUNTIF(Prisustvovanjeujunu[2],\"O\")","v":0},{"$f":"COUNTIF(Prisustvovanjeujunu[3],\"Ne\")+COUNTIF(Prisustvovanjeujunu[3],\"O\")","v":0},{"$f":"COUNTIF(Prisustvovanjeujunu[4],\"Ne\")+COUNTIF(Prisustvovanjeujunu[4],\"O\")","v":0},{"$f":"COUNTIF(Prisustvovanjeujunu[5],\"Ne\")+COUNTIF(Prisustvovanjeujunu[5],\"O\")","v":0},{"$f":"COUNTIF(Prisustvovanjeujunu[6],\"Ne\")+COUNTIF(Prisustvovanjeujunu[6],\"O\")","v":0},{"$f":"COUNTIF(Prisustvovanjeujunu[7],\"Ne\")+COUNTIF(Prisustvovanjeujunu[7],\"O\")","v":0},{"$f":"COUNTIF(Prisustvovanjeujunu[8],\"Ne\")+COUNTIF(Prisustvovanjeujunu[8],\"O\")","v":0},{"$f":"COUNTIF(Prisustvovanjeujunu[9],\"Ne\")+COUNTIF(Prisustvovanjeujunu[9],\"O\")","v":0},{"$f":"COUNTIF(Prisustvovanjeujunu[10],\"Ne\")+COUNTIF(Prisustvovanjeujunu[10],\"O\")","v":0},{"$f":"COUNTIF(Prisustvovanjeujunu[11],\"Ne\")+COUNTIF(Prisustvovanjeujunu[11],\"O\")","v":0},{"$f":"COUNTIF(Prisustvovanjeujunu[12],\"Ne\")+COUNTIF(Prisustvovanjeujunu[12],\"O\")","v":0},{"$f":"COUNTIF(Prisustvovanjeujunu[13],\"Ne\")+COUNTIF(Prisustvovanjeujunu[13],\"O\")","v":0},{"$f":"COUNTIF(Prisustvovanjeujunu[14],\"Ne\")+COUNTIF(Prisustvovanjeujunu[14],\"O\")","v":0},{"$f":"COUNTIF(Prisustvovanjeujunu[15],\"Ne\")+COUNTIF(Prisustvovanjeujunu[15],\"O\")","v":0},{"$f":"COUNTIF(Prisustvovanjeujunu[16],\"Ne\")+COUNTIF(Prisustvovanjeujunu[16],\"O\")","v":0},{"$f":"COUNTIF(Prisustvovanjeujunu[17],\"Ne\")+COUNTIF(Prisustvovanjeujunu[17],\"O\")","v":0},{"$f":"COUNTIF(Prisustvovanjeujunu[18],\"Ne\")+COUNTIF(Prisustvovanjeujunu[18],\"O\")","v":0},{"$f":"COUNTIF(Prisustvovanjeujunu[19],\"Ne\")+COUNTIF(Prisustvovanjeujunu[19],\"O\")","v":0},{"$f":"COUNTIF(Prisustvovanjeujunu[20],\"Ne\")+COUNTIF(Prisustvovanjeujunu[20],\"O\")","v":0},{"$f":"COUNTIF(Prisustvovanjeujunu[21],\"Ne\")+COUNTIF(Prisustvovanjeujunu[21],\"O\")","v":0},{"$f":"COUNTIF(Prisustvovanjeujunu[22],\"Ne\")+COUNTIF(Prisustvovanjeujunu[22],\"O\")","v":0},{"$f":"COUNTIF(Prisustvovanjeujunu[23],\"Ne\")+COUNTIF(Prisustvovanjeujunu[23],\"O\")","v":0},{"$f":"COUNTIF(Prisustvovanjeujunu[24],\"Ne\")+COUNTIF(Prisustvovanjeujunu[24],\"O\")","v":0},{"$f":"COUNTIF(Prisustvovanjeujunu[25],\"Ne\")+COUNTIF(Prisustvovanjeujunu[25],\"O\")","v":0},{"$f":"COUNTIF(Prisustvovanjeujunu[26],\"Ne\")+COUNTIF(Prisustvovanjeujunu[26],\"O\")","v":0},{"$f":"COUNTIF(Prisustvovanjeujunu[27],\"Ne\")+COUNTIF(Prisustvovanjeujunu[27],\"O\")","v":0},{"$f":"COUNTIF(Prisustvovanjeujunu[28],\"Ne\")+COUNTIF(Prisustvovanjeujunu[28],\"O\")","v":0},{"$f":"COUNTIF(Prisustvovanjeujunu[29],\"Ne\")+COUNTIF(Prisustvovanjeujunu[29],\"O\")","v":0},{"$f":"COUNTIF(Prisustvovanjeujunu[30],\"Ne\")+COUNTIF(Prisustvovanjeujunu[30],\"O\")","v":0},{"$f":"COUNTIF(Prisustvovanjeujunu[[ ]],\"Ne\")+COUNTIF(Prisustvovanjeujunu[[ ]],\"O\")","v":0},{"$f":"SUBTOTAL(109,Prisustvovanjeujunu[Z])","v":0},{"$f":"SUBTOTAL(109,Prisustvovanjeujunu[O])","v":0},{"$f":"SUBTOTAL(109,Prisustvovanjeujunu[Ne])","v":0},{"$f":"SUBTOTAL(109,Prisustvovanjeujunu[P])","v":0},{"$f":"SUBTOTAL(109,Prisustvovanjeujunu[Dani odsustvovanja])","v":0}]

{"sheet":"Jul","index":13,"n_rows":12,"n_cols":39,"rows_kept":12,"merged":[[4,34,4,38]]}
["EVIDENCIJA O PRISUSTVOVANJU UČENIKA",{"$nulls":36},"Početak školske godine:",{"$f":"Kalendarskagodina","v":2012}]
[]
[null,null,{"$f":"Teksthromakija","v":"HROMA KI "},{"$f":"Šifra1","v":"Z"},{"$f":"Tekstšifre1","v":"Zakasnio"},null,null,{"$f":"Šifra2","v":"O"},{"$f":"Tekstšifre2","v":"Opravdan"},null,null,{"$f":"Šifra3","v":"Ne"},{"$f":"Tekstšifre3","v":"Neopravdan"},null,null,{"$f":"Šifra4","v":"P"},{"$f":"Tekstšifre4","v":"Prisutan"},null,null,{"$f":"Šifra5","v":"N"},{"$f":"Tekstšifre5","v":"Nema škole"}]
[]
[null,{"$f":"DATE(Kalendarskagodina+1,7,1)","v":"2013-07-01"},null,{"$f":"TEXT(WEEKDAY(DATE(Kalendarskagodina+1,7,1),1),\"aaa\")","v":"pon"},{"$f":"TEXT(WEEKDAY(DATE(Kalendarskagodina+1,7,2),1),\"aaa\")","v":"uto"},{"$f":"TEXT(WEEKDAY(DATE(Kalendarskagodina+1,7,3),1),\"aaa\")","v":"sre"},{"$f":"TEXT(WEEKDAY(DATE(Kalendarskagodina+1,7,4),1),\"aaa\")","v":"čet"},{"$f":"TEXT(WEEKDAY(DATE(Kalendarskagodina+1,7,5),1),\"aaa\")","v":"pet"},{"$f":"TEXT(WEEKDAY(DATE(Kalendarskagodina+1,7,6),1),\"aaa\")","v":"sub"},{"$f":"TEXT(WEEKDAY(DATE(Kalendarskagodina+1,7,7),1),\"aaa\")","v":"ned"},{"$f":"TEXT(WEEKDAY(DATE(Kalendarskagodina+1,7,8),1),\"aaa\")","v":"pon"},{"$f":"TEXT(WEEKDAY(DATE(Kalendarskagodina+1,7,9),1),\"aaa\")","v":"uto"},{"$f":"TEXT(WEEKDAY(DATE(Kalendarskagodina+1,7,10),1),\"aaa\")","v":"sre"},{"$f":"TEXT(WEEKDAY(DATE(Kalendarskagodina+1,7,11),1),\"aaa\")","v":"čet"},{"$f":"TEXT(WEEKDAY(DATE(Kalendarskagodina+1,7,12),1),\"aaa\")","v":"pet"},{"$f":"TEXT(WEEKDAY(DATE(Kalendarskagodina+1,7,13),1),\"aaa\")","v":"sub"},{"$f":"TEXT(WEEKDAY(DATE(Kalendarskagodina+1,7,14),1),\"aaa\")","v":"ned"},{"$f":"TEXT(WEEKDAY(DATE(Kalendarskagodina+1,7,15),1),\"aaa\")","v":"pon"},{"$f":"TEXT(WEEKDAY(DATE(Kalendarskagodina+1,7,16),1),\"aaa\")","v":"uto"},{"$f":"TEXT(WEEKDAY(DATE(Kalendarskagodina+1,7,17),1),\"aaa\")","v":"sre"},{"$f":"TEXT(WEEKDAY(DATE(Kalendarskagodina+1,7,18),1),\"aaa\")","v":"čet"},{"$f":"TEXT(WEEKDAY(DATE(Kalendarskagodina+1,7,19),1),\"aaa\")","v":"pet"},{"$f":"TEXT(WEEKDAY(DATE(Kalendarskagodina+1,7,20),1),\"aaa\")","v":"sub"},{"$f":"TEXT(WEEKDAY(DATE(Kalendarskagodina+1,7,21),1),\"aaa\")","v":"ned"},{"$f":"TEXT(WEEKDAY(DATE(Kalendarskagodina+1,7,22),1),\"aaa\")","v":"pon"},{"$f":"TEXT(WEEKDAY(DATE(Kalendarskagodina+1,7,23),1),\"aaa\")","v":"uto"},{"$f":"TEXT(WEEKDAY(DATE(Kalendarskagodina+1,7,24),1),\"aaa\")","v":"sre"},{"$f":"TEXT(WEEKDAY(DATE(Kalendarskagodina+1,7,25),1),\"aaa\")","v":"čet"},{"$f":"TEXT(WEEKDAY(DATE(Kalendarskagodina+1,7,26),1),\"aaa\")","v":"pet"},{"$f":"TEXT(WEEKDAY(DATE(Kalendarskagodina+1,7,27),1),\"aaa\")","v":"sub"},{"$f":"TEXT(WEEKDAY(DATE(Kalendarskagodina+1,7,28),1),\"aaa\")","v":"ned"},{"$f":"TEXT(WEEKDAY(DATE(Kalendarskagodina+1,7,29),1),\"aaa\")","v":"pon"},{"$f":"TEXT(WEEKDAY(DATE(Kalendarskagodina+1,7,30),1),\"aaa\")","v":"uto"},{"$f":"TEXT(WEEKDAY(DATE(Kalendarskagodina+1,7,31),1),\"aaa\")","v":"sre"},"Ukupne vrednosti"]
[null,"ID učenika","Ime i prezime učenika","1","2","3","4","5","6","7","8","9","10","11","12","13","14","15","16","17","18","19","20","21","22","23","24","25","26","27","28","29","30","31","Z","O","Ne","P","Dani odsustvovanja"]
[null,null,{"$f":"IFERROR(VLOOKUP(Prisustvovanjeujulu[[#This Row],[ID učenika]],Listaučenika[],18,FALSE),\"\")","v":""},{"$nulls":31},{"$f":"COUNTIF(Prisustvovanjeujulu[[#This Row],[1]:[31]],Šifra1)","v":0},{"$f":"COUNTIF(Prisustvovanjeujulu[[#This Row],[1]:[31]],Šifra2)","v":0},{"$f":"COUNTIF(Prisustvovanjeujulu[[#This Row],[1]:[31]],Šifra3)","v":0},{"$f":"COUNTIF(Prisustvovanjeujulu[[#This Row],[1]:[31]],Šifra4)","v":0},{"$f":"SUM(Prisustvovanjeuseptembru[[#This Row],[O]:[Ne]])","v":0}]
[null,null,{"$f":"IFERROR(VLOOKUP(Prisustvovanjeujulu[[#This Row],[ID učenika]],Listaučenika[],18,FALSE),\"\")","v":""},{"$nulls":31},{"$f":"COUNTIF(Prisustvovanjeujulu[[#This Row],[1]:[31]],Šifra1)","v":0},{"$f":"COUNTIF(Prisustvovanjeujulu[[#This Row],[1]:[31]],Šifra2)","v":0},{"$f":"COUNTIF(Prisustvovanjeujulu[[#This Row],[1]:[31]],Šifra3)","v":0},{"$f":"COUNTIF(Prisustvovanjeujulu[[#This Row],[1]:[31]],Šifra4)","v":0},{"$f":"SUM(Prisustvovanjeuseptembru[[#This Row],[O]:[Ne]])","v":0}]
[null,null,{"$f":"IFERROR(VLOOKUP(Prisustvovanjeujulu[[#This Row],[ID učenika]],Listaučenika[],18,FALSE),\"\")","v":""},{"$nulls":31},{"$f":"COUNTIF(Prisustvovanjeujulu[[#This Row],[1]:[31]],Šifra1)","v":0},{"$f":"COUNTIF(Prisustvovanjeujulu[[#This Row],[1]:[31]],Šifra2)","v":0},{"$f":"COUNTIF(Prisustvovanjeujulu[[#This Row],[1]:[31]],Šifra3)","v":0},{"$f":"COUNTIF(Prisustvovanjeujulu[[#This Row],[1]:[31]],Šifra4)","v":0},{"$f":"SUM(Prisustvovanjeuseptembru[[#This Row],[O]:[Ne]])","v":0}]
[null,null,{"$f":"IFERROR(VLOOKUP(Prisustvovanjeujulu[[#This Row],[ID učenika]],Listaučenika[],18,FALSE),\"\")","v":""},{"$nulls":31},{"$f":"COUNTIF(Prisustvovanjeujulu[[#This Row],[1]:[31]],Šifra1)","v":0},{"$f":"COUNTIF(Prisustvovanjeujulu[[#This Row],[1]:[31]],Šifra2)","v":0},{"$f":"COUNTIF(Prisustvovanjeujulu[[#This Row],[1]:[31]],Šifra3)","v":0},{"$f":"COUNTIF(Prisustvovanjeujulu[[#This Row],[1]:[31]],Šifra4)","v":0},{"$f":"SUM(Prisustvovanjeuseptembru[[#This Row],[O]:[Ne]])","v":0}]
[null,null,{"$f":"IFERROR(VLOOKUP(Prisustvovanjeujulu[[#This Row],[ID učenika]],Listaučenika[],18,FALSE),\"\")","v":""},{"$nulls":31},{"$f":"COUNTIF(Prisustvovanjeujulu[[#This Row],[1]:[31]],Šifra1)","v":0},{"$f":"COUNTIF(Prisustvovanjeujulu[[#This Row],[1]:[31]],Šifra2)","v":0},{"$f":"COUNTIF(Prisustvovanjeujulu[[#This Row],[1]:[31]],Šifra3)","v":0},{"$f":"COUNTIF(Prisustvovanjeujulu[[#This Row],[1]:[31]],Šifra4)","v":0},{"$f":"SUM(Prisustvovanjeuseptembru[[#This Row],[O]:[Ne]])","v":0}]
[null,null,"Ukupno dana odsustvovanja",{"$f":"COUNTIF(Prisustvovanjeujulu[1],\"Ne\")+COUNTIF(Prisustvovanjeujulu[1],\"O\")","v":0},{"$f":"COUNTIF(Prisustvovanjeujulu[2],\"Ne\")+COUNTIF(Prisustvovanjeujulu[2],\"O\")","v":0},{"$f":"COUNTIF(Prisustvovanjeujulu[3],\"Ne\")+COUNTIF(Prisustvovanjeujulu[3],\"O\")","v":0},{"$f":"COUNTIF(Prisustvovanjeujulu[4],\"Ne\")+COUNTIF(Prisustvovanjeujulu[4],\"O\")","v":0},{"$f":"COUNTIF(Prisustvovanjeujulu[5],\"Ne\")+COUNTIF(Prisustvovanjeujulu[5],\"O\")","v":0},{"$f":"COUNTIF(Prisustvovanjeujulu[6],\"Ne\")+COUNTIF(Prisustvovanjeujulu[6],\"O\")","v":0},{"$f":"COUNTIF(Prisustvovanjeujulu[7],\"Ne\")+COUNTIF(Prisustvovanjeujulu[7],\"O\")","v":0},{"$f":"COUNTIF(Prisustvovanjeujulu[8],\"Ne\")+COUNTIF(Prisustvovanjeujulu[8],\"O\")","v":0},{"$f":"COUNTIF(Prisustvovanjeujulu[9],\"Ne\")+COUNTIF(Prisustvovanjeujulu[9],\"O\")","v":0},{"$f":"COUNTIF(Prisustvovanjeujulu[10],\"Ne\")+COUNTIF(Prisustvovanjeujulu[10],\"O\")","v":0},{"$f":"COUNTIF(Prisustvovanjeujulu[11],\"Ne\")+COUNTIF(Prisustvovanjeujulu[11],\"O\")","v":0},{"$f":"COUNTIF(Prisustvovanjeujulu[12],\"Ne\")+COUNTIF(Prisustvovanjeujulu[12],\"O\")","v":0},{"$f":"COUNTIF(Prisustvovanjeujulu[13],\"Ne\")+COUNTIF(Prisustvovanjeujulu[13],\"O\")","v":0},{"$f":"COUNTIF(Prisustvovanjeujulu[14],\"Ne\")+COUNTIF(Prisustvovanjeujulu[14],\"O\")","v":0},{"$f":"COUNTIF(Prisustvovanjeujulu[15],\"Ne\")+COUNTIF(Prisustvovanjeujulu[15],\"O\")","v":0},{"$f":"COUNTIF(Prisustvovanjeujulu[16],\"Ne\")+COUNTIF(Prisustvovanjeujulu[16],\"O\")","v":0},{"$f":"COUNTIF(Prisustvovanjeujulu[17],\"Ne\")+COUNTIF(Prisustvovanjeujulu[17],\"O\")","v":0},{"$f":"COUNTIF(Prisustvovanjeujulu[18],\"Ne\")+COUNTIF(Prisustvovanjeujulu[18],\"O\")","v":0},{"$f":"COUNTIF(Prisustvovanjeujulu[19],\"Ne\")+COUNTIF(Prisustvovanjeujulu[19],\"O\")","v":0},{"$f":"COUNTIF(Prisustvovanjeujulu[20],\"Ne\")+COUNTIF(Prisustvovanjeujulu[20],\"O\")","v":0},{"$f":"COUNTIF(Prisustvovanjeujulu[21],\"Ne\")+COUNTIF(Prisustvovanjeujulu[21],\"O\")","v":0},{"$f":"COUNTIF(Prisustvovanjeujulu[22],\"Ne\")+COUNTIF(Prisustvovanjeujulu[22],\"O\")","v":0},{"$f":"COUNTIF(Prisustvovanjeujulu[23],\"Ne\")+COUNTIF(Prisustvovanjeujulu[23],\"O\")","v":0},{"$f":"COUNTIF(Prisustvovanjeujulu[24],\"Ne\")+COUNTIF(Prisustvovanjeujulu[24],\"O\")","v":0},{"$f":"COUNTIF(Prisustvovanjeujulu[25],\"Ne\")+COUNTIF(Prisustvovanjeujulu[25],\"O\")","v":0},{"$f":"COUNTIF(Prisustvovanjeujulu[26],\"Ne\")+COUNTIF(Prisustvovanjeujulu[26],\"O\")","v":0},{"$f":"COUNTIF(Prisustvovanjeujulu[27],\"Ne\")+COUNTIF(Prisustvovanjeujulu[27],\"O\")","v":0},{"$f":"COUNTIF(Prisustvovanjeujulu[28],\"Ne\")+COUNTIF(Prisustvovanjeujulu[28],\"O\")","v":0},{"$f":"COUNTIF(Prisustvovanjeujulu[29],\"Ne\")+COUNTIF(Prisustvovanjeujulu[29],\"O\")","v":0},{"$f":"COUNTIF(Prisustvovanjeujulu[30],\"Ne\")+COUNTIF(Prisustvovanjeujulu[30],\"O\")","v":0},{"$f":"COUNTIF(Prisustvovanjeujulu[31],\"Ne\")+COUNTIF(Prisustvovanjeujulu[31],\"O\")","v":0},{"$f":"SUBTOTAL(109,Prisustvovanjeujulu[Z])","v":0},{"$f":"SUBTOTAL(109,Prisustvovanjeujulu[O])","v":0},{"$f":"SUBTOTAL(109,Prisustvovanjeujulu[Ne])","v":0},{"$f":"SUBTOTAL(109,Prisustvovanjeujulu[P])","v":0},{"$f":"SUBTOTAL(109,Prisustvovanjeujulu[Dani odsustvovanja])","v":0}]

{"sheet":"Izveštaj o prisust. učenika","index":14,"n_rows":40,"n_cols":37,"rows_kept":40,"merged":[[2,3,2,14],[2,15,2,17],[2,18,2,21],[2,22,2,29],[2,30,2,31],[2,32,2,35],[3,1,3,2],[3,3,3,14],[3,15,3,17],[3,18,3,21],[3,22,3,29],[3,30,3,31],[3,32,3,35],[4,1,4,9],[4,10,4,21],[4,22,4,29],[4,30,4,36],[5,1,5,9],[5,10,5,21],[5,22,5,29],[5,30,5,36],[6,1,6,9],[6,10,6,21],[6,22,6,29],[6,30,6,36],[7,1,7,9],[7,10,7,21],[7,22,7,29],[7,30,7,36],[8,1,8,9],[8,10,8,21],[8,22,8,29],[8,30,8,36],[9,1,9,9],[9,10,9,21],[9,22,9,29],[9,30,9,36],[13,1,14,32],[13,33,13,36],[15,1,16,1],[15,33,16,33],[15,34,16,34],[15,35,16,35],[15,36,16,36],[17,1,18,1],[17,33,18,33],[17,34,18,34],[17,35,18,35],[17,36,18,36],[19,1,20,1],[19,33,20,33],[19,34,20,34],[19,35,20,35],[19,36,20,36],[21,1,22,1],[21,33,22,33],[21,34,22,34],[21,35,22,35],[21,36,22,36],[23,1,24,1],[23,33,24,33],[23,34,24,34],[23,35,24,35],[23,36,24,36],[25,1,26,1],[25,33,26,33],[25,34,26,34],[25,35,26,35],[25,36,26,36],[27,1,28,1],[27,33,28,33],[27,34,28,34],[27,35,28,35],[27,36,28,36],[29,1,30,1],[29,33,30,33],[29,34,30,34],[29,35,30,35],[29,36,30,36],[31,1,32,1],[31,33,32,33],[31,34,32,34],[31,35,32,35],[31,36,32,36],[33,1,34,1],[33,33,34,33],[33,34,34,34],[33,35,34,35],[33,36,34,36],[35,1,36,1],[35,33,36,33],[35,34,36,34],[35,35,36,35],[35,36,36,36],[37,1,38,1],[37,33,38,33],[37,34,38,34],[37,35,38,35],[37,36,38,36],[39,30,39,32]]}
[{"$f":"\"Evidencija prisustvovanja za \"","v":"Evidencija prisustvovanja za "},{"$nulls":10},{"$f":"D4","v":"David Aleksić"}]
[]
[null,"ID učenika",null,"Ime i prezime učenika",{"$nulls":11},"Pol",null,null,"Datum rođenja",{"$nulls":3},"Škola",{"$nulls":7},"Razred",null,"Nastavnik",{"$nulls":3},"Učionica"]
[null,"S001",null,{"$f":"IFERROR(VLOOKUP(Pronalaženjeučenika,Listaučenika[],18,FALSE),\"\")","v":"David Aleksić"},{"$nulls":11},{"$f":"IFERROR(VLOOKUP(Pronalaženjeučenika,Listaučenika[],4,FALSE),\"\")","v":"M"},null,null,{"$f":"IFERROR(VLOOKUP(Pronalaženjeučenika,Listaučenika[],5,FALSE),\"\")","v":"1997-03-28"},{"$nulls":3},"Umetnička škola ",{"$nulls":7},7,null,"Luka Avramović",{"$nulls":3},123]
[null,"Ime roditelja ili staratelja 1",{"$nulls":8},"Odnos",{"$nulls":11},"Broj na poslu",{"$nulls":7},"Broj kod kuće"]
[null,{"$f":"IFERROR(VLOOKUP(Pronalaženjeučenika,Listaučenika[],6,FALSE),\"\")","v":"Milica"},{"$nulls":8},{"$f":"IFERROR(VLOOKUP(Pronalaženjeučenika,Listaučenika[],7,FALSE),\"\")","v":"Aleksić"},{"$nulls":11},{"$f":"IFERROR(VLOOKUP(Pronalaženjeučenika,Listaučenika[],8,FALSE),\"\")","v":1235550134},{"$nulls":7},{"$f":"IFERROR(VLOOKUP(Pronalaženjeučenika,Listaučenika[],9,FALSE),\"\")","v":2345550134}]
[null,"Ime roditelja ili staratelja 2",{"$nulls":8},"Odnos",{"$nulls":11},"Broj na poslu",{"$nulls":7},"Broj kod kuće"]
[null,{"$f":"IFERROR(VLOOKUP(Pronalaženjeučenika,Listaučenika[],10,FALSE),\"\")","v":"Milica Aleksić"},{"$nulls":8},{"$f":"IFERROR(VLOOKUP(Pronalaženjeučenika,Listaučenika[],11,FALSE),\"\")","v":"Otac"},{"$nulls":11},{"$f":"IFERROR(VLOOKUP(Pronalaženjeučenika,Listaučenika[],12,FALSE),\"\")","v":1235550134},{"$nulls":7},{"$f":"IFERROR(VLOOKUP(Pronalaženjeučenika,Listaučenika[],13,FALSE),\"\")","v":2345550134}]
[null,"Kontakt za hitne slučajeve",{"$nulls":8},"Odnos",{"$nulls":11},"Broj na poslu",{"$nulls":7},"Broj kod kuće"]
[null,{"$f":"IFERROR(VLOOKUP(Pronalaženjeučenika,Listaučenika[],14,FALSE),\"\")","v":"Rajan Kočović"},{"$nulls":8},{"$f":"IFERROR(VLOOKUP(Pronalaženjeučenika,Listaučenika[],15,FALSE),\"\")","v":"Deda"},{"$nulls":11},{"$f":"IFERROR(VLOOKUP(Pronalaženjeučenika,Listaučenika[],16,FALSE),\"\")","v":7895550189},{"$nulls":7},{"$f":"IFERROR(VLOOKUP(Pronalaženjeučenika,Listaučenika[],17,FALSE),\"\")","v":7895550134}]
[]
[null,{"$f":"Avgust!C3","v":"HROMA KI "},{"$f":"Avgust!D3","v":"Z"},{"$f":"Avgust!E3","v":"Zakasnio"},null,null,{"$f":"Avgust!H3","v":"O"},{"$f":"Avgust!I3","v":"Opravdan"},null,null,{"$f":"Avgust!L3","v":"Ne"},{"$f":"Avgust!M3","v":"Neopravdan"},{"$nulls":3},{"$f":"Avgust!P3","v":"P"},{"$f":"Avgust!Q3","v":"Prisutan"},null,null,{"$f":"Avgust!T3","v":"N"},{"$f":"Avgust!U3","v":"Nema škole"}]
[]
[null,"Prisustvovanje",{"$nulls":31},"Zbir prisustvovanja"]
[{"$nulls":33},"Z","O","Ne","P"]
[null,"Avgust",1,2,3,4,5,6,7,8,9,10,11,12,13,14,15,16,17,18,19,20,21,22,23,24,25,26,27,28,29,30,31,{"$f":"COUNTIF($D17:$AH17,Šifra1)","v":2},{"$f":"COUNTIF($D17:$AH17,Šifra2)","v":1},{"$f":"COUNTIF($D17:$AH17,Šifra3)","v":0},{"$f":"COUNTIF($D17:$AH17,Šifra4)","v":19}]
[null,null,{"$f":"IFERROR(VLOOKUP(Pronalaženjeučenika,Prisustvovanjeuavgustu[],3,FALSE),\"\")","v":"P"},{"$f":"IFERROR(VLOOKUP(Pronalaženjeučenika,Prisustvovanjeuavgustu[],4,FALSE),\"\")","v":"P"},{"$f":"IFERROR(VLOOKUP(Pronalaženjeučenika,Prisustvovanjeuavgustu[],5,FALSE),\"\")","v":"Z"},{"$f":"IFERROR(VLOOKUP(Pronalaženjeučenika,Prisustvovanjeuavgustu[],6,FALSE),\"\")","v":"Z"},{"$f":"IFERROR(VLOOKUP(Pronalaženjeučenika,Prisustvovanjeuavgustu[],7,FALSE),\"\")","v":"P"},{"$f":"IFERROR(VLOOKUP(Pronalaženjeučenika,Prisustvovanjeuavgustu[],8,FALSE),\"\")","v":"N"},{"$f":"IFERROR(VLOOKUP(Pronalaženjeučenika,Prisustvovanjeuavgustu[],9,FALSE),\"\")","v":"N"},{"$f":"IFERROR(VLOOKUP(Pronalaženjeučenika,Prisustvovanjeuavgustu[],10,FALSE),\"\")","v":"P"},{"$f":"IFERROR(VLOOKUP(Pronalaženjeučenika,Prisustvovanjeuavgustu[],11,FALSE),\"\")","v":"P"},{"$f":"IFERROR(VLOOKUP(Pronalaženjeučenika,Prisustvovanjeuavgustu[],12,FALSE),\"\")","v":"O"},{"$f":"IFERROR(VLOOKUP(Pronalaženjeučenika,Prisustvovanjeuavgustu[],13,FALSE),\"\")","v":"P"},{"$f":"IFERROR(VLOOKUP(Pronalaženjeučenika,Prisustvovanjeuavgustu[],14,FALSE),\"\")","v":"P"},{"$f":"IFERROR(VLOOKUP(Pronalaženjeučenika,Prisustvovanjeuavgustu[],15,FALSE),\"\")","v":"N"},{"$f":"IFERROR(VLOOKUP(Pronalaženjeučenika,Prisustvovanjeuavgustu[],16,FALSE),\"\")","v":"N"},{"$f":"IFERROR(VLOOKUP(Pronalaženjeučenika,Prisustvovanjeuavgustu[],17,FALSE),\"\")","v":"P"},{"$f":"IFERROR(VLOOKUP(Pronalaženjeučenika,Prisustvovanjeuavgustu[],18,FALSE),\"\")","v":"P"},{"$f":"IFERROR(VLOOKUP(Pronalaženjeučenika,Prisustvovanjeuavgustu[],19,FALSE),\"\")","v":"P"},{"$f":"IFERROR(VLOOKUP(Pronalaženjeučenika,Prisustvovanjeuavgustu[],20,FALSE),\"\")","v":"P"},{"$f":"IFERROR(VLOOKUP(Pronalaženjeučenika,Prisustvovanjeuavgustu[],21,FALSE),\"\")","v":"P"},{"$f":"IFERROR(VLOOKUP(Pronalaženjeučenika,Prisustvovanjeuavgustu[],22,FALSE),\"\")","v":"N"},{"$f":"IFERROR(VLOOKUP(Pronalaženjeučenika,Prisustvovanjeuavgustu[],23,FALSE),\"\")","v":"N"},{"$f":"IFERROR(VLOOKUP(Pronalaženjeučenika,Prisustvovanjeuavgustu[],24,FALSE),\"\")","v":"P"},{"$f":"IFERROR(VLOOKUP(Pronalaženjeučenika,Prisustvovanjeuavgustu[],25,FALSE),\"\")","v":"P"},{"$f":"IFERROR(VLOOKUP(Pronalaženjeučenika,Prisustvovanjeuavgustu[],26,FALSE),\"\")","v":"P"},{"$f":"IFERROR(VLOOKUP(Pronalaženjeučenika,Prisustvovanjeuavgustu[],27,FALSE),\"\")","v":"P"},{"$f":"IFERROR(VLOOKUP(Pronalaženjeučenika,Prisustvovanjeuavgustu[],28,FALSE),\"\")","v":"P"},{"$f":"IFERROR(VLOOKUP(Pronalaženjeučenika,Prisustvovanjeuavgustu[],29,FALSE),\"\")","v":"N"},{"$f":"IFERROR(VLOOKUP(Pronalaženjeučenika,Prisustvovanjeuavgustu[],30,FALSE),\"\")","v":"N"},{"$f":"IFERROR(VLOOKUP(Pronalaženjeučenika,Prisustvovanjeuavgustu[],31,FALSE),\"\")","v":"P"},{"$f":"IFERROR(VLOOKUP(Pronalaženjeučenika,Prisustvovanjeuavgustu[],32,FALSE),\"\")","v":"P"},{"$f":"IFERROR(VLOOKUP(Pronalaženjeučenika,Prisustvovanjeuavgustu[],33,FALSE),\"\")","v":"P"}]
[null,"Septembar",1,2,3,4,5,6,7,8,9,10,11,12,13,14,15,16,17,18,19,20,21,22,23,24,25,26,27,28,29,30,null,{"$f":"COUNTIF($D19:$AH19,Šifra1)","v":0},{"$f":"COUNTIF($D19:$AH19,Šifra2)","v":0},{"$f":"COUNTIF($D19:$AH19,Šifra3)","v":0},{"$f":"COUNTIF($D19:$AH19,Šifra4)","v":0}]
[null,null,{"$f":"IFERROR(VLOOKUP(Pronalaženjeučenika,Prisustvovanjeuseptembru[],3,FALSE),\"\")","v":""},{"$f":"IFERROR(VLOOKUP(Pronalaženjeučenika,Prisustvovanjeuseptembru[],4,FALSE),\"\")","v":""},{"$f":"IFERROR(VLOOKUP(Pronalaženjeučenika,Prisustvovanjeuseptembru[],5,FALSE),\"\")","v":""},{"$f":"IFERROR(VLOOKUP(Pronalaženjeučenika,Prisustvovanjeuseptembru[],6,FALSE),\"\")","v":""},{"$f":"IFERROR(VLOOKUP(Pronalaženjeučenika,Prisustvovanjeuseptembru[],7,FALSE),\"\")","v":""},{"$f":"IFERROR(VLOOKUP(Pronalaženjeučenika,Prisustvovanjeuseptembru[],8,FALSE),\"\")","v":""},{"$f":"IFERROR(VLOOKUP(Pronalaženjeučenika,Prisustvovanjeuseptembru[],9,FALSE),\"\")","v":""},{"$f":"IFERROR(VLOOKUP(Pronalaženjeučenika,Prisustvovanjeuseptembru[],10,FALSE),\"\")","v":""},{"$f":"IFERROR(VLOOKUP(Pronalaženjeučenika,Prisustvovanjeuseptembru[],11,FALSE),\"\")","v":""},{"$f":"IFERROR(VLOOKUP(Pronalaženjeučenika,Prisustvovanjeuseptembru[],12,FALSE),\"\")","v":""},{"$f":"IFERROR(VLOOKUP(Pronalaženjeučenika,Prisustvovanjeuseptembru[],13,FALSE),\"\")","v":""},{"$f":"IFERROR(VLOOKUP(Pronalaženjeučenika,Prisustvovanjeuseptembru[],14,FALSE),\"\")","v":""},{"$f":"IFERROR(VLOOKUP(Pronalaženjeučenika,Prisustvovanjeuseptembru[],15,FALSE),\"\")","v":""},{"$f":"IFERROR(VLOOKUP(Pronalaženjeučenika,Prisustvovanjeuseptembru[],16,FALSE),\"\")","v":""},{"$f":"IFERROR(VLOOKUP(Pronalaženjeučenika,Prisustvovanjeuseptembru[],17,FALSE),\"\")","v":""},{"$f":"IFERROR(VLOOKUP(Pronalaženjeučenika,Prisustvovanjeuseptembru[],18,FALSE),\"\")","v":""},{"$f":"IFERROR(VLOOKUP(Pronalaženjeučenika,Prisustvovanjeuseptembru[],19,FALSE),\"\")","v":""},{"$f":"IFERROR(VLOOKUP(Pronalaženjeučenika,Prisustvovanjeuseptembru[],20,FALSE),\"\")","v":""},{"$f":"IFERROR(VLOOKUP(Pronalaženjeučenika,Prisustvovanjeuseptembru[],21,FALSE),\"\")","v":""},{"$f":"IFERROR(VLOOKUP(Pronalaženjeučenika,Prisustvovanjeuseptembru[],22,FALSE),\"\")","v":""},{"$f":"IFERROR(VLOOKUP(Pronalaženjeučenika,Prisustvovanjeuseptembru[],23,FALSE),\"\")","v":""},{"$f":"IFERROR(VLOOKUP(Pronalaženjeučenika,Prisustvovanjeuseptembru[],24,FALSE),\"\")","v":""},{"$f":"IFERROR(VLOOKUP(Pronalaženjeučenika,Prisustvovanjeuseptembru[],25,FALSE),\"\")","v":""},{"$f":"IFERROR(VLOOKUP(Pronalaženjeučenika,Prisustvovanjeuseptembru[],26,FALSE),\"\")","v":""},{"$f":"IFERROR(VLOOKUP(Pronalaženjeučenika,Prisustvovanjeuseptembru[],27,FALSE),\"\")","v":""},{"$f":"IFERROR(VLOOKUP(Pronalaženjeučenika,Prisustvovanjeuseptembru[],28,FALSE),\"\")","v":""},{"$f":"IFERROR(VLOOKUP(Pronalaženjeučenika,Prisustvovanjeuseptembru[],29,FALSE),\"\")","v":""},{"$f":"IFERROR(VLOOKUP(Pronalaženjeučenika,Prisustvovanjeuseptembru[],30,FALSE),\"\")","v":""},{"$f":"IFERROR(VLOOKUP(Pronalaženjeučenika,Prisustvovanjeuseptembru[],31,FALSE),\"\")","v":""},{"$f":"IFERROR(VLOOKUP(Pronalaženjeučenika,Prisustvovanjeuseptembru[],32,FALSE),\"\")","v":""}]
[null,"Oktobar",1,2,3,4,5,6,7,8,9,10,11,12,13,14,15,16,17,18,19,20,21,22,23,24,25,26,27,28,29,30,31,{"$f":"COUNTIF($D21:$AH21,Šifra1)","v":0},{"$f":"COUNTIF($D21:$AH21,Šifra2)","v":0},{"$f":"COUNTIF($D21:$AH21,Šifra3)","v":0},{"$f":"COUNTIF($D21:$AH21,Šifra4)","v":0}]
[null,null,{"$f":"IFERROR(VLOOKUP(Pronalaženjeučenika,Prisustvovanjeuoktobru[],3,FALSE),\"\")","v":""},{"$f":"IFERROR(VLOOKUP(Pronalaženjeučenika,Prisustvovanjeuoktobru[],4,FALSE),\"\")","v":""},{"$f":"IFERROR(VLOOKUP(Pronalaženjeučenika,Prisustvovanjeuoktobru[],5,FALSE),\"\")","v":""},{"$f":"IFERROR(VLOOKUP(Pronalaženjeučenika,Prisustvovanjeuoktobru[],6,FALSE),\"\")","v":""},{"$f":"IFERROR(VLOOKUP(Pronalaženjeučenika,Prisustvovanjeuoktobru[],7,FALSE),\"\")","v":""},{"$f":"IFERROR(VLOOKUP(Pronalaženjeučenika,Prisustvovanjeuoktobru[],8,FALSE),\"\")","v":""},{"$f":"IFERROR(VLOOKUP(Pronalaženjeučenika,Prisustvovanjeuoktobru[],9,FALSE),\"\")","v":""},{"$f":"IFERROR(VLOOKUP(Pronalaženjeučenika,Prisustvovanjeuoktobru[],10,FALSE),\"\")","v":""},{"$f":"IFERROR(VLOOKUP(Pronalaženjeučenika,Prisustvovanjeuoktobru[],11,FALSE),\"\")","v":""},{"$f":"IFERROR(VLOOKUP(Pronalaženjeučenika,Prisustvovanjeuoktobru[],12,FALSE),\"\")","v":""},{"$f":"IFERROR(VLOOKUP(Pronalaženjeučenika,Prisustvovanjeuoktobru[],13,FALSE),\"\")","v":""},{"$f":"IFERROR(VLOOKUP(Pronalaženjeučenika,Prisustvovanjeuoktobru[],14,FALSE),\"\")","v":""},{"$f":"IFERROR(VLOOKUP(Pronalaženjeučenika,Prisustvovanjeuoktobru[],15,FALSE),\"\")","v":""},{"$f":"IFERROR(VLOOKUP(Pronalaženjeučenika,Prisustvovanjeuoktobru[],16,FALSE),\"\")","v":""},{"$f":"IFERROR(VLOOKUP(Pronalaženjeučenika,Prisustvovanjeuoktobru[],17,FALSE),\"\")","v":""},{"$f":"IFERROR(VLOOKUP(Pronalaženjeučenika,Prisustvovanjeuoktobru[],18,FALSE),\"\")","v":""},{"$f":"IFERROR(VLOOKUP(Pronalaženjeučenika,Prisustvovanjeuoktobru[],19,FALSE),\"\")","v":""},{"$f":"IFERROR(VLOOKUP(Pronalaženjeučenika,Prisustvovanjeuoktobru[],20,FALSE),\"\")","v":""},{"$f":"IFERROR(VLOOKUP(Pronalaženjeučenika,Prisustvovanjeuoktobru[],21,FALSE),\"\")","v":""},{"$f":"IFERROR(VLOOKUP(Pronalaženjeučenika,Prisustvovanjeuoktobru[],22,FALSE),\"\")","v":""},{"$f":"IFERROR(VLOOKUP(Pronalaženjeučenika,Prisustvovanjeuoktobru[],23,FALSE),\"\")","v":""},{"$f":"IFERROR(VLOOKUP(Pronalaženjeučenika,Prisustvovanjeuoktobru[],24,FALSE),\"\")","v":""},{"$f":"IFERROR(VLOOKUP(Pronalaženjeučenika,Prisustvovanjeuoktobru[],25,FALSE),\"\")","v":""},{"$f":"IFERROR(VLOOKUP(Pronalaženjeučenika,Prisustvovanjeuoktobru[],26,FALSE),\"\")","v":""},{"$f":"IFERROR(VLOOKUP(Pronalaženjeučenika,Prisustvovanjeuoktobru[],27,FALSE),\"\")","v":""},{"$f":"IFERROR(VLOOKUP(Pronalaženjeučenika,Prisustvovanjeuoktobru[],28,FALSE),\"\")","v":""},{"$f":"IFERROR(VLOOKUP(Pronalaženjeučenika,Prisustvovanjeuoktobru[],29,FALSE),\"\")","v":""},{"$f":"IFERROR(VLOOKUP(Pronalaženjeučenika,Prisustvovanjeuoktobru[],30,FALSE),\"\")","v":""},{"$f":"IFERROR(VLOOKUP(Pronalaženjeučenika,Prisustvovanjeuoktobru[],31,FALSE),\"\")","v":""},{"$f":"IFERROR(VLOOKUP(Pronalaženjeučenika,Prisustvovanjeuoktobru[],32,FALSE),\"\")","v":""},{"$f":"IFERROR(VLOOKUP(Pronalaženjeučenika,Prisustvovanjeuoktobru[],33,FALSE),\"\")","v":""}]
[null,"Novembar",1,2,3,4,5,6,7,8,9,10,11,12,13,14,15,16,17,18,19,20,21,22,23,24,25,26,27,28,29,30,null,{"$f":"COUNTIF($D23:$AH23,Šifra1)","v":0},{"$f":"COUNTIF($D23:$AH23,Šifra2)","v":0},{"$f":"COUNTIF($D23:$AH23,Šifra3)","v":0},{"$f":"COUNTIF($D23:$AH23,Šifra4)","v":0}]
[null,null,{"$f":"IFERROR(VLOOKUP(Pronalaženjeučenika,Prisustvovanjeunovembru[],3,FALSE),\"\")","v":""},{"$f":"IFERROR(VLOOKUP(Pronalaženjeučenika,Prisustvovanjeunovembru[],4,FALSE),\"\")","v":""},{"$f":"IFERROR(VLOOKUP(Pronalaženjeučenika,Prisustvovanjeunovembru[],5,FALSE),\"\")","v":""},{"$f":"IFERROR(VLOOKUP(Pronalaženjeučenika,Prisustvovanjeunovembru[],6,FALSE),\"\")","v":""},{"$f":"IFERROR(VLOOKUP(Pronalaženjeučenika,Prisustvovanjeunovembru[],7,FALSE),\"\")","v":""},{"$f":"IFERROR(VLOOKUP(Pronalaženjeučenika,Prisustvovanjeunovembru[],8,FALSE),\"\")","v":""},{"$f":"IFERROR(VLOOKUP(Pronalaženjeučenika,Prisustvovanjeunovembru[],9,FALSE),\"\")","v":""},{"$f":"IFERROR(VLOOKUP(Pronalaženjeučenika,Prisustvovanjeunovembru[],10,FALSE),\"\")","v":""},{"$f":"IFERROR(VLOOKUP(Pronalaženjeučenika,Prisustvovanjeunovembru[],11,FALSE),\"\")","v":""},{"$f":"IFERROR(VLOOKUP(Pronalaženjeučenika,Prisustvovanjeunovembru[],12,FALSE),\"\")","v":""},{"$f":"IFERROR(VLOOKUP(Pronalaženjeučenika,Prisustvovanjeunovembru[],13,FALSE),\"\")","v":""},{"$f":"IFERROR(VLOOKUP(Pronalaženjeučenika,Prisustvovanjeunovembru[],14,FALSE),\"\")","v":""},{"$f":"IFERROR(VLOOKUP(Pronalaženjeučenika,Prisustvovanjeunovembru[],15,FALSE),\"\")","v":""},{"$f":"IFERROR(VLOOKUP(Pronalaženjeučenika,Prisustvovanjeunovembru[],16,FALSE),\"\")","v":""},{"$f":"IFERROR(VLOOKUP(Pronalaženjeučenika,Prisustvovanjeunovembru[],17,FALSE),\"\")","v":""},{"$f":"IFERROR(VLOOKUP(Pronalaženjeučenika,Prisustvovanjeunovembru[],18,FALSE),\"\")","v":""},{"$f":"IFERROR(VLOOKUP(Pronalaženjeučenika,Prisustvovanjeunovembru[],19,FALSE),\"\")","v":""},{"$f":"IFERROR(VLOOKUP(Pronalaženjeučenika,Prisustvovanjeunovembru[],20,FALSE),\"\")","v":""},{"$f":"IFERROR(VLOOKUP(Pronalaženjeučenika,Prisustvovanjeunovembru[],21,FALSE),\"\")","v":""},{"$f":"IFERROR(VLOOKUP(Pronalaženjeučenika,Prisustvovanjeunovembru[],22,FALSE),\"\")","v":""},{"$f":"IFERROR(VLOOKUP(Pronalaženjeučenika,Prisustvovanjeunovembru[],23,FALSE),\"\")","v":""},{"$f":"IFERROR(VLOOKUP(Pronalaženjeučenika,Prisustvovanjeunovembru[],24,FALSE),\"\")","v":""},{"$f":"IFERROR(VLOOKUP(Pronalaženjeučenika,Prisustvovanjeunovembru[],25,FALSE),\"\")","v":""},{"$f":"IFERROR(VLOOKUP(Pronalaženjeučenika,Prisustvovanjeunovembru[],26,FALSE),\"\")","v":""},{"$f":"IFERROR(VLOOKUP(Pronalaženjeučenika,Prisustvovanjeunovembru[],27,FALSE),\"\")","v":""},{"$f":"IFERROR(VLOOKUP(Pronalaženjeučenika,Prisustvovanjeunovembru[],28,FALSE),\"\")","v":""},{"$f":"IFERROR(VLOOKUP(Pronalaženjeučenika,Prisustvovanjeunovembru[],29,FALSE),\"\")","v":""},{"$f":"IFERROR(VLOOKUP(Pronalaženjeučenika,Prisustvovanjeunovembru[],30,FALSE),\"\")","v":""},{"$f":"IFERROR(VLOOKUP(Pronalaženjeučenika,Prisustvovanjeunovembru[],31,FALSE),\"\")","v":""},{"$f":"IFERROR(VLOOKUP(Pronalaženjeučenika,Prisustvovanjeunovembru[],32,FALSE),\"\")","v":""}]
[null,"Decembar",1,2,3,4,5,6,7,8,9,10,11,12,13,14,15,16,17,18,19,20,21,22,23,24,25,26,27,28,29,30,31,{"$f":"COUNTIF($D25:$AH25,Šifra1)","v":0},{"$f":"COUNTIF($D25:$AH25,Šifra2)","v":0},{"$f":"COUNTIF($D25:$AH25,Šifra3)","v":0},{"$f":"COUNTIF($D25:$AH25,Šifra4)","v":0}]
[null,null,{"$f":"IFERROR(VLOOKUP(Pronalaženjeučenika,Prisustvovanjeudecembru[],3,FALSE),\"\")","v":""},{"$f":"IFERROR(VLOOKUP(Pronalaženjeučenika,Prisustvovanjeudecembru[],4,FALSE),\"\")","v":""},{"$f":"IFERROR(VLOOKUP(Pronalaženjeučenika,Prisustvovanjeudecembru[],5,FALSE),\"\")","v":""},{"$f":"IFERROR(VLOOKUP(Pronalaženjeučenika,Prisustvovanjeudecembru[],6,FALSE),\"\")","v":""},{"$f":"IFERROR(VLOOKUP(Pronalaženjeučenika,Prisustvovanjeudecembru[],7,FALSE),\"\")","v":""},{"$f":"IFERROR(VLOOKUP(Pronalaženjeučenika,Prisustvovanjeudecembru[],8,FALSE),\"\")","v":""},{"$f":"IFERROR(VLOOKUP(Pronalaženjeučenika,Prisustvovanjeudecembru[],9,FALSE),\"\")","v":""},{"$f":"IFERROR(VLOOKUP(Pronalaženjeučenika,Prisustvovanjeudecembru[],10,FALSE),\"\")","v":""},{"$f":"IFERROR(VLOOKUP(Pronalaženjeučenika,Prisustvovanjeudecembru[],11,FALSE),\"\")","v":""},{"$f":"IFERROR(VLOOKUP(Pronalaženjeučenika,Prisustvovanjeudecembru[],12,FALSE),\"\")","v":""},{"$f":"IFERROR(VLOOKUP(Pronalaženjeučenika,Prisustvovanjeudecembru[],13,FALSE),\"\")","v":""},{"$f":"IFERROR(VLOOKUP(Pronalaženjeučenika,Prisustvovanjeudecembru[],14,FALSE),\"\")","v":""},{"$f":"IFERROR(VLOOKUP(Pronalaženjeučenika,Prisustvovanjeudecembru[],15,FALSE),\"\")","v":""},{"$f":"IFERROR(VLOOKUP(Pronalaženjeučenika,Prisustvovanjeudecembru[],16,FALSE),\"\")","v":""},{"$f":"IFERROR(VLOOKUP(Pronalaženjeučenika,Prisustvovanjeudecembru[],17,FALSE),\"\")","v":""},{"$f":"IFERROR(VLOOKUP(Pronalaženjeučenika,Prisustvovanjeudecembru[],18,FALSE),\"\")","v":""},{"$f":"IFERROR(VLOOKUP(Pronalaženjeučenika,Prisustvovanjeudecembru[],19,FALSE),\"\")","v":""},{"$f":"IFERROR(VLOOKUP(Pronalaženjeučenika,Prisustvovanjeudecembru[],20,FALSE),\"\")","v":""},{"$f":"IFERROR(VLOOKUP(Pronalaženjeučenika,Prisustvovanjeudecembru[],21,FALSE),\"\")","v":""},{"$f":"IFERROR(VLOOKUP(Pronalaženjeučenika,Prisustvovanjeudecembru[],22,FALSE),\"\")","v":""},{"$f":"IFERROR(VLOOKUP(Pronalaženjeučenika,Prisustvovanjeudecembru[],23,FALSE),\"\")","v":""},{"$f":"IFERROR(VLOOKUP(Pronalaženjeučenika,Prisustvovanjeudecembru[],24,FALSE),\"\")","v":""},{"$f":"IFERROR(VLOOKUP(Pronalaženjeučenika,Prisustvovanjeudecembru[],25,FALSE),\"\")","v":""},{"$f":"IFERROR(VLOOKUP(Pronalaženjeučenika,Prisustvovanjeudecembru[],26,FALSE),\"\")","v":""},{"$f":"IFERROR(VLOOKUP(Pronalaženjeučenika,Prisustvovanjeudecembru[],27,FALSE),\"\")","v":""},{"$f":"IFERROR(VLOOKUP(Pronalaženjeučenika,Prisustvovanjeudecembru[],28,FALSE),\"\")","v":""},{"$f":"IFERROR(VLOOKUP(Pronalaženjeučenika,Prisustvovanjeudecembru[],29,FALSE),\"\")","v":""},{"$f":"IFERROR(VLOOKUP(Pronalaženjeučenika,Prisustvovanjeudecembru[],30,FALSE),\"\")","v":""},{"$f":"IFERROR(VLOOKUP(Pronalaženjeučenika,Prisustvovanjeudecembru[],31,FALSE),\"\")","v":""},{"$f":"IFERROR(VLOOKUP(Pronalaženjeučenika,Prisustvovanjeudecembru[],32,FALSE),\"\")","v":""},{"$f":"IFERROR(VLOOKUP(Pronalaženjeučenika,Prisustvovanjeudecembru[],33,FALSE),\"\")","v":""}]
[null,"Januar",1,2,3,4,5,6,7,8,9,10,11,12,13,14,15,16,17,18,19,20,21,22,23,24,25,26,27,28,29,30,31,{"$f":"COUNTIF($D27:$AH27,Šifra1)","v":0},{"$f":"COUNTIF($D27:$AH27,Šifra2)","v":0},{"$f":"COUNTIF($D27:$AH27,Šifra3)","v":0},{"$f":"COUNTIF($D27:$AH27,Šifra4)","v":0}]
[null,null,{"$f":"IFERROR(VLOOKUP(Pronalaženjeučenika,Prisustvovanjeujanuaru[],3,FALSE),\"\")","v":""},{"$f":"IFERROR(VLOOKUP(Pronalaženjeučenika,Prisustvovanjeujanuaru[],4,FALSE),\"\")","v":""},{"$f":"IFERROR(VLOOKUP(Pronalaženjeučenika,Prisustvovanjeujanuaru[],5,FALSE),\"\")","v":""},{"$f":"IFERROR(VLOOKUP(Pronalaženjeučenika,Prisustvovanjeujanuaru[],6,FALSE),\"\")","v":""},{"$f":"IFERROR(VLOOKUP(Pronalaženjeučenika,Prisustvovanjeujanuaru[],7,FALSE),\"\")","v":""},{"$f":"IFERROR(VLOOKUP(Pronalaženjeučenika,Prisustvovanjeujanuaru[],8,FALSE),\"\")","v":""},{"$f":"IFERROR(VLOOKUP(Pronalaženjeučenika,Prisustvovanjeujanuaru[],9,FALSE),\"\")","v":""},{"$f":"IFERROR(VLOOKUP(Pronalaženjeučenika,Prisustvovanjeujanuaru[],10,FALSE),\"\")","v":""},{"$f":"IFERROR(VLOOKUP(Pronalaženjeučenika,Prisustvovanjeujanuaru[],11,FALSE),\"\")","v":""},{"$f":"IFERROR(VLOOKUP(Pronalaženjeučenika,Prisustvovanjeujanuaru[],12,FALSE),\"\")","v":""},{"$f":"IFERROR(VLOOKUP(Pronalaženjeučenika,Prisustvovanjeujanuaru[],13,FALSE),\"\")","v":""},{"$f":"IFERROR(VLOOKUP(Pronalaženjeučenika,Prisustvovanjeujanuaru[],14,FALSE),\"\")","v":""},{"$f":"IFERROR(VLOOKUP(Pronalaženjeučenika,Prisustvovanjeujanuaru[],15,FALSE),\"\")","v":""},{"$f":"IFERROR(VLOOKUP(Pronalaženjeučenika,Prisustvovanjeujanuaru[],16,FALSE),\"\")","v":""},{"$f":"IFERROR(VLOOKUP(Pronalaženjeučenika,Prisustvovanjeujanuaru[],17,FALSE),\"\")","v":""},{"$f":"IFERROR(VLOOKUP(Pronalaženjeučenika,Prisustvovanjeujanuaru[],18,FALSE),\"\")","v":""},{"$f":"IFERROR(VLOOKUP(Pronalaženjeučenika,Prisustvovanjeujanuaru[],19,FALSE),\"\")","v":""},{"$f":"IFERROR(VLOOKUP(Pronalaženjeučenika,Prisustvovanjeujanuaru[],20,FALSE),\"\")","v":""},{"$f":"IFERROR(VLOOKUP(Pronalaženjeučenika,Prisustvovanjeujanuaru[],21,FALSE),\"\")","v":""},{"$f":"IFERROR(VLOOKUP(Pronalaženjeučenika,Prisustvovanjeujanuaru[],22,FALSE),\"\")","v":""},{"$f":"IFERROR(VLOOKUP(Pronalaženjeučenika,Prisustvovanjeujanuaru[],23,FALSE),\"\")","v":""},{"$f":"IFERROR(VLOOKUP(Pronalaženjeučenika,Prisustvovanjeujanuaru[],24,FALSE),\"\")","v":""},{"$f":"IFERROR(VLOOKUP(Pronalaženjeučenika,Prisustvovanjeujanuaru[],25,FALSE),\"\")","v":""},{"$f":"IFERROR(VLOOKUP(Pronalaženjeučenika,Prisustvovanjeujanuaru[],26,FALSE),\"\")","v":""},{"$f":"IFERROR(VLOOKUP(Pronalaženjeučenika,Prisustvovanjeujanuaru[],27,FALSE),\"\")","v":""},{"$f":"IFERROR(VLOOKUP(Pronalaženjeučenika,Prisustvovanjeujanuaru[],28,FALSE),\"\")","v":""},{"$f":"IFERROR(VLOOKUP(Pronalaženjeučenika,Prisustvovanjeujanuaru[],29,FALSE),\"\")","v":""},{"$f":"IFERROR(VLOOKUP(Pronalaženjeučenika,Prisustvovanjeujanuaru[],30,FALSE),\"\")","v":""},{"$f":"IFERROR(VLOOKUP(Pronalaženjeučenika,Prisustvovanjeujanuaru[],31,FALSE),\"\")","v":""},{"$f":"IFERROR(VLOOKUP(Pronalaženjeučenika,Prisustvovanjeujanuaru[],32,FALSE),\"\")","v":""},{"$f":"IFERROR(VLOOKUP(Pronalaženjeučenika,Prisustvovanjeujanuaru[],33,FALSE),\"\")","v":""}]
[null,"Februar",1,2,3,4,5,6,7,8,9,10,11,12,13,14,15,16,17,18,19,20,21,22,23,24,25,26,27,28,29,null,null,{"$f":"COUNTIF($D29:$AH29,Šifra1)","v":0},{"$f":"COUNTIF($D29:$AH29,Šifra2)","v":0},{"$f":"COUNTIF($D29:$AH29,Šifra3)","v":0},{"$f":"COUNTIF($D29:$AH29,Šifra4)","v":0}]
[null,null,{"$f":"IFERROR(VLOOKUP(Pronalaženjeučenika,Prisustvovanjeufebruaru[],3,FALSE),\"\")","v":""},{"$f":"IFERROR(VLOOKUP(Pronalaženjeučenika,Prisustvovanjeufebruaru[],4,FALSE),\"\")","v":""},{"$f":"IFERROR(VLOOKUP(Pronalaženjeučenika,Prisustvovanjeufebruaru[],5,FALSE),\"\")","v":""},{"$f":"IFERROR(VLOOKUP(Pronalaženjeučenika,Prisustvovanjeufebruaru[],6,FALSE),\"\")","v":""},{"$f":"IFERROR(VLOOKUP(Pronalaženjeučenika,Prisustvovanjeufebruaru[],7,FALSE),\"\")","v":""},{"$f":"IFERROR(VLOOKUP(Pronalaženjeučenika,Prisustvovanjeufebruaru[],8,FALSE),\"\")","v":""},{"$f":"IFERROR(VLOOKUP(Pronalaženjeučenika,Prisustvovanjeufebruaru[],9,FALSE),\"\")","v":""},{"$f":"IFERROR(VLOOKUP(Pronalaženjeučenika,Prisustvovanjeufebruaru[],10,FALSE),\"\")","v":""},{"$f":"IFERROR(VLOOKUP(Pronalaženjeučenika,Prisustvovanjeufebruaru[],11,FALSE),\"\")","v":""},{"$f":"IFERROR(VLOOKUP(Pronalaženjeučenika,Prisustvovanjeufebruaru[],12,FALSE),\"\")","v":""},{"$f":"IFERROR(VLOOKUP(Pronalaženjeučenika,Prisustvovanjeufebruaru[],13,FALSE),\"\")","v":""},{"$f":"IFERROR(VLOOKUP(Pronalaženjeučenika,Prisustvovanjeufebruaru[],14,FALSE),\"\")","v":""},{"$f":"IFERROR(VLOOKUP(Pronalaženjeučenika,Prisustvovanjeufebruaru[],15,FALSE),\"\")","v":""},{"$f":"IFERROR(VLOOKUP(Pronalaženjeučenika,Prisustvovanjeufebruaru[],16,FALSE),\"\")","v":""},{"$f":"IFERROR(VLOOKUP(Pronalaženjeučenika,Prisustvovanjeufebruaru[],17,FALSE),\"\")","v":""},{"$f":"IFERROR(VLOOKUP(Pronalaženjeučenika,Prisustvovanjeufebruaru[],18,FALSE),\"\")","v":""},{"$f":"IFERROR(VLOOKUP(Pronalaženjeučenika,Prisustvovanjeufebruaru[],19,FALSE),\"\")","v":""},{"$f":"IFERROR(VLOOKUP(Pronalaženjeučenika,Prisustvovanjeufebruaru[],20,FALSE),\"\")","v":""},{"$f":"IFERROR(VLOOKUP(Pronalaženjeučenika,Prisustvovanjeufebruaru[],21,FALSE),\"\")","v":""},{"$f":"IFERROR(VLOOKUP(Pronalaženjeučenika,Prisustvovanjeufebruaru[],22,FALSE),\"\")","v":""},{"$f":"IFERROR(VLOOKUP(Pronalaženjeučenika,Prisustvovanjeufebruaru[],23,FALSE),\"\")","v":""},{"$f":"IFERROR(VLOOKUP(Pronalaženjeučenika,Prisustvovanjeufebruaru[],24,FALSE),\"\")","v":""},{"$f":"IFERROR(VLOOKUP(Pronalaženjeučenika,Prisustvovanjeufebruaru[],25,FALSE),\"\")","v":""},{"$f":"IFERROR(VLOOKUP(Pronalaženjeučenika,Prisustvovanjeufebruaru[],26,FALSE),\"\")","v":""},{"$f":"IFERROR(VLOOKUP(Pronalaženjeučenika,Prisustvovanjeufebruaru[],27,FALSE),\"\")","v":""},{"$f":"IFERROR(VLOOKUP(Pronalaženjeučenika,Prisustvovanjeufebruaru[],28,FALSE),\"\")","v":""},{"$f":"IFERROR(VLOOKUP(Pronalaženjeučenika,Prisustvovanjeufebruaru[],29,FALSE),\"\")","v":""},{"$f":"IFERROR(VLOOKUP(Pronalaženjeučenika,Prisustvovanjeufebruaru[],30,FALSE),\"\")","v":""},{"$f":"IFERROR(VLOOKUP(Pronalaženjeučenika,Prisustvovanjeufebruaru[],31,FALSE),\"\")","v":""}]
[null,"Mart",1,2,3,4,5,6,7,8,9,10,11,12,13,14,15,16,17,18,19,20,21,22,23,24,25,26,27,28,29,30,31,{"$f":"COUNTIF($D31:$AH31,Šifra1)","v":0},{"$f":"COUNTIF($D31:$AH31,Šifra2)","v":0},{"$f":"COUNTIF($D31:$AH31,Šifra3)","v":0},{"$f":"COUNTIF($D31:$AH31,Šifra4)","v":0}]
[null,null,{"$f":"IFERROR(VLOOKUP(Pronalaženjeučenika,Prisustvovanjeumartu[],3,FALSE),\"\")","v":""},{"$f":"IFERROR(VLOOKUP(Pronalaženjeučenika,Prisustvovanjeumartu[],4,FALSE),\"\")","v":""},{"$f":"IFERROR(VLOOKUP(Pronalaženjeučenika,Prisustvovanjeumartu[],5,FALSE),\"\")","v":""},{"$f":"IFERROR(VLOOKUP(Pronalaženjeučenika,Prisustvovanjeumartu[],6,FALSE),\"\")","v":""},{"$f":"IFERROR(VLOOKUP(Pronalaženjeučenika,Prisustvovanjeumartu[],7,FALSE),\"\")","v":""},{"$f":"IFERROR(VLOOKUP(Pronalaženjeučenika,Prisustvovanjeumartu[],8,FALSE),\"\")","v":""},{"$f":"IFERROR(VLOOKUP(Pronalaženjeučenika,Prisustvovanjeumartu[],9,FALSE),\"\")","v":""},{"$f":"IFERROR(VLOOKUP(Pronalaženjeučenika,Prisustvovanjeumartu[],10,FALSE),\"\")","v":""},{"$f":"IFERROR(VLOOKUP(Pronalaženjeučenika,Prisustvovanjeumartu[],11,FALSE),\"\")","v":""},{"$f":"IFERROR(VLOOKUP(Pronalaženjeučenika,Prisustvovanjeumartu[],12,FALSE),\"\")","v":""},{"$f":"IFERROR(VLOOKUP(Pronalaženjeučenika,Prisustvovanjeumartu[],13,FALSE),\"\")","v":""},{"$f":"IFERROR(VLOOKUP(Pronalaženjeučenika,Prisustvovanjeumartu[],14,FALSE),\"\")","v":""},{"$f":"IFERROR(VLOOKUP(Pronalaženjeučenika,Prisustvovanjeumartu[],15,FALSE),\"\")","v":""},{"$f":"IFERROR(VLOOKUP(Pronalaženjeučenika,Prisustvovanjeumartu[],16,FALSE),\"\")","v":""},{"$f":"IFERROR(VLOOKUP(Pronalaženjeučenika,Prisustvovanjeumartu[],17,FALSE),\"\")","v":""},{"$f":"IFERROR(VLOOKUP(Pronalaženjeučenika,Prisustvovanjeumartu[],18,FALSE),\"\")","v":""},{"$f":"IFERROR(VLOOKUP(Pronalaženjeučenika,Prisustvovanjeumartu[],19,FALSE),\"\")","v":""},{"$f":"IFERROR(VLOOKUP(Pronalaženjeučenika,Prisustvovanjeumartu[],20,FALSE),\"\")","v":""},{"$f":"IFERROR(VLOOKUP(Pronalaženjeučenika,Prisustvovanjeumartu[],21,FALSE),\"\")","v":""},{"$f":"IFERROR(VLOOKUP(Pronalaženjeučenika,Prisustvovanjeumartu[],22,FALSE),\"\")","v":""},{"$f":"IFERROR(VLOOKUP(Pronalaženjeučenika,Prisustvovanjeumartu[],23,FALSE),\"\")","v":""},{"$f":"IFERROR(VLOOKUP(Pronalaženjeučenika,Prisustvovanjeumartu[],24,FALSE),\"\")","v":""},{"$f":"IFERROR(VLOOKUP(Pronalaženjeučenika,Prisustvovanjeumartu[],25,FALSE),\"\")","v":""},{"$f":"IFERROR(VLOOKUP(Pronalaženjeučenika,Prisustvovanjeumartu[],26,FALSE),\"\")","v":""},{"$f":"IFERROR(VLOOKUP(Pronalaženjeučenika,Prisustvovanjeumartu[],27,FALSE),\"\")","v":""},{"$f":"IFERROR(VLOOKUP(Pronalaženjeučenika,Prisustvovanjeumartu[],28,FALSE),\"\")","v":""},{"$f":"IFERROR(VLOOKUP(Pronalaženjeučenika,Prisustvovanjeumartu[],29,FALSE),\"\")","v":""},{"$f":"IFERROR(VLOOKUP(Pronalaženjeučenika,Prisustvovanjeumartu[],30,FALSE),\"\")","v":""},{"$f":"IFERROR(VLOOKUP(Pronalaženjeučenika,Prisustvovanjeumartu[],31,FALSE),\"\")","v":""},{"$f":"IFERROR(VLOOKUP(Pronalaženjeučenika,Prisustvovanjeumartu[],32,FALSE),\"\")","v":""},{"$f":"IFERROR(VLOOKUP(Pronalaženjeučenika,Prisustvovanjeumartu[],33,FALSE),\"\")","v":""}]
[null,"April",1,2,3,4,5,6,7,8,9,10,11,12,13,14,15,16,17,18,19,20,21,22,23,24,25,26,27,28,29,30,null,{"$f":"COUNTIF($D33:$AH33,Šifra1)","v":0},{"$f":"COUNTIF($D33:$AH33,Šifra2)","v":0},{"$f":"COUNTIF($D33:$AH33,Šifra3)","v":0},{"$f":"COUNTIF($D33:$AH33,Šifra4)","v":0}]
[null,null,{"$f":"IFERROR(VLOOKUP(Pronalaženjeučenika,Prisustvovanjeuaprilu[],3,FALSE),\"\")","v":""},{"$f":"IFERROR(VLOOKUP(Pronalaženjeučenika,Prisustvovanjeuaprilu[],4,FALSE),\"\")","v":""},{"$f":"IFERROR(VLOOKUP(Pronalaženjeučenika,Prisustvovanjeuaprilu[],5,FALSE),\"\")","v":""},{"$f":"IFERROR(VLOOKUP(Pronalaženjeučenika,Prisustvovanjeuaprilu[],6,FALSE),\"\")","v":""},{"$f":"IFERROR(VLOOKUP(Pronalaženjeučenika,Prisustvovanjeuaprilu[],7,FALSE),\"\")","v":""},{"$f":"IFERROR(VLOOKUP(Pronalaženjeučenika,Prisustvovanjeuaprilu[],8,FALSE),\"\")","v":""},{"$f":"IFERROR(VLOOKUP(Pronalaženjeučenika,Prisustvovanjeuaprilu[],9,FALSE),\"\")","v":""},{"$f":"IFERROR(VLOOKUP(Pronalaženjeučenika,Prisustvovanjeuaprilu[],10,FALSE),\"\")","v":""},{"$f":"IFERROR(VLOOKUP(Pronalaženjeučenika,Prisustvovanjeuaprilu[],11,FALSE),\"\")","v":""},{"$f":"IFERROR(VLOOKUP(Pronalaženjeučenika,Prisustvovanjeuaprilu[],12,FALSE),\"\")","v":""},{"$f":"IFERROR(VLOOKUP(Pronalaženjeučenika,Prisustvovanjeuaprilu[],13,FALSE),\"\")","v":""},{"$f":"IFERROR(VLOOKUP(Pronalaženjeučenika,Prisustvovanjeuaprilu[],14,FALSE),\"\")","v":""},{"$f":"IFERROR(VLOOKUP(Pronalaženjeučenika,Prisustvovanjeuaprilu[],15,FALSE),\"\")","v":""},{"$f":"IFERROR(VLOOKUP(Pronalaženjeučenika,Prisustvovanjeuaprilu[],16,FALSE),\"\")","v":""},{"$f":"IFERROR(VLOOKUP(Pronalaženjeučenika,Prisustvovanjeuaprilu[],17,FALSE),\"\")","v":""},{"$f":"IFERROR(VLOOKUP(Pronalaženjeučenika,Prisustvovanjeuaprilu[],18,FALSE),\"\")","v":""},{"$f":"IFERROR(VLOOKUP(Pronalaženjeučenika,Prisustvovanjeuaprilu[],19,FALSE),\"\")","v":""},{"$f":"IFERROR(VLOOKUP(Pronalaženjeučenika,Prisustvovanjeuaprilu[],20,FALSE),\"\")","v":""},{"$f":"IFERROR(VLOOKUP(Pronalaženjeučenika,Prisustvovanjeuaprilu[],21,FALSE),\"\")","v":""},{"$f":"IFERROR(VLOOKUP(Pronalaženjeučenika,Prisustvovanjeuaprilu[],22,FALSE),\"\")","v":""},{"$f":"IFERROR(VLOOKUP(Pronalaženjeučenika,Prisustvovanjeuaprilu[],23,FALSE),\"\")","v":""},{"$f":"IFERROR(VLOOKUP(Pronalaženjeučenika,Prisustvovanjeuaprilu[],24,FALSE),\"\")","v":""},{"$f":"IFERROR(VLOOKUP(Pronalaženjeučenika,Prisustvovanjeuaprilu[],25,FALSE),\"\")","v":""},{"$f":"IFERROR(VLOOKUP(Pronalaženjeučenika,Prisustvovanjeuaprilu[],26,FALSE),\"\")","v":""},{"$f":"IFERROR(VLOOKUP(Pronalaženjeučenika,Prisustvovanjeuaprilu[],27,FALSE),\"\")","v":""},{"$f":"IFERROR(VLOOKUP(Pronalaženjeučenika,Prisustvovanjeuaprilu[],28,FALSE),\"\")","v":""},{"$f":"IFERROR(VLOOKUP(Pronalaženjeučenika,Prisustvovanjeuaprilu[],29,FALSE),\"\")","v":""},{"$f":"IFERROR(VLOOKUP(Pronalaženjeučenika,Prisustvovanjeuaprilu[],30,FALSE),\"\")","v":""},{"$f":"IFERROR(VLOOKUP(Pronalaženjeučenika,Prisustvovanjeuaprilu[],31,FALSE),\"\")","v":""},{"$f":"IFERROR(VLOOKUP(Pronalaženjeučenika,Prisustvovanjeuaprilu[],32,FALSE),\"\")","v":""}]
[null,"Maj",1,2,3,4,5,6,7,8,9,10,11,12,13,14,15,16,17,18,19,20,21,22,23,24,25,26,27,28,29,30,31,{"$f":"COUNTIF($D35:$AH35,Šifra1)","v":0},{"$f":"COUNTIF($D35:$AH35,Šifra2)","v":0},{"$f":"COUNTIF($D35:$AH35,Šifra3)","v":0},{"$f":"COUNTIF($D35:$AH35,Šifra4)","v":0}]
[null,null,{"$f":"IFERROR(VLOOKUP(Pronalaženjeučenika,Prisustvovanjeumaju[],3,FALSE),\"\")","v":""},{"$f":"IFERROR(VLOOKUP(Pronalaženjeučenika,Prisustvovanjeumaju[],4,FALSE),\"\")","v":""},{"$f":"IFERROR(VLOOKUP(Pronalaženjeučenika,Prisustvovanjeumaju[],5,FALSE),\"\")","v":""},{"$f":"IFERROR(VLOOKUP(Pronalaženjeučenika,Prisustvovanjeumaju[],6,FALSE),\"\")","v":""},{"$f":"IFERROR(VLOOKUP(Pronalaženjeučenika,Prisustvovanjeumaju[],7,FALSE),\"\")","v":""},{"$f":"IFERROR(VLOOKUP(Pronalaženjeučenika,Prisustvovanjeumaju[],8,FALSE),\"\")","v":""},{"$f":"IFERROR(VLOOKUP(Pronalaženjeučenika,Prisustvovanjeumaju[],9,FALSE),\"\")","v":""},{"$f":"IFERROR(VLOOKUP(Pronalaženjeučenika,Prisustvovanjeumaju[],10,FALSE),\"\")","v":""},{"$f":"IFERROR(VLOOKUP(Pronalaženjeučenika,Prisustvovanjeumaju[],11,FALSE),\"\")","v":""},{"$f":"IFERROR(VLOOKUP(Pronalaženjeučenika,Prisustvovanjeumaju[],12,FALSE),\"\")","v":""},{"$f":"IFERROR(VLOOKUP(Pronalaženjeučenika,Prisustvovanjeumaju[],13,FALSE),\"\")","v":""},{"$f":"IFERROR(VLOOKUP(Pronalaženjeučenika,Prisustvovanjeumaju[],14,FALSE),\"\")","v":""},{"$f":"IFERROR(VLOOKUP(Pronalaženjeučenika,Prisustvovanjeumaju[],15,FALSE),\"\")","v":""},{"$f":"IFERROR(VLOOKUP(Pronalaženjeučenika,Prisustvovanjeumaju[],16,FALSE),\"\")","v":""},{"$f":"IFERROR(VLOOKUP(Pronalaženjeučenika,Prisustvovanjeumaju[],17,FALSE),\"\")","v":""},{"$f":"IFERROR(VLOOKUP(Pronalaženjeučenika,Prisustvovanjeumaju[],18,FALSE),\"\")","v":""},{"$f":"IFERROR(VLOOKUP(Pronalaženjeučenika,Prisustvovanjeumaju[],19,FALSE),\"\")","v":""},{"$f":"IFERROR(VLOOKUP(Pronalaženjeučenika,Prisustvovanjeumaju[],20,FALSE),\"\")","v":""},{"$f":"IFERROR(VLOOKUP(Pronalaženjeučenika,Prisustvovanjeumaju[],21,FALSE),\"\")","v":""},{"$f":"IFERROR(VLOOKUP(Pronalaženjeučenika,Prisustvovanjeumaju[],22,FALSE),\"\")","v":""},{"$f":"IFERROR(VLOOKUP(Pronalaženjeučenika,Prisustvovanjeumaju[],23,FALSE),\"\")","v":""},{"$f":"IFERROR(VLOOKUP(Pronalaženjeučenika,Prisustvovanjeumaju[],24,FALSE),\"\")","v":""},{"$f":"IFERROR(VLOOKUP(Pronalaženjeučenika,Prisustvovanjeumaju[],25,FALSE),\"\")","v":""},{"$f":"IFERROR(VLOOKUP(Pronalaženjeučenika,Prisustvovanjeumaju[],26,FALSE),\"\")","v":""},{"$f":"IFERROR(VLOOKUP(Pronalaženjeučenika,Prisustvovanjeumaju[],27,FALSE),\"\")","v":""},{"$f":"IFERROR(VLOOKUP(Pronalaženjeučenika,Prisustvovanjeumaju[],28,FALSE),\"\")","v":""},{"$f":"IFERROR(VLOOKUP(Pronalaženjeučenika,Prisustvovanjeumaju[],29,FALSE),\"\")","v":""},{"$f":"IFERROR(VLOOKUP(Pronalaženjeučenika,Prisustvovanjeumaju[],30,FALSE),\"\")","v":""},{"$f":"IFERROR(VLOOKUP(Pronalaženjeučenika,Prisustvovanjeumaju[],31,FALSE),\"\")","v":""},{"$f":"IFERROR(VLOOKUP(Pronalaženjeučenika,Prisustvovanjeumaju[],32,FALSE),\"\")","v":""},{"$f":"IFERROR(VLOOKUP(Pronalaženjeučenika,Prisustvovanjeumaju[],33,FALSE),\"\")","v":""}]
[null,"Jun",1,2,3,4,5,6,7,8,9,10,11,12,13,14,15,16,17,18,19,20,21,22,23,24,25,26,27,28,29,30,null,{"$f":"COUNTIF($D37:$AH37,Šifra1)","v":0},{"$f":"COUNTIF($D37:$AH37,Šifra2)","v":0},{"$f":"COUNTIF($D37:$AH37,Šifra3)","v":0},{"$f":"COUNTIF($D37:$AH37,Šifra4)","v":0}]
[null,null,{"$f":"IFERROR(VLOOKUP(Pronalaženjeučenika,Prisustvovanjeujunu[],3,FALSE),\"\")","v":""},{"$f":"IFERROR(VLOOKUP(Pronalaženjeučenika,Prisustvovanjeujunu[],4,FALSE),\"\")","v":""},{"$f":"IFERROR(VLOOKUP(Pronalaženjeučenika,Prisustvovanjeujunu[],5,FALSE),\"\")","v":""},{"$f":"IFERROR(VLOOKUP(Pronalaženjeučenika,Prisustvovanjeujunu[],6,FALSE),\"\")","v":""},{"$f":"IFERROR(VLOOKUP(Pronalaženjeučenika,Prisustvovanjeujunu[],7,FALSE),\"\")","v":""},{"$f":"IFERROR(VLOOKUP(Pronalaženjeučenika,Prisustvovanjeujunu[],8,FALSE),\"\")","v":""},{"$f":"IFERROR(VLOOKUP(Pronalaženjeučenika,Prisustvovanjeujunu[],9,FALSE),\"\")","v":""},{"$f":"IFERROR(VLOOKUP(Pronalaženjeučenika,Prisustvovanjeujunu[],10,FALSE),\"\")","v":""},{"$f":"IFERROR(VLOOKUP(Pronalaženjeučenika,Prisustvovanjeujunu[],11,FALSE),\"\")","v":""},{"$f":"IFERROR(VLOOKUP(Pronalaženjeučenika,Prisustvovanjeujunu[],12,FALSE),\"\")","v":""},{"$f":"IFERROR(VLOOKUP(Pronalaženjeučenika,Prisustvovanjeujunu[],13,FALSE),\"\")","v":""},{"$f":"IFERROR(VLOOKUP(Pronalaženjeučenika,Prisustvovanjeujunu[],14,FALSE),\"\")","v":""},{"$f":"IFERROR(VLOOKUP(Pronalaženjeučenika,Prisustvovanjeujunu[],15,FALSE),\"\")","v":""},{"$f":"IFERROR(VLOOKUP(Pronalaženjeučenika,Prisustvovanjeujunu[],16,FALSE),\"\")","v":""},{"$f":"IFERROR(VLOOKUP(Pronalaženjeučenika,Prisustvovanjeujunu[],17,FALSE),\"\")","v":""},{"$f":"IFERROR(VLOOKUP(Pronalaženjeučenika,Prisustvovanjeujunu[],18,FALSE),\"\")","v":""},{"$f":"IFERROR(VLOOKUP(Pronalaženjeučenika,Prisustvovanjeujunu[],19,FALSE),\"\")","v":""},{"$f":"IFERROR(VLOOKUP(Pronalaženjeučenika,Prisustvovanjeujunu[],20,FALSE),\"\")","v":""},{"$f":"IFERROR(VLOOKUP(Pronalaženjeučenika,Prisustvovanjeujunu[],21,FALSE),\"\")","v":""},{"$f":"IFERROR(VLOOKUP(Pronalaženjeučenika,Prisustvovanjeujunu[],22,FALSE),\"\")","v":""},{"$f":"IFERROR(VLOOKUP(Pronalaženjeučenika,Prisustvovanjeujunu[],23,FALSE),\"\")","v":""},{"$f":"IFERROR(VLOOKUP(Pronalaženjeučenika,Prisustvovanjeujunu[],24,FALSE),\"\")","v":""},{"$f":"IFERROR(VLOOKUP(Pronalaženjeučenika,Prisustvovanjeujunu[],25,FALSE),\"\")","v":""},{"$f":"IFERROR(VLOOKUP(Pronalaženjeučenika,Prisustvovanjeujunu[],26,FALSE),\"\")","v":""},{"$f":"IFERROR(VLOOKUP(Pronalaženjeučenika,Prisustvovanjeujunu[],27,FALSE),\"\")","v":""},{"$f":"IFERROR(VLOOKUP(Pronalaženjeučenika,Prisustvovanjeujunu[],28,FALSE),\"\")","v":""},{"$f":"IFERROR(VLOOKUP(Pronalaženjeučenika,Prisustvovanjeujunu[],29,FALSE),\"\")","v":""},{"$f":"IFERROR(VLOOKUP(Pronalaženjeučenika,Prisustvovanjeujunu[],30,FALSE),\"\")","v":""},{"$f":"IFERROR(VLOOKUP(Pronalaženjeučenika,Prisustvovanjeujunu[],31,FALSE),\"\")","v":""},{"$f":"IFERROR(VLOOKUP(Pronalaženjeučenika,Prisustvovanjeujunu[],32,FALSE),\"\")","v":""}]
[null,"Jul",1,2,3,4,5,6,7,8,9,10,11,12,13,14,15,16,17,18,19,20,21,22,23,24,25,26,27,28,29,30,31,{"$f":"COUNTIF($D39:$AH39,Šifra1)","v":0},{"$f":"COUNTIF($D39:$AH39,Šifra2)","v":0},{"$f":"COUNTIF($D39:$AH39,Šifra3)","v":0},{"$f":"COUNTIF($D39:$AH39,Šifra4)","v":0}]
[null,null,{"$f":"IFERROR(VLOOKUP(Pronalaženjeučenika,Prisustvovanjeujulu[],3,FALSE),\"\")","v":""},{"$f":"IFERROR(VLOOKUP(Pronalaženjeučenika,Prisustvovanjeujulu[],4,FALSE),\"\")","v":""},{"$f":"IFERROR(VLOOKUP(Pronalaženjeučenika,Prisustvovanjeujulu[],5,FALSE),\"\")","v":""},{"$f":"IFERROR(VLOOKUP(Pronalaženjeučenika,Prisustvovanjeujulu[],6,FALSE),\"\")","v":""},{"$f":"IFERROR(VLOOKUP(Pronalaženjeučenika,Prisustvovanjeujulu[],7,FALSE),\"\")","v":""},{"$f":"IFERROR(VLOOKUP(Pronalaženjeučenika,Prisustvovanjeujulu[],8,FALSE),\"\")","v":""},{"$f":"IFERROR(VLOOKUP(Pronalaženjeučenika,Prisustvovanjeujulu[],9,FALSE),\"\")","v":""},{"$f":"IFERROR(VLOOKUP(Pronalaženjeučenika,Prisustvovanjeujulu[],10,FALSE),\"\")","v":""},{"$f":"IFERROR(VLOOKUP(Pronalaženjeučenika,Prisustvovanjeujulu[],11,FALSE),\"\")","v":""},{"$f":"IFERROR(VLOOKUP(Pronalaženjeučenika,Prisustvovanjeujulu[],12,FALSE),\"\")","v":""},{"$f":"IFERROR(VLOOKUP(Pronalaženjeučenika,Prisustvovanjeujulu[],13,FALSE),\"\")","v":""},{"$f":"IFERROR(VLOOKUP(Pronalaženjeučenika,Prisustvovanjeujulu[],14,FALSE),\"\")","v":""},{"$f":"IFERROR(VLOOKUP(Pronalaženjeučenika,Prisustvovanjeujulu[],15,FALSE),\"\")","v":""},{"$f":"IFERROR(VLOOKUP(Pronalaženjeučenika,Prisustvovanjeujulu[],16,FALSE),\"\")","v":""},{"$f":"IFERROR(VLOOKUP(Pronalaženjeučenika,Prisustvovanjeujulu[],17,FALSE),\"\")","v":""},{"$f":"IFERROR(VLOOKUP(Pronalaženjeučenika,Prisustvovanjeujulu[],18,FALSE),\"\")","v":""},{"$f":"IFERROR(VLOOKUP(Pronalaženjeučenika,Prisustvovanjeujulu[],19,FALSE),\"\")","v":""},{"$f":"IFERROR(VLOOKUP(Pronalaženjeučenika,Prisustvovanjeujulu[],20,FALSE),\"\")","v":""},{"$f":"IFERROR(VLOOKUP(Pronalaženjeučenika,Prisustvovanjeujulu[],21,FALSE),\"\")","v":""},{"$f":"IFERROR(VLOOKUP(Pronalaženjeučenika,Prisustvovanjeujulu[],22,FALSE),\"\")","v":""},{"$f":"IFERROR(VLOOKUP(Pronalaženjeučenika,Prisustvovanjeujulu[],23,FALSE),\"\")","v":""},{"$f":"IFERROR(VLOOKUP(Pronalaženjeučenika,Prisustvovanjeujulu[],24,FALSE),\"\")","v":""},{"$f":"IFERROR(VLOOKUP(Pronalaženjeučenika,Prisustvovanjeujulu[],25,FALSE),\"\")","v":""},{"$f":"IFERROR(VLOOKUP(Pronalaženjeučenika,Prisustvovanjeujulu[],26,FALSE),\"\")","v":""},{"$f":"IFERROR(VLOOKUP(Pronalaženjeučenika,Prisustvovanjeujulu[],27,FALSE),\"\")","v":""},{"$f":"IFERROR(VLOOKUP(Pronalaženjeučenika,Prisustvovanjeujulu[],28,FALSE),\"\")","v":""},{"$f":"IFERROR(VLOOKUP(Pronalaženjeučenika,Prisustvovanjeujulu[],29,FALSE),\"\")","v":""},{"$f":"IFERROR(VLOOKUP(Pronalaženjeučenika,Prisustvovanjeujulu[],30,FALSE),\"\")","v":""},{"$f":"IFERROR(VLOOKUP(Pronalaženjeučenika,Prisustvovanjeujulu[],31,FALSE),\"\")","v":""},{"$f":"IFERROR(VLOOKUP(Pronalaženjeučenika,Prisustvovanjeujulu[],32,FALSE),\"\")","v":""},{"$f":"IFERROR(VLOOKUP(Pronalaženjeučenika,Prisustvovanjeujulu[],33,FALSE),\"\")","v":""}]
[{"$nulls":30},"Ukupne vrednosti",null,null,{"$f":"SUM(AH16:AH39)","v":2},{"$f":"SUM(AI16:AI39)","v":1},{"$f":"SUM(AJ16:AJ39)","v":0},{"$f":"SUM(AK16:AK39)","v":19}]